{"text_format":"1","workbook":"xlsx","n_sheets":3,"sheets":["Order Form","Search","PriceLevels"],"not_rendered":{"charts":0,"images":1,"macros":1,"external_links":0,"defined_names":57,"comments":0,"pivot_tables":0},"unopened":[],"bounds":{"document_bytes":16777216,"sheet_cells":100000,"rows_first":2000,"rows_last":500,"rows_between":2000,"halvings":0,"cell_chars":16384,"cell_head_chars":4096},"cells_cut":0,"cells_raw":0,"read":"whole","date_system":"1900"}

{"sheet":"Order Form","index":0,"n_rows":411,"n_cols":125,"rows_kept":411,"cut":false,"hidden":false,"merged":[[6,40,6,41],[8,43,8,46],[1,7,1,9],[2,7,2,9],[3,7,3,9]]}
[null,null,null,null,null,null,null,"Charge To Address",null,null,"Ship To Address","Customer No",null,null,null,null,null,null,null,null,null,null,null,null,null,null,null,null,null,null,null,null,null,null,null,null,"FAX To ","800-624-7110",null,null,null,null,null,null,null,null,null,null,null,null,null,null,null,null,null,null,null,null,null,null,null,null,null,null,null,null,null,null,null,null,null,null,null,null,null,null,null,null,null,null,null,"RecordType",null,"PrimarySeq","Sec Seq","PrimaryDesc","SecondaryDesc",null,null,null,null,null,null,null,null,null,null,null,null,null,null,null,null,null,null,null,null,null,null,"PrimarySeq","PrimaryDesc",null,null,null,null,null,null,null,null,null,null,"Product Number","Description",null,"CriteriaCount"]
[null,null,null,null,null,null,null,null,null,null,null,null,null,null,null,null,null,null,null,null,null,null,null,null,null,null,null,null,null,null,null,null,null,null,null,null,"Phone","866-587-6747",null,null,null,null,null,null,null,null,null,"Price Index",1,null,null,null,null,null,null,null,null,null,null,null,null,null,null,null,null,null,null,null,null,null,null,null,null,null,null,null,null,null,null,null,null,3,null,1,1,"MASTERY SERIES FLY LINES","MASTERY FRESHWATER FLOATING LINES - GPX",null,null,null,null,null,null,null,null,null,null,null,null,null,null,null,null,null,null,null,null,null,null,1,"MASTERY SERIES FLY LINES",null,null,null,null,null,null,null,null,null,null,123,null,null,{"$f":"COUNTA(DS2:DS11)","v":0}]
[null,null,null,null,null,null,null,null,null,null,null,"PO Number",null,null,null,null,null,null,null,null,null,null,null,null,null,null,null,null,null,null,null,null,null,null,null,null,"Email To ","dealersupport@scientificanglers.com",null,null,null,null,null,null,null,null,null,"Real Price Col",{"$f":"INDEX(RealPriceCol,AW2)","v":1},null,null,null,null,null,null,null,null,null,null,null,null,null,null,null,null,null,null,null,null,null,null,null,null,null,null,null,null,null,null,null,null,null,null,1,2,"MASTERY SERIES FLY LINES","MASTERY FRESHWATER FLOATING LINES - XPS",null,null,null,null,null,null,null,null,null,null,null,null,null,null,null,null,null,null,null,null,null,null,2,"PROFESSIONAL SERIES FLY LINES"]
[null,null,null,null,null,null,null,null,null,null,null,null,null,null,null,null,null,null,null,null,null,null,null,null,null,null,null,null,null,null,null,null,null,null,null,null,"Mail to ","Scientific Anglers",null,null,null,null,null,null,null,null,null,null,null,null,null,null,null,null,null,null,null,null,null,null,null,null,null,null,null,null,null,null,null,null,null,null,null,null,null,null,null,null,null,null,null,null,null,1,3,"MASTERY SERIES FLY LINES","MASTERY FRESHWATER FLOATING LINES - DISTANCE",null,null,null,null,null,null,null,null,null,null,null,null,null,null,null,null,null,null,null,null,null,null,3,"LEADERS, TIPPETS AND BACKING"]
[null,null,null,null,null,null,null,"Special Instructions",null,null,null,"Order Date",null,null,null,null,null,null,null,null,null,null,null,null,null,null,null,null,null,null,null,null,null,null,null,null,null,"4100 James Savage Rd.",null,null,null,null,null,null,null,null,null,null,null,null,null,null,null,null,null,null,null,null,null,null,null,null,null,null,null,null,null,null,null,null,null,null,null,null,null,null,null,null,null,null,null,null,null,1,4,"MASTERY SERIES FLY LINES","MASTERY FRESHWATER FLOATING LINES - HEADSTART™",null,null,null,null,null,null,null,null,null,null,null,null,null,null,null,null,null,null,null,null,null,null,4,"FLY REELS, SPOOLS AND OUTFITS"]
[null,null,null,null,null,null,null,"Contact",null,null,null,null,null,null,null,null,null,null,null,null,null,null,null,null,null,null,null,null,null,null,null,null,null,null,null,null,null,"Midland, MI   48642",null,null,null,null,null,null,null,null,null,null,null,null,null,null,null,null,null,null,null,null,null,null,null,null,null,null,null,null,null,null,null,null,null,null,null,null,null,null,null,null,null,null,null,null,null,1,5,"MASTERY SERIES FLY LINES","MASTERY FRESHWATER FLOATING LINES - NYMPH TAPER",null,null,null,null,null,null,null,null,null,null,null,null,null,null,null,null,null,null,null,null,null,null,5,"FLY BOXES AND FLY FISHING ACCESSORIES"]
[null,null,null,null,null,null,null,"Phone number",null,null,null,null,null,null,null,null,null,null,null,null,null,null,null,null,null,null,null,null,null,null,null,null,null,null,null,"Ship Date",null,null,null,null,"Total",null,null,null,null,null,null,null,null,null,null,null,null,null,null,null,null,null,null,null,null,null,null,null,null,null,null,null,null,null,null,null,null,null,null,null,null,null,null,null,null,null,null,1,6,"MASTERY SERIES FLY LINES","MASTERY FRESHWATER FLOATING LINES - BASS BUG TAPER",null,null,null,null,null,null,null,null,null,null,null,null,null,null,null,null,null,null,null,null,null,null,6,"CASES, PACKS, GEAR BAGS AND BOATS"]
[null,null,null,null,null,null,null,null,null,null,null,null,null,null,null,null,null,null,null,null,null,null,null,null,null,null,null,null,null,null,null,null,null,null,null,"PO Number",null,null,null,null,"Units","Purchase",null,null,null,null,null,null,null,null,null,null,null,null,null,null,null,null,null,null,null,null,null,null,null,null,null,null,null,null,null,null,null,null,null,null,null,null,null,null,null,null,null,1,7,"MASTERY SERIES FLY LINES","MASTERY FRESHWATER FLOATING LINES - PIKE TAPER",null,null,null,null,null,null,null,null,null,null,null,null,null,null,null,null,null,null,null,null,null,null,8,"FLY TYING TOOLS AND MATERIALS"]
[null,null,null,null,null,null,null,null,null,null,null,null,null,null,null,null,null,null,null,null,null,null,null,null,null,null,null,null,null,null,null,null,null,null,null,null,{"$f":"SUM(AR12:AR411)","v":0},{"$f":"SUM(AS12:AS411)","v":0},{"$f":"SUM(AT12:AT411)","v":0},{"$f":"SUM(AU12:AU411)","v":0},{"$f":"SUM(AO11:AO1628)","v":0},{"$f":"SUM(AP11:AP1628)","v":0},null,"Ship Date Dollars",null,null,null,null,null,null,"Calculation prototype for detail lines",null,null,null,null,null,null,null,null,null,null,null,null,null,null,null,null,null,null,null,null,null,null,null,null,null,null,null,null,null,null,null,null,1,8,"MASTERY SERIES FLY LINES","MASTERY FRESHWATER FLOATING LINES - STEELHEAD TAPER",null,null,null,null,null,null,null,null,null,null,null,null,null,null,null,null,null,null,null,null,null,null,9,"BOOKS AND VIDEOS"]
[null,null,null,null,null,null,null,null,null,null,null,null,null,null,null,null,null,null,null,null,null,null,null,null,null,null,null,null,null,null,null,null,null,null,null,null,null,null,null,null,null,null,null,null,null,null,null,null,null,null,null,null,null,null,null,null,null,null,null,null,null,null,null,null,null,null,null,null,null,null,null,null,null,null,null,null,null,null,null,null,null,null,null,1,9,"MASTERY SERIES FLY LINES","MASTERY FRESHWATER FLOATING LINES - WINDMASTER"]
["PrimarySeq","Sec Seq","SortSeqn","RecordType","SortKey","PrimaryDesc","SecondaryDesc","Order Number","Flag","Description","Product Number","UPC Number","Pkg Qty","Price Unit","Sugg Retail","Level 1","Level 2","Level 3","Tier 4","Tier 5","Tier 6","Tier 7","Tier 8","Tier 9","Tier 10","Tier 11","Tier 12","Tier 13","Tier 14","Tier 15","Tier 16","Tier 17","Tier 18","Tier 19","Tier 20",{"$f":"INDEX(PriceLevel,'Order Form'!AW2)","v":"Level 1"},"Shipment 1","Shipment 2","Shipment 3","Shipment 4","Qty","Total Purch","Dummy","Ship Date 1","Ship Date 2","Ship Date 3","Ship Date 4","Periods with data",null,null,{"$f":"IF(OR(ISBLANK($L11),$AW$3=0),\" - \",OFFSET(AD11,0,$AW$3,1,1))","v":"Tier 16"},null,null,null,null,{"$f":"IF($AV11=0,\"\",SUM(AZ11:BC11))","v":0},{"$f":"IF($AV11>0,SUM(BG11:BJ11),\"\")","v":{"$error":"#VALUE!"}},null,{"$f":"IF(LEN($AJ11)>0,$AJ11*AZ11,\"\")","v":{"$error":"#VALUE!"}},{"$f":"IF(LEN($AJ11)>0,$AJ11*BA11,\"\")","v":{"$error":"#VALUE!"}},{"$f":"IF(LEN($AJ11)>0,$AJ11*BB11,\"\")","v":{"$error":"#VALUE!"}},{"$f":"IF(LEN($AJ11)>0,$AJ11*BC11,\"\")","v":{"$error":"#VALUE!"}},{"$f":"COUNT(AZ11:BC11)","v":0},{"$f":"IF($AV11<>0,ROW($AV$11),\"\")","v":11},null,null,null,null,null,null,null,null,null,null,null,null,null,null,null,null,null,null,null,1,10,"MASTERY SERIES FLY LINES","MASTERY FRESHWATER FLOATING LINES - SPEY/SALMON TAPER"]
[2,0,null,1,null,"SCIENTIFIC ANGLERS FLY LINES",null,"FREQUENCY SERIES FLY LINES - Workbook pages 16-20",null,null,null,null,null,null,null,null,null,null,null,null,null,null,null,null,null,null,null,null,null,null,null,null,null,null,null,null,null,null,null,null,{"$f":"IF($AV12=0,\"\",SUM(AK12:AN12))","v":""},{"$f":"IF($AV12>0,SUM(AR12:AU12),\"\")","v":""},null,{"$f":"IF(LEN($AJ12)>0,$AJ12*AK12,\"\")","v":""},"","","",{"$f":"COUNT(AK12:AN12)","v":0},{"$f":"IF($AV12<>0,ROW($AV$11),\"\")","v":""}]
[2,62,null,2,"\u0001","SCIENTIFIC ANGLERS FLY LINES","  FREQUENCY - TROUT WITH LOOP - BUCKSKIN  ","FREQUENCY - TROUT WITH LOOP - BUCKSKIN",null,null,null,null,null,null,null,null,null,null,null,null,null,null,null,null,null,null,null,null,null,null,null,null,null,null,null,null,null,null,null,null,"",""]
[2,62,1,3,"Wlw/Org/Willow WF- 2-F","SCIENTIFIC ANGLERS FLY LINES","  FREQUENCY - TROUT WITH LOOP - BUCKSKIN  ",117166,"*","WF- 3-F      ",null,"840309117166","1","EACH",49.95,27.48,24.98,22.48,null,null,null,null,null,null,null,null,null,null,null,null,null,null,null,null,null,{"$f":"IF(OR(ISBLANK($L14),$AW$3=0),\" - \",OFFSET(O14,0,$AW$3,1,1))","v":27.48},null,null,null,null,"","",null,{"$f":"IF(LEN($AJ14)>0,$AJ14*AK14,\"\")","v":0},0,0,0,{"$f":"COUNT(AK14:AN14)","v":0},{"$f":"IF($AV14<>0,ROW($AV$11),\"\")","v":""}]
[2,62,2,3,"Wlw/Org/Willow WF- 3-F","SCIENTIFIC ANGLERS FLY LINES","  FREQUENCY - TROUT WITH LOOP - BUCKSKIN  ",117173,"*","WF- 4-F      ",null,"840309117173","1","EACH",49.95,27.48,24.98,22.48,null,null,null,null,null,null,null,null,null,null,null,null,null,null,null,null,null,{"$f":"IF(OR(ISBLANK($L15),$AW$3=0),\" - \",OFFSET(O15,0,$AW$3,1,1))","v":27.48},null,null,null,null,"","",null,0,0,0,0,0,""]
[2,62,3,3,"Wlw/Org/Willow WF- 4-F","SCIENTIFIC ANGLERS FLY LINES","  FREQUENCY - TROUT WITH LOOP - BUCKSKIN  ",117180,"*","WF- 5-F      ",null,"840309117180","1","EACH",49.95,27.48,24.98,22.48,null,null,null,null,null,null,null,null,null,null,null,null,null,null,null,null,null,{"$f":"IF(OR(ISBLANK($L16),$AW$3=0),\" - \",OFFSET(O16,0,$AW$3,1,1))","v":27.48},null,null,null,null,"","",null,0,0,0,0,0,""]
[2,62,4,3,"Wlw/Org/Willow WF- 5-F","SCIENTIFIC ANGLERS FLY LINES","  FREQUENCY - TROUT WITH LOOP - BUCKSKIN  ",117197,"*","WF- 6-F      ",null,"840309117197","1","EACH",49.95,27.48,24.98,22.48,null,null,null,null,null,null,null,null,null,null,null,null,null,null,null,null,null,{"$f":"IF(OR(ISBLANK($L17),$AW$3=0),\" - \",OFFSET(O17,0,$AW$3,1,1))","v":27.48},null,null,null,null,"","",null,0,0,0,0,0,""]
[2,62,5,3,null,"SCIENTIFIC ANGLERS FLY LINES","  FREQUENCY - TROUT WITH LOOP - BUCKSKIN  ",120388,"*","WF- 7-F   *NEW*      ",null,840309120388,"1","EACH",49.95,27.48,24.98,22.48,null,null,null,null,null,null,null,null,null,null,null,null,null,null,null,null,null,27.48,null,null,null,null,{"$f":"IF($AV18=0,\"\",SUM(AK18:AN18))","v":""},{"$f":"IF($AV18>0,SUM(AR18:AU18),\"\")","v":""},null,{"$f":"IF(LEN($AJ18)>0,$AJ18*AK18,\"\")","v":0},{"$f":"IF(LEN($AJ18)>0,$AJ18*AL18,\"\")","v":0},{"$f":"IF(LEN($AJ18)>0,$AJ18*AM18,\"\")","v":0},{"$f":"IF(LEN($AJ18)>0,$AJ18*AN18,\"\")","v":0},{"$f":"COUNT(AK18:AN18)","v":0}]
[2,62,6,3,null,"SCIENTIFIC ANGLERS FLY LINES","  FREQUENCY - TROUT WITH LOOP - BUCKSKIN  ",121866,"*","WF- 8-F   *NEW*     ",null,840309121866,"1","EACH",49.95,27.48,24.98,22.48,null,null,null,null,null,null,null,null,null,null,null,null,null,null,null,null,null,27.48,null,null,null,null,"","",null,0,0,0,0,0]
[2,62,7,3,null,"SCIENTIFIC ANGLERS FLY LINES","  FREQUENCY - TROUT WITH LOOP - BUCKSKIN  ",121873,"*","WF- 9-F   *NEW*   ",null,840309121873,"1","EACH",49.95,27.48,24.98,22.48,null,null,null,null,null,null,null,null,null,null,null,null,null,null,null,null,null,27.48,null,null,null,null,"","",null,0,0,0,0,0]
[2,63,null,2,"Wlw/Org/Willow WF- 6-F","SCIENTIFIC ANGLERS FLY LINES","  FREQUENCY - BOOST WITH LOOP - WILLOW ","FREQUENCY - BOOST WITH LOOP - WILLOW",null,null,null,null,null,null,null,null,null,null,null,null,null,null,null,null,null,null,null,null,null,null,null,null,null,null,null,null,null,null,null,null,"","",null,"","","","",0,""]
[2,63,1,3,"\u0001","SCIENTIFIC ANGLERS FLY LINES","  FREQUENCY - BOOST WITH LOOP - WILLOW ",117128,null,"WF- 3-F      ",null,"840309117128","1","EACH",49.95,27.48,24.98,22.48,null,null,null,null,null,null,null,null,null,null,null,null,null,null,null,null,null,{"$f":"IF(OR(ISBLANK($L22),$AW$3=0),\" - \",OFFSET(O22,0,$AW$3,1,1))","v":27.48},null,null,null,null,"","",null,0,0,0,0,0,""]
[2,63,2,3,"Pale/Optic Grn WF-5-F/I","SCIENTIFIC ANGLERS FLY LINES","  FREQUENCY - BOOST WITH LOOP - WILLOW ",117135,null,"WF- 4-F      ",null,"840309117135","1","EACH",49.95,27.48,24.98,22.48,null,null,null,null,null,null,null,null,null,null,null,null,null,null,null,null,null,27.48,null,null,null,null,"","",null,0,0,0,0,0,""]
[2,63,3,3,"Pale/Optic Grn WF-6-F/I","SCIENTIFIC ANGLERS FLY LINES","  FREQUENCY - BOOST WITH LOOP - WILLOW ",117142,null,"WF- 5-F      ",null,"840309117142","1","EACH",49.95,27.48,24.98,22.48,null,null,null,null,null,null,null,null,null,null,null,null,null,null,null,null,null,27.48,null,null,null,null,"","",null,0,0,0,0,0,""]
[2,63,4,3,"Pale/Optic Grn WF-7-F/I","SCIENTIFIC ANGLERS FLY LINES","  FREQUENCY - BOOST WITH LOOP - WILLOW ",117159,null,"WF- 6-F      ",null,"840309117159","1","EACH",49.95,27.48,24.98,22.48,null,null,null,null,null,null,null,null,null,null,null,null,null,null,null,null,null,27.48,null,null,null,null,"","",null,{"$f":"IF(LEN($AJ25)>0,$AJ25*AK25,\"\")","v":0},{"$f":"IF(LEN($AJ25)>0,$AJ25*AL25,\"\")","v":0},{"$f":"IF(LEN($AJ25)>0,$AJ25*AM25,\"\")","v":0},{"$f":"IF(LEN($AJ25)>0,$AJ25*AN25,\"\")","v":0},0,""]
[2,63,5,3,null,"SCIENTIFIC ANGLERS FLY LINES","  FREQUENCY - BOOST WITH LOOP - WILLOW ",119979,null,"WF- 7-F   *NEW*      ",null,840309119979,"1","EACH",49.95,27.48,24.98,22.48,null,null,null,null,null,null,null,null,null,null,null,null,null,null,null,null,null,27.48,null,null,null,null,{"$f":"IF($AV26=0,\"\",SUM(AK26:AN26))","v":""},{"$f":"IF($AV26>0,SUM(AR26:AU26),\"\")","v":""},null,{"$f":"IF(LEN($AJ26)>0,$AJ26*AK26,\"\")","v":0},{"$f":"IF(LEN($AJ26)>0,$AJ26*AL26,\"\")","v":0},{"$f":"IF(LEN($AJ26)>0,$AJ26*AM26,\"\")","v":0},{"$f":"IF(LEN($AJ26)>0,$AJ26*AN26,\"\")","v":0},0,""]
[2,63,6,3,null,"SCIENTIFIC ANGLERS FLY LINES","  FREQUENCY - BOOST WITH LOOP - WILLOW ",119986,null,"WF- 8-F   *NEW*     ",null,840309119986,"1","EACH",49.95,27.48,24.98,22.48,null,null,null,null,null,null,null,null,null,null,null,null,null,null,null,null,null,27.48,null,null,null,null,"","",null,0,0,0,0,0,""]
[2,63,7,3,null,"SCIENTIFIC ANGLERS FLY LINES","  FREQUENCY - BOOST WITH LOOP - WILLOW ",119993,null,"WF- 9-F   *NEW* ",null,840309119993,"1","EACH",49.95,27.48,24.98,22.48,null,null,null,null,null,null,null,null,null,null,null,null,null,null,null,null,null,27.48,null,null,null,null,"","",null,{"$f":"IF(LEN($AJ28)>0,$AJ28*AK28,\"\")","v":0},{"$f":"IF(LEN($AJ28)>0,$AJ28*AL28,\"\")","v":0},{"$f":"IF(LEN($AJ28)>0,$AJ28*AM28,\"\")","v":0},{"$f":"IF(LEN($AJ28)>0,$AJ28*AN28,\"\")","v":0},0,""]
[2,64,null,2,"Pale/Optic Grn WF-8-F/I","SCIENTIFIC ANGLERS FLY LINES","  FREQUENCY - MAGNUM WITH LOOP - OPTIC GREEN  ","FREQUENCY - MAGNUM WITH LOOP - MIST GREEN",null,null,null,null,null,null,null,null,null,null,null,null,null,null,null,null,null,null,null,null,null,null,null,null,null,null,null,null,null,null,null,null,"",""]
[2,64,1,3,"\u0001","SCIENTIFIC ANGLERS FLY LINES","  FREQUENCY - MAGNUM WITH LOOP - OPTIC GREEN  ",117203,null,"WF- 5-F   ",null,"840309117203","1","EACH",49.95,27.48,24.98,22.48,null,null,null,null,null,null,null,null,null,null,null,null,null,null,null,null,null,{"$f":"IF(OR(ISBLANK($L30),$AW$3=0),\" - \",OFFSET(O30,0,$AW$3,1,1))","v":27.48},null,null,null,null,"","",null,0,0,0,0,{"$f":"COUNT(AK30:AN30)","v":0},{"$f":"IF($AV30<>0,ROW($AV$11),\"\")","v":""}]
[2,64,2,3,"\u0001","SCIENTIFIC ANGLERS FLY LINES","  FREQUENCY - MAGNUM WITH LOOP - OPTIC GREEN  ",117210,null,"WF- 6-F   ",null,"840309117210","1","EACH",49.95,27.48,24.98,22.48,null,null,null,null,null,null,null,null,null,null,null,null,null,null,null,null,null,{"$f":"IF(OR(ISBLANK($L31),$AW$3=0),\" - \",OFFSET(O31,0,$AW$3,1,1))","v":27.48},null,null,null,null,"","",null,0,0,0,0,0,""]
[2,64,3,3,"Orange 280 Grain","SCIENTIFIC ANGLERS FLY LINES","  FREQUENCY - MAGNUM WITH LOOP - OPTIC GREEN  ",117227,null,"WF- 7-F       ",null,"840309117227","1","EACH",49.95,27.48,24.98,22.48,null,null,null,null,null,null,null,null,null,null,null,null,null,null,null,null,null,{"$f":"IF(OR(ISBLANK($L32),$AW$3=0),\" - \",OFFSET(O32,0,$AW$3,1,1))","v":27.48},null,null,null,null,"","",null,0,0,0,0,0,""]
[2,64,4,3,"Orange 320 Grain","SCIENTIFIC ANGLERS FLY LINES","  FREQUENCY - MAGNUM WITH LOOP - OPTIC GREEN  ",117234,null,"WF- 8-F     ",null,"840309117234","1","EACH",49.95,27.48,24.98,22.48,null,null,null,null,null,null,null,null,null,null,null,null,null,null,null,null,null,{"$f":"IF(OR(ISBLANK($L33),$AW$3=0),\" - \",OFFSET(O33,0,$AW$3,1,1))","v":27.48},null,null,null,null,{"$f":"IF($AV33=0,\"\",SUM(AK33:AN33))","v":""},{"$f":"IF($AV33>0,SUM(AR33:AU33),\"\")","v":""},null,{"$f":"IF(LEN($AJ33)>0,$AJ33*AK33,\"\")","v":0},{"$f":"IF(LEN($AJ33)>0,$AJ33*AL33,\"\")","v":0},{"$f":"IF(LEN($AJ33)>0,$AJ33*AM33,\"\")","v":0},{"$f":"IF(LEN($AJ33)>0,$AJ33*AN33,\"\")","v":0},{"$f":"COUNT(AK33:AN33)","v":0},""]
[2,64,5,3,"Orange 320 Grain","SCIENTIFIC ANGLERS FLY LINES","  FREQUENCY - MAGNUM WITH LOOP - OPTIC GREEN  ",123860,null,"WF- 9-F   *NEW*",null,840309123860,"1","EACH",49.95,27.48,24.98,22.48,null,null,null,null,null,null,null,null,null,null,null,null,null,null,null,null,null,{"$f":"IF(OR(ISBLANK($L34),$AW$3=0),\" - \",OFFSET(O34,0,$AW$3,1,1))","v":27.48},null,null,null,null,"","",null,0,0,0,0,0,""]
[2,65,null,2,"Orange 360 Grain","SCIENTIFIC ANGLERS FLY LINES","FREQUENCY - SINK TIP TYPE III - OPTIC YELLOW/DK GREEN","FREQUENCY - SINK TIP TYPE III - YELLOW / GREEN",null,null,null,null,null,null,null,null,null,null,null,null,null,null,null,null,null,null,null,null,null,null,null,null,null,null,null,null,null,null,null,null,"",""]
[2,65,1,3,"Orange 400 Grain","SCIENTIFIC ANGLERS FLY LINES","FREQUENCY - SINK TIP TYPE III - OPTIC YELLOW/DK GREEN",117241,null,"WF- 5-F/S      ",null,"840309117241","1","EACH",49.95,27.48,24.98,22.48,null,null,null,null,null,null,null,null,null,null,null,null,null,null,null,null,null,{"$f":"IF(OR(ISBLANK($L36),$AW$3=0),\" - \",OFFSET(O36,0,$AW$3,1,1))","v":27.48},null,null,null,null,"","",null,0,0,0,0,0,""]
[2,65,2,3,"Orange 440 Grain","SCIENTIFIC ANGLERS FLY LINES","FREQUENCY - SINK TIP TYPE III - OPTIC YELLOW/DK GREEN",117258,null,"WF- 6-F/S      ",null,"840309117258","1","EACH",49.95,27.48,24.98,22.48,null,null,null,null,null,null,null,null,null,null,null,null,null,null,null,null,null,{"$f":"IF(OR(ISBLANK($L37),$AW$3=0),\" - \",OFFSET(O37,0,$AW$3,1,1))","v":27.48},null,null,null,null,"","",null,{"$f":"IF(LEN($AJ37)>0,$AJ37*AK37,\"\")","v":0},0,0,0,0,""]
[2,65,3,3,"Orange 480 Grain","SCIENTIFIC ANGLERS FLY LINES","FREQUENCY - SINK TIP TYPE III - OPTIC YELLOW/DK GREEN",117265,null,"WF- 7-F/S      ",null,"840309117265","1","EACH",49.95,27.48,24.98,22.48,null,null,null,null,null,null,null,null,null,null,null,null,null,null,null,null,null,{"$f":"IF(OR(ISBLANK($L38),$AW$3=0),\" - \",OFFSET(O38,0,$AW$3,1,1))","v":27.48},null,null,null,null,"","",null,0,0,0,0,0,""]
[2,65,4,3,"Orange 520 Grain","SCIENTIFIC ANGLERS FLY LINES","FREQUENCY - SINK TIP TYPE III - OPTIC YELLOW/DK GREEN",117272,null,"WF- 8-F/S      ",null,"840309117272","1","EACH",49.95,27.48,24.98,22.48,null,null,null,null,null,null,null,null,null,null,null,null,null,null,null,null,null,{"$f":"IF(OR(ISBLANK($L39),$AW$3=0),\" - \",OFFSET(O39,0,$AW$3,1,1))","v":27.48},null,null,null,null,{"$f":"IF($AV39=0,\"\",SUM(AK39:AN39))","v":""},{"$f":"IF($AV39>0,SUM(AR39:AU39),\"\")","v":""},null,{"$f":"IF(LEN($AJ39)>0,$AJ39*AK39,\"\")","v":0},{"$f":"IF(LEN($AJ39)>0,$AJ39*AL39,\"\")","v":0},{"$f":"IF(LEN($AJ39)>0,$AJ39*AM39,\"\")","v":0},{"$f":"IF(LEN($AJ39)>0,$AJ39*AN39,\"\")","v":0},{"$f":"COUNT(AK39:AN39)","v":0},""]
[2,65,5,3,"Orange 520 Grain","SCIENTIFIC ANGLERS FLY LINES","FREQUENCY - SINK TIP TYPE III - OPTIC YELLOW/DK GREEN",123617,null,"WF-9-F/S   *NEW*",null,840309123617,"1","EACH",49.95,27.48,24.98,22.48,null,null,null,null,null,null,null,null,null,null,null,null,null,null,null,null,null,{"$f":"IF(OR(ISBLANK($L40),$AW$3=0),\" - \",OFFSET(O40,0,$AW$3,1,1))","v":27.48},null,null,null,null,"","",null,0,0,0,0,0,""]
[2,66,null,2,"Orange 560 Grain","SCIENTIFIC ANGLERS FLY LINES","  FREQUENCY - FULL SINKING - INTERMEDIATE/ I - ATMOSPHERE BLUE ","FREQUENCY - FULL SINKING - INTERMEDIATE/ I - ATMOSPHERE BLUE",null,null,null,null,null,null,null,null,null,null,null,null,null,null,null,null,null,null,null,null,null,null,null,null,null,null,null,null,null,null,null,null,"",""]
[2,66,1,3,"Orange 600 Grain","SCIENTIFIC ANGLERS FLY LINES","  FREQUENCY - FULL SINKING - INTERMEDIATE/ I - ATMOSPHERE BLUE ",120555,null,"WF- 5-S      ",null,"840309120555","1","EACH",49.95,27.48,24.98,22.48,null,null,null,null,null,null,null,null,null,null,null,null,null,null,null,null,null,{"$f":"IF(OR(ISBLANK($L42),$AW$3=0),\" - \",OFFSET(O42,0,$AW$3,1,1))","v":27.48},null,null,null,null,"","",null,0,0,0,0,0,""]
[2,66,2,3,"Orange 640 Grain","SCIENTIFIC ANGLERS FLY LINES","  FREQUENCY - FULL SINKING - INTERMEDIATE/ I - ATMOSPHERE BLUE ",120562,null,"WF- 6-S      ",null,"840309120562","1","EACH",49.95,27.48,24.98,22.48,null,null,null,null,null,null,null,null,null,null,null,null,null,null,null,null,null,{"$f":"IF(OR(ISBLANK($L43),$AW$3=0),\" - \",OFFSET(O43,0,$AW$3,1,1))","v":27.48},null,null,null,null,"","",null,0,0,0,0,0,""]
[2,66,3,3,"Orange 680 Grain","SCIENTIFIC ANGLERS FLY LINES","  FREQUENCY - FULL SINKING - INTERMEDIATE/ I - ATMOSPHERE BLUE ",120579,null,"WF- 7-S      ",null,"840309120579","1","EACH",49.95,27.48,24.98,22.48,null,null,null,null,null,null,null,null,null,null,null,null,null,null,null,null,null,{"$f":"IF(OR(ISBLANK($L44),$AW$3=0),\" - \",OFFSET(O44,0,$AW$3,1,1))","v":27.48},null,null,null,null,"","",null,0,0,0,0,0,""]
[2,66,4,3,"Orange 720 Grain","SCIENTIFIC ANGLERS FLY LINES","  FREQUENCY - FULL SINKING - INTERMEDIATE/ I - ATMOSPHERE BLUE ",120586,null,"WF- 8-S      ",null,"840309120586","1","EACH",49.95,27.48,24.98,22.48,null,null,null,null,null,null,null,null,null,null,null,null,null,null,null,null,null,{"$f":"IF(OR(ISBLANK($L45),$AW$3=0),\" - \",OFFSET(O45,0,$AW$3,1,1))","v":27.48},null,null,null,null,"","",null,0,0,0,0,0,""]
[2,66,5,3,"Orange 720 Grain","SCIENTIFIC ANGLERS FLY LINES","  FREQUENCY - FULL SINKING - INTERMEDIATE/ I - ATMOSPHERE BLUE ",103497,null,"WF-9-S   *NEW*",null,840309103497,"1","EACH",49.95,27.48,24.98,22.48,null,null,null,null,null,null,null,null,null,null,null,null,null,null,null,null,null,{"$f":"IF(OR(ISBLANK($L46),$AW$3=0),\" - \",OFFSET(O46,0,$AW$3,1,1))","v":27.48},null,null,null,null,{"$f":"IF($AV46=0,\"\",SUM(AK46:AN46))","v":""},{"$f":"IF($AV46>0,SUM(AR46:AU46),\"\")","v":""},null,{"$f":"IF(LEN($AJ46)>0,$AJ46*AK46,\"\")","v":0},{"$f":"IF(LEN($AJ46)>0,$AJ46*AL46,\"\")","v":0},{"$f":"IF(LEN($AJ46)>0,$AJ46*AM46,\"\")","v":0},{"$f":"IF(LEN($AJ46)>0,$AJ46*AN46,\"\")","v":0},{"$f":"COUNT(AK46:AN46)","v":0},""]
[2,67,null,2,"Orange 760 Grain","SCIENTIFIC ANGLERS FLY LINES","FREQUENCY - FULL SINKING - TYPE III - DK GRAY","FREQUENCY - FULL SINKING - TYPE III - DK GREEN",null,null,null,null,null,null,null,null,null,null,null,null,null,null,null,null,null,null,null,null,null,null,null,null,null,null,null,null,null,null,null,null,"",""]
[2,67,1,3,"Orange 800 Grain","SCIENTIFIC ANGLERS FLY LINES","FREQUENCY - FULL SINKING - TYPE III - DK GRAY",122382,null,"WF- 5-S      ",null,840309122382,"1","EACH",49.95,27.48,24.98,22.48,null,null,null,null,null,null,null,null,null,null,null,null,null,null,null,null,null,{"$f":"IF(OR(ISBLANK($L48),$AW$3=0),\" - \",OFFSET(O48,0,$AW$3,1,1))","v":27.48},null,null,null,null,"","",null,{"$f":"IF(LEN($AJ48)>0,$AJ48*AK48,\"\")","v":0},{"$f":"IF(LEN($AJ48)>0,$AJ48*AL48,\"\")","v":0},{"$f":"IF(LEN($AJ48)>0,$AJ48*AM48,\"\")","v":0},{"$f":"IF(LEN($AJ48)>0,$AJ48*AN48,\"\")","v":0},{"$f":"COUNT(AK48:AN48)","v":0},""]
[2,67,2,3,"\u0001","SCIENTIFIC ANGLERS FLY LINES","FREQUENCY - FULL SINKING - TYPE III - DK GRAY",122399,null,"WF- 6-S      ",null,840309122399,"1","EACH",49.95,27.48,24.98,22.48,null,null,null,null,null,null,null,null,null,null,null,null,null,null,null,null,null,{"$f":"IF(OR(ISBLANK($L49),$AW$3=0),\" - \",OFFSET(O49,0,$AW$3,1,1))","v":27.48},null,null,null,null,"","",null,0,0,0,0,{"$f":"COUNT(AK49:AN49)","v":0},""]
[2,67,3,3,"Blue 400 grain","SCIENTIFIC ANGLERS FLY LINES","FREQUENCY - FULL SINKING - TYPE III - DK GRAY",122405,null,"WF- 7-S      ",null,840309122405,"1","EACH",49.95,27.48,24.98,22.48,null,null,null,null,null,null,null,null,null,null,null,null,null,null,null,null,null,{"$f":"IF(OR(ISBLANK($L50),$AW$3=0),\" - \",OFFSET(O50,0,$AW$3,1,1))","v":27.48},null,null,null,null,"","",null,0,0,0,0,{"$f":"COUNT(AK50:AN50)","v":0},{"$f":"IF($AV50<>0,ROW($AV$11),\"\")","v":""}]
[2,67,4,3,"Blue 440 grain","SCIENTIFIC ANGLERS FLY LINES","FREQUENCY - FULL SINKING - TYPE III - DK GRAY",122412,null,"WF- 8-S      ",null,840309122412,"1","EACH",49.95,27.48,24.98,22.48,null,null,null,null,null,null,null,null,null,null,null,null,null,null,null,null,null,{"$f":"IF(OR(ISBLANK($L51),$AW$3=0),\" - \",OFFSET(O51,0,$AW$3,1,1))","v":27.48},null,null,null,null,{"$f":"IF($AV51=0,\"\",SUM(AK51:AN51))","v":""},{"$f":"IF($AV51>0,SUM(AR51:AU51),\"\")","v":""},null,{"$f":"IF(LEN($AJ51)>0,$AJ51*AK51,\"\")","v":0},{"$f":"IF(LEN($AJ51)>0,$AJ51*AL51,\"\")","v":0},{"$f":"IF(LEN($AJ51)>0,$AJ51*AM51,\"\")","v":0},{"$f":"IF(LEN($AJ51)>0,$AJ51*AN51,\"\")","v":0},{"$f":"COUNT(AK51:AN51)","v":0},""]
[2,67,5,3,"Blue 440 grain","SCIENTIFIC ANGLERS FLY LINES","FREQUENCY - FULL SINKING - TYPE III - DK GRAY",102803,null,"WF-9-S   *NEW*",null,840309102803,"1","EACH",49.95,27.48,24.98,22.48,null,null,null,null,null,null,null,null,null,null,null,null,null,null,null,null,null,{"$f":"IF(OR(ISBLANK($L52),$AW$3=0),\" - \",OFFSET(O52,0,$AW$3,1,1))","v":27.48},null,null,null,null,"","",null,0,0,0,0,0,""]
[2,68,null,2,"Orange 760 Grain","SCIENTIFIC ANGLERS FLY LINES","FREQUENCY - FULL SINKING - TYPE VI - DK GRAY","FREQUENCY - FULL SINKING - TYPE VI - DK GRAY",null,null,null,null,null,null,null,null,null,null,null,null,null,null,null,null,null,null,null,null,null,null,null,null,null,null,null,null,null,null,null,null,"",""]
[2,68,1,3,"Orange 800 Grain","SCIENTIFIC ANGLERS FLY LINES","FREQUENCY - FULL SINKING - TYPE VI - DK GRAY",117289,null,"WF- 5-S      ",null,"840309117289","1","EACH",49.95,27.48,24.98,22.48,null,null,null,null,null,null,null,null,null,null,null,null,null,null,null,null,null,{"$f":"IF(OR(ISBLANK($L54),$AW$3=0),\" - \",OFFSET(O54,0,$AW$3,1,1))","v":27.48},null,null,null,null,"","",null,0,0,0,0,0,""]
[2,68,2,3,"\u0001","SCIENTIFIC ANGLERS FLY LINES","FREQUENCY - FULL SINKING - TYPE VI - DK GRAY",117296,null,"WF- 6-S      ",null,"840309117296","1","EACH",49.95,27.48,24.98,22.48,null,null,null,null,null,null,null,null,null,null,null,null,null,null,null,null,null,{"$f":"IF(OR(ISBLANK($L55),$AW$3=0),\" - \",OFFSET(O55,0,$AW$3,1,1))","v":27.48},null,null,null,null,"","",null,0,0,0,0,{"$f":"COUNT(AK55:AN55)","v":0},""]
[2,68,3,3,"Blue 400 grain","SCIENTIFIC ANGLERS FLY LINES","FREQUENCY - FULL SINKING - TYPE VI - DK GRAY",117302,null,"WF- 7-S      ",null,"840309117302","1","EACH",49.95,27.48,24.98,22.48,null,null,null,null,null,null,null,null,null,null,null,null,null,null,null,null,null,{"$f":"IF(OR(ISBLANK($L56),$AW$3=0),\" - \",OFFSET(O56,0,$AW$3,1,1))","v":27.48},null,null,null,null,"","",null,0,0,0,0,{"$f":"COUNT(AK56:AN56)","v":0},{"$f":"IF($AV56<>0,ROW($AV$11),\"\")","v":""}]
[2,68,4,3,"Blue 440 grain","SCIENTIFIC ANGLERS FLY LINES","FREQUENCY - FULL SINKING - TYPE VI - DK GRAY",111461,null,"WF- 8-S      ",null,840309111461,"1","EACH",49.95,27.48,24.98,22.48,null,null,null,null,null,null,null,null,null,null,null,null,null,null,null,null,null,{"$f":"IF(OR(ISBLANK($L57),$AW$3=0),\" - \",OFFSET(O57,0,$AW$3,1,1))","v":27.48},null,null,null,null,{"$f":"IF($AV57=0,\"\",SUM(AK57:AN57))","v":""},{"$f":"IF($AV57>0,SUM(AR57:AU57),\"\")","v":""},null,{"$f":"IF(LEN($AJ57)>0,$AJ57*AK57,\"\")","v":0},{"$f":"IF(LEN($AJ57)>0,$AJ57*AL57,\"\")","v":0},{"$f":"IF(LEN($AJ57)>0,$AJ57*AM57,\"\")","v":0},{"$f":"IF(LEN($AJ57)>0,$AJ57*AN57,\"\")","v":0},{"$f":"COUNT(AK57:AN57)","v":0},""]
[2,68,5,3,"Blue 440 grain","SCIENTIFIC ANGLERS FLY LINES","FREQUENCY - FULL SINKING - TYPE VI - DK GRAY",130630,null,"WF-9-S   *NEW*",null,840309130630,"1","EACH",49.95,27.48,24.98,22.48,null,null,null,null,null,null,null,null,null,null,null,null,null,null,null,null,null,{"$f":"IF(OR(ISBLANK($L58),$AW$3=0),\" - \",OFFSET(O58,0,$AW$3,1,1))","v":27.48},null,null,null,null,"","",null,0,0,0,0,0,""]
[2,0,null,1,null,"SCIENTIFIC ANGLERS FLY LINES",null,"AIRCEL & WETCEL SERIES FLY LINES - Workbook Pages 52-53",null,null,null,null,null,null,null,null,null,null,null,null,null,null,null,null,null,null,null,null,null,null,null,null,null,null,null,null,null,null,null,null,"",""]
[2,69,null,2,"Blue 560 grain","SCIENTIFIC ANGLERS FLY LINES","  AIR CEL(TM) - SPECIES SPECIFIC SERIES  - FLOATING LINES","AIR CEL(TM) - SPECIES SPECIFIC SERIES  - FLOATING LINES",null,null,null,null,null,null,null,null,null,null,null,null,null,null,null,null,null,null,null,null,null,null,null,null,null,null,null,null,null,null,null,null,"",""]
[2,69,1,3,"Blue 600 grain","SCIENTIFIC ANGLERS FLY LINES","  AIR CEL(TM) - SPECIES SPECIFIC SERIES  - FLOATING LINES",112741,null,"Trout 5-6 - Green      ",null,840309112741,"1","EACH",29.95,16.47,14.98,13.48,null,null,null,null,null,null,null,null,null,null,null,null,null,null,null,null,null,{"$f":"IF(OR(ISBLANK($L61),$AW$3=0),\" - \",OFFSET(O61,0,$AW$3,1,1))","v":16.47},null,null,null,null,"","",null,{"$f":"IF(LEN($AJ61)>0,$AJ61*AK61,\"\")","v":0},0,0,0,0,""]
[2,69,2,3,"Blue 640 grain","SCIENTIFIC ANGLERS FLY LINES","  AIR CEL(TM) - SPECIES SPECIFIC SERIES  - FLOATING LINES",112758,null,"Trout 6-7 - Green      ",null,840309112758,"1","EACH",29.95,16.47,14.98,13.48,null,null,null,null,null,null,null,null,null,null,null,null,null,null,null,null,null,{"$f":"IF(OR(ISBLANK($L62),$AW$3=0),\" - \",OFFSET(O62,0,$AW$3,1,1))","v":16.47},null,null,null,null,"","",null,0,0,0,0,0,""]
[2,69,3,3,"Blue 680 grain","SCIENTIFIC ANGLERS FLY LINES","  AIR CEL(TM) - SPECIES SPECIFIC SERIES  - FLOATING LINES",112734,null,"Panfish - Orange      ",null,840309112734,"1","EACH",29.95,16.47,14.98,13.48,null,null,null,null,null,null,null,null,null,null,null,null,null,null,null,null,null,{"$f":"IF(OR(ISBLANK($L63),$AW$3=0),\" - \",OFFSET(O63,0,$AW$3,1,1))","v":16.47},null,null,null,null,"","",null,0,0,0,0,0,""]
[2,69,4,3,"\u0001","SCIENTIFIC ANGLERS FLY LINES","  AIR CEL(TM) - SPECIES SPECIFIC SERIES  - FLOATING LINES",112727,null,"Bass - Yellow      ",null,840309112727,"1","EACH",29.95,16.47,14.98,13.48,null,null,null,null,null,null,null,null,null,null,null,null,null,null,null,null,null,{"$f":"IF(OR(ISBLANK($L64),$AW$3=0),\" - \",OFFSET(O64,0,$AW$3,1,1))","v":16.47},null,null,null,null,"","",null,0,0,0,0,0,""]
[2,70,null,2,"Orange 400 Grain","SCIENTIFIC ANGLERS FLY LINES","AIR CEL(TM) - FLOATING LINES - YELLOW","AIR CEL(TM) - FLOATING LINES - YELLOW   *NEW*",null,null,null,null,null,null,null,null,null,null,null,null,null,null,null,null,null,null,null,null,null,null,null,null,null,null,null,null,null,null,null,null,"",""]
[2,70,1,3,"Orange 440 Grain","SCIENTIFIC ANGLERS FLY LINES","AIR CEL(TM) - FLOATING LINES - YELLOW",103800,null,"WF- 4-F      ",null,840309103800,"1","EACH",29.95,16.47,14.98,13.48,null,null,null,null,null,null,null,null,null,null,null,null,null,null,null,null,null,{"$f":"IF(OR(ISBLANK($L66),$AW$3=0),\" - \",OFFSET(O66,0,$AW$3,1,1))","v":16.47},null,null,null,null,"","",null,0,0,0,0,0,""]
[2,70,2,3,"Orange 480 Grain","SCIENTIFIC ANGLERS FLY LINES","AIR CEL(TM) - FLOATING LINES - YELLOW",103817,null,"WF- 5-F      ",null,840309103817,"1","EACH",29.95,16.47,14.98,13.48,null,null,null,null,null,null,null,null,null,null,null,null,null,null,null,null,null,16.47,null,null,null,null,"","",null,0,0,0,0,0,""]
[2,70,3,3,"Orange 520 Grain","SCIENTIFIC ANGLERS FLY LINES","AIR CEL(TM) - FLOATING LINES - YELLOW",103824,null,"WF- 6-F      ",null,840309103824,"1","EACH",29.95,16.47,14.98,13.48,null,null,null,null,null,null,null,null,null,null,null,null,null,null,null,null,null,16.47,null,null,null,null,"","",null,0,0,0,0,0,""]
[2,70,4,3,"Orange 560 Grain","SCIENTIFIC ANGLERS FLY LINES","AIR CEL(TM) - FLOATING LINES - YELLOW",103831,null,"WF- 7-F      ",null,840309103831,"1","EACH",29.95,16.47,14.98,13.48,null,null,null,null,null,null,null,null,null,null,null,null,null,null,null,null,null,16.47,null,null,null,null,"","",null,0,0,0,0,0,""]
[2,70,5,3,"Orange 600 Grain","SCIENTIFIC ANGLERS FLY LINES","AIR CEL(TM) - FLOATING LINES - YELLOW",103848,null,"WF- 8-F      ",null,840309103848,"1","EACH",29.95,16.47,14.98,13.48,null,null,null,null,null,null,null,null,null,null,null,null,null,null,null,null,null,16.47,null,null,null,null,"","",null,0,0,0,0,0,""]
[2,70,6,3,"Orange 640 Grain","SCIENTIFIC ANGLERS FLY LINES","AIR CEL(TM) - FLOATING LINES - YELLOW",103855,null,"WF- 9-F      ",null,840309103855,"1","EACH",29.95,16.47,14.98,13.48,null,null,null,null,null,null,null,null,null,null,null,null,null,null,null,null,null,16.47,null,null,null,null,"","",null,0,0,0,0,0,""]
[2,71,8,2,"Orange 680 Grain","SCIENTIFIC ANGLERS FLY LINES","  AIR CEL(TM) - FLOATING LINES - LEVEL - LIGHT GREEN ","AIR CEL(TM) - FLOATING LINES - LEVEL - LIGHT GREEN - Item Stocked but not in Workbook",null,null,null,null,null,null,null,null,null,null,null,null,null,null,null,null,null,null,null,null,null,null,null,null,null,null,null,null,null,null,null,null,"",""]
[2,71,1,3,"\u0001","SCIENTIFIC ANGLERS FLY LINES","  AIR CEL(TM) - FLOATING LINES - LEVEL - LIGHT GREEN ","153143",null,"L- 5-F      ",null,"840309102384","1","EACH",21.95,12.0725,10.975,9.8774999999999995,null,null,null,null,null,null,null,null,null,null,null,null,null,null,null,null,null,{"$f":"IF(OR(ISBLANK($L73),$AW$3=0),\" - \",OFFSET(O73,0,$AW$3,1,1))","v":12.0725},null,null,null,null,"","",null,0,0,0,0,{"$f":"COUNT(AK73:AN73)","v":0},{"$f":"IF($AV73<>0,ROW($AV$11),\"\")","v":""}]
[2,71,2,3,"Blue 320 Grain","SCIENTIFIC ANGLERS FLY LINES","  AIR CEL(TM) - FLOATING LINES - LEVEL - LIGHT GREEN ","153150",null,"L- 6-F      ",null,"840309102391","1","EACH",21.95,12.0725,10.975,9.8774999999999995,null,null,null,null,null,null,null,null,null,null,null,null,null,null,null,null,null,{"$f":"IF(OR(ISBLANK($L74),$AW$3=0),\" - \",OFFSET(O74,0,$AW$3,1,1))","v":12.0725},null,null,null,null,"","",null,0,0,0,0,0,""]
[2,71,3,3,"Blue 360 Grain","SCIENTIFIC ANGLERS FLY LINES","  AIR CEL(TM) - FLOATING LINES - LEVEL - LIGHT GREEN ","153167",null,"L- 7-F      ",null,"840309102360","1","EACH",21.95,12.0725,10.975,9.8774999999999995,null,null,null,null,null,null,null,null,null,null,null,null,null,null,null,null,null,{"$f":"IF(OR(ISBLANK($L75),$AW$3=0),\" - \",OFFSET(O75,0,$AW$3,1,1))","v":12.0725},null,null,null,null,"","",null,0,0,0,0,0,""]
[2,71,4,3,"Blue 400 Grain","SCIENTIFIC ANGLERS FLY LINES","  AIR CEL(TM) - FLOATING LINES - LEVEL - LIGHT GREEN ","153174",null,"L- 8-F      ",null,"840309102377","1","EACH",21.95,12.0725,10.975,9.8774999999999995,null,null,null,null,null,null,null,null,null,null,null,null,null,null,null,null,null,{"$f":"IF(OR(ISBLANK($L76),$AW$3=0),\" - \",OFFSET(O76,0,$AW$3,1,1))","v":12.0725},null,null,null,null,"","",null,0,0,0,0,0,""]
[2,72,null,2,"Blue 440 Grain","SCIENTIFIC ANGLERS FLY LINES","WETCEL GENERAL PURPOSE - SINKING LINES - CLEAR INTERMEDIATE","WETCEL GENERAL PURPOSE - SINKING LINES - CLEAR INTERMEDIATE   *NEW*",null,null,null,null,null,null,null,null,null,null,null,null,null,null,null,null,null,null,null,null,null,null,null,null,null,null,null,null,null,null,null,null,"",""]
[2,72,1,3,"Blue 480 Grain","SCIENTIFIC ANGLERS FLY LINES","WETCEL GENERAL PURPOSE - SINKING LINES - CLEAR INTERMEDIATE",112222,null,"WF- 5-S      ",null,840309112222,"1","EACH",37.950000000000003,20.872500000000002,18.975000000000001,17.077500000000001,null,null,null,null,null,null,null,null,null,null,null,null,null,null,null,null,null,{"$f":"IF(OR(ISBLANK($L78),$AW$3=0),\" - \",OFFSET(O78,0,$AW$3,1,1))","v":20.872500000000002},null,null,null,null,{"$f":"IF($AV78=0,\"\",SUM(AK78:AN78))","v":""},{"$f":"IF($AV78>0,SUM(AR78:AU78),\"\")","v":""},null,{"$f":"IF(LEN($AJ78)>0,$AJ78*AK78,\"\")","v":0},0,0,0,0,""]
[2,72,2,3,"Blue 520 Grain","SCIENTIFIC ANGLERS FLY LINES","WETCEL GENERAL PURPOSE - SINKING LINES - CLEAR INTERMEDIATE",112239,null,"WF- 6-S      ",null,840309112239,"1","EACH",37.950000000000003,20.872500000000002,18.975000000000001,17.077500000000001,null,null,null,null,null,null,null,null,null,null,null,null,null,null,null,null,null,{"$f":"IF(OR(ISBLANK($L79),$AW$3=0),\" - \",OFFSET(O79,0,$AW$3,1,1))","v":20.872500000000002},null,null,null,null,"","",null,0,0,0,0,0,""]
[2,72,3,3,"Blue 280 Grain","SCIENTIFIC ANGLERS FLY LINES","WETCEL GENERAL PURPOSE - SINKING LINES - CLEAR INTERMEDIATE",112246,null,"WF- 7-S      ",null,840309112246,"1","EACH",37.950000000000003,20.872500000000002,18.975000000000001,17.077500000000001,null,null,null,null,null,null,null,null,null,null,null,null,null,null,null,null,null,{"$f":"IF(OR(ISBLANK($L80),$AW$3=0),\" - \",OFFSET(O80,0,$AW$3,1,1))","v":20.872500000000002},null,null,null,null,"","",null,0,0,0,0,0,""]
[2,72,4,3,"Blue 560 Grain","SCIENTIFIC ANGLERS FLY LINES","WETCEL GENERAL PURPOSE - SINKING LINES - CLEAR INTERMEDIATE",112253,null,"WF- 8-S      ",null,840309112253,"1","EACH",37.950000000000003,20.872500000000002,18.975000000000001,17.077500000000001,null,null,null,null,null,null,null,null,null,null,null,null,null,null,null,null,null,{"$f":"IF(OR(ISBLANK($L81),$AW$3=0),\" - \",OFFSET(O81,0,$AW$3,1,1))","v":20.872500000000002},null,null,null,null,"","",null,0,0,0,0,0,""]
[2,73,null,2,"Blue 440 Grain","SCIENTIFIC ANGLERS FLY LINES","WETCEL GENERAL PURPOSE - SINKING LINES - TYPE II - BROWN","WETCEL GENERAL PURPOSE - SINKING LINES - TYPE II - BROWN   *NEW*",null,null,null,null,null,null,null,null,null,null,null,null,null,null,null,null,null,null,null,null,null,null,null,null,null,null,null,null,null,null,null,null,"",""]
[2,73,1,3,"Blue 480 Grain","SCIENTIFIC ANGLERS FLY LINES","WETCEL GENERAL PURPOSE - SINKING LINES - TYPE II - BROWN",112260,null,"WF- 5-S      ",null,840309112260,"1","EACH",37.950000000000003,20.872500000000002,18.975000000000001,17.077500000000001,null,null,null,null,null,null,null,null,null,null,null,null,null,null,null,null,null,{"$f":"IF(OR(ISBLANK($L83),$AW$3=0),\" - \",OFFSET(O83,0,$AW$3,1,1))","v":20.872500000000002},null,null,null,null,{"$f":"IF($AV83=0,\"\",SUM(AK83:AN83))","v":""},{"$f":"IF($AV83>0,SUM(AR83:AU83),\"\")","v":""},null,{"$f":"IF(LEN($AJ83)>0,$AJ83*AK83,\"\")","v":0},{"$f":"IF(LEN($AJ83)>0,$AJ83*AL83,\"\")","v":0},{"$f":"IF(LEN($AJ83)>0,$AJ83*AM83,\"\")","v":0},{"$f":"IF(LEN($AJ83)>0,$AJ83*AN83,\"\")","v":0},{"$f":"COUNT(AK83:AN83)","v":0},""]
[2,73,2,3,"Blue 520 Grain","SCIENTIFIC ANGLERS FLY LINES","WETCEL GENERAL PURPOSE - SINKING LINES - TYPE II - BROWN",112277,null,"WF- 6-S      ",null,840309112277,"1","EACH",37.950000000000003,20.872500000000002,18.975000000000001,17.077500000000001,null,null,null,null,null,null,null,null,null,null,null,null,null,null,null,null,null,{"$f":"IF(OR(ISBLANK($L84),$AW$3=0),\" - \",OFFSET(O84,0,$AW$3,1,1))","v":20.872500000000002},null,null,null,null,"","",null,0,0,0,0,0,""]
[2,73,3,3,"Blue 280 Grain","SCIENTIFIC ANGLERS FLY LINES","WETCEL GENERAL PURPOSE - SINKING LINES - TYPE II - BROWN",112284,null,"WF- 7-S      ",null,840309112284,"1","EACH",37.950000000000003,20.872500000000002,18.975000000000001,17.077500000000001,null,null,null,null,null,null,null,null,null,null,null,null,null,null,null,null,null,{"$f":"IF(OR(ISBLANK($L85),$AW$3=0),\" - \",OFFSET(O85,0,$AW$3,1,1))","v":20.872500000000002},null,null,null,null,"","",null,0,0,0,0,0,""]
[2,73,4,3,"Blue 560 Grain","SCIENTIFIC ANGLERS FLY LINES","WETCEL GENERAL PURPOSE - SINKING LINES - TYPE II - BROWN",112291,null,"WF- 8-S      ",null,840309112291,"1","EACH",37.950000000000003,20.872500000000002,18.975000000000001,17.077500000000001,null,null,null,null,null,null,null,null,null,null,null,null,null,null,null,null,null,{"$f":"IF(OR(ISBLANK($L86),$AW$3=0),\" - \",OFFSET(O86,0,$AW$3,1,1))","v":20.872500000000002},null,null,null,null,"","",null,0,0,0,0,0,""]
[2,74,null,2,"Blue 440 Grain","SCIENTIFIC ANGLERS FLY LINES","WETCEL GENERAL PURPOSE - SINKING LINES - TYPE IV - CHARCOAL","WETCEL GENERAL PURPOSE - SINKING LINES - TYPE IV - CHARCOAL   *NEW*",null,null,null,null,null,null,null,null,null,null,null,null,null,null,null,null,null,null,null,null,null,null,null,null,null,null,null,null,null,null,null,null,"",""]
[2,74,1,3,"Blue 480 Grain","SCIENTIFIC ANGLERS FLY LINES","WETCEL GENERAL PURPOSE - SINKING LINES - TYPE IV - CHARCOAL",112307,null,"WF- 5-S      ",null,840309112307,"1","EACH",37.950000000000003,20.872500000000002,18.975000000000001,17.077500000000001,null,null,null,null,null,null,null,null,null,null,null,null,null,null,null,null,null,{"$f":"IF(OR(ISBLANK($L88),$AW$3=0),\" - \",OFFSET(O88,0,$AW$3,1,1))","v":20.872500000000002},null,null,null,null,{"$f":"IF($AV88=0,\"\",SUM(AK88:AN88))","v":""},{"$f":"IF($AV88>0,SUM(AR88:AU88),\"\")","v":""},null,{"$f":"IF(LEN($AJ88)>0,$AJ88*AK88,\"\")","v":0},{"$f":"IF(LEN($AJ88)>0,$AJ88*AL88,\"\")","v":0},{"$f":"IF(LEN($AJ88)>0,$AJ88*AM88,\"\")","v":0},{"$f":"IF(LEN($AJ88)>0,$AJ88*AN88,\"\")","v":0},{"$f":"COUNT(AK88:AN88)","v":0},""]
[2,74,2,3,"Blue 520 Grain","SCIENTIFIC ANGLERS FLY LINES","WETCEL GENERAL PURPOSE - SINKING LINES - TYPE IV - CHARCOAL",112314,null,"WF- 6-S      ",null,840309112314,"1","EACH",37.950000000000003,20.872500000000002,18.975000000000001,17.077500000000001,null,null,null,null,null,null,null,null,null,null,null,null,null,null,null,null,null,{"$f":"IF(OR(ISBLANK($L89),$AW$3=0),\" - \",OFFSET(O89,0,$AW$3,1,1))","v":20.872500000000002},null,null,null,null,"","",null,0,0,0,0,0,""]
[2,74,3,3,"Blue 280 Grain","SCIENTIFIC ANGLERS FLY LINES","WETCEL GENERAL PURPOSE - SINKING LINES - TYPE IV - CHARCOAL",112321,null,"WF- 7-S      ",null,840309112321,"1","EACH",37.950000000000003,20.872500000000002,18.975000000000001,17.077500000000001,null,null,null,null,null,null,null,null,null,null,null,null,null,null,null,null,null,{"$f":"IF(OR(ISBLANK($L90),$AW$3=0),\" - \",OFFSET(O90,0,$AW$3,1,1))","v":20.872500000000002},null,null,null,null,"","",null,0,0,0,0,0,""]
[2,74,4,3,"Blue 560 Grain","SCIENTIFIC ANGLERS FLY LINES","WETCEL GENERAL PURPOSE - SINKING LINES - TYPE IV - CHARCOAL",112338,null,"WF- 8-S      ",null,840309112338,"1","EACH",37.950000000000003,20.872500000000002,18.975000000000001,17.077500000000001,null,null,null,null,null,null,null,null,null,null,null,null,null,null,null,null,null,{"$f":"IF(OR(ISBLANK($L91),$AW$3=0),\" - \",OFFSET(O91,0,$AW$3,1,1))","v":20.872500000000002},null,null,null,null,"","",null,0,0,0,0,0,""]
[2,75,null,2,"Blue 440 Grain","SCIENTIFIC ANGLERS FLY LINES","WETCEL GENERAL PURPOSE - SINKING LINES - TYPE VI - BLACK","WETCEL GENERAL PURPOSE - SINKING LINES - TYPE VI - BLACK   *NEW*",null,null,null,null,null,null,null,null,null,null,null,null,null,null,null,null,null,null,null,null,null,null,null,null,null,null,null,null,null,null,null,null,"",""]
[2,75,1,3,"Blue 480 Grain","SCIENTIFIC ANGLERS FLY LINES","WETCEL GENERAL PURPOSE - SINKING LINES - TYPE VI - BLACK",112345,null,"WF- 5-S      ",null,840309112345,"1","EACH",37.950000000000003,20.872500000000002,18.975000000000001,17.077500000000001,null,null,null,null,null,null,null,null,null,null,null,null,null,null,null,null,null,{"$f":"IF(OR(ISBLANK($L93),$AW$3=0),\" - \",OFFSET(O93,0,$AW$3,1,1))","v":20.872500000000002},null,null,null,null,{"$f":"IF($AV93=0,\"\",SUM(AK93:AN93))","v":""},{"$f":"IF($AV93>0,SUM(AR93:AU93),\"\")","v":""},null,{"$f":"IF(LEN($AJ93)>0,$AJ93*AK93,\"\")","v":0},{"$f":"IF(LEN($AJ93)>0,$AJ93*AL93,\"\")","v":0},{"$f":"IF(LEN($AJ93)>0,$AJ93*AM93,\"\")","v":0},{"$f":"IF(LEN($AJ93)>0,$AJ93*AN93,\"\")","v":0},{"$f":"COUNT(AK93:AN93)","v":0},""]
[2,75,2,3,"Blue 520 Grain","SCIENTIFIC ANGLERS FLY LINES","WETCEL GENERAL PURPOSE - SINKING LINES - TYPE VI - BLACK",112352,null,"WF- 6-S      ",null,840309112352,"1","EACH",37.950000000000003,20.872500000000002,18.975000000000001,17.077500000000001,null,null,null,null,null,null,null,null,null,null,null,null,null,null,null,null,null,{"$f":"IF(OR(ISBLANK($L94),$AW$3=0),\" - \",OFFSET(O94,0,$AW$3,1,1))","v":20.872500000000002},null,null,null,null,"","",null,0,0,0,0,0,""]
[2,75,3,3,"Blue 280 Grain","SCIENTIFIC ANGLERS FLY LINES","WETCEL GENERAL PURPOSE - SINKING LINES - TYPE VI - BLACK",112369,null,"WF- 7-S      ",null,840309112369,"1","EACH",37.950000000000003,20.872500000000002,18.975000000000001,17.077500000000001,null,null,null,null,null,null,null,null,null,null,null,null,null,null,null,null,null,{"$f":"IF(OR(ISBLANK($L95),$AW$3=0),\" - \",OFFSET(O95,0,$AW$3,1,1))","v":20.872500000000002},null,null,null,null,"","",null,0,0,0,0,0,""]
[2,75,4,3,"Blue 560 Grain","SCIENTIFIC ANGLERS FLY LINES","WETCEL GENERAL PURPOSE - SINKING LINES - TYPE VI - BLACK",112376,null,"WF- 8-S      ",null,840309112376,"1","EACH",37.950000000000003,20.872500000000002,18.975000000000001,17.077500000000001,null,null,null,null,null,null,null,null,null,null,null,null,null,null,null,null,null,{"$f":"IF(OR(ISBLANK($L96),$AW$3=0),\" - \",OFFSET(O96,0,$AW$3,1,1))","v":20.872500000000002},null,null,null,null,"","",null,0,0,0,0,0,""]
[3,0,null,1,null,"SHOOTING LINES AND SHOOTING TAPERS",null,"SHOOTING LINES AND SHOOTING TAPERS - Workbook Pages 66-69",null,null,null,null,null,null,null,null,null,null,null,null,null,null,null,null,null,null,null,null,null,null,null,null,null,null,null,null,null,null,null,null,{"$f":"IF($AV97=0,\"\",SUM(AK97:AN97))","v":""},{"$f":"IF($AV97>0,SUM(AR97:AU97),\"\")","v":""}]
[3,97,null,2,"Op Yellow/Grn WF- 9-F/S","SHOOTING LINES AND SHOOTING TAPERS"," TEXTURED SHOOTING LINES  ","TEXTURED SHOOTING LINES",null,null,null,null,null,null,null,null,null,null,null,null,null,null,null,null,null,null,null,null,null,null,null,null,null,null,null,null,null,null,null,null,"",""]
[3,97,1,3,"\u0001","SHOOTING LINES AND SHOOTING TAPERS"," TEXTURED SHOOTING LINES  ",113779,null,".038\" 20# 120 ft Shooting Line with \"Dragon Tail\" With Loop - Floating - Optic Green/ Sunrise Yellow      ",null,840309113779,1,"EACH",59.95,32.979999999999997,29.98,26.98,null,null,null,null,null,null,null,null,null,null,null,null,null,null,null,null,null,{"$f":"IF(OR(ISBLANK($L99),$AW$3=0),\" - \",OFFSET(O99,0,$AW$3,1,1))","v":32.979999999999997},null,null,null,null,"","",null,{"$f":"IF(LEN($AJ99)>0,$AJ99*AK99,\"\")","v":0},0,0,0,{"$f":"COUNT(AK99:AN99)","v":0},{"$f":"IF($AV99<>0,ROW($AV$11),\"\")","v":""}]
[3,97,2,3,"O Ylw/Dk Gray WF- 5-F/S","SHOOTING LINES AND SHOOTING TAPERS"," TEXTURED SHOOTING LINES  ",113717,null,"Textured .035\" 25# 120 ft Shooting Line With Loop - Floating - Gray/ Orange",null,840309113717,1,"EACH",59.95,32.979999999999997,29.98,26.98,null,null,null,null,null,null,null,null,null,null,null,null,null,null,null,null,null,{"$f":"IF(OR(ISBLANK($L100),$AW$3=0),\" - \",OFFSET(O100,0,$AW$3,1,1))","v":32.979999999999997},null,null,null,null,"","",null,0,0,0,0,0,""]
[3,97,3,3,"O Ylw/Dk Gray WF- 6-F/S","SHOOTING LINES AND SHOOTING TAPERS"," TEXTURED SHOOTING LINES  ",113700,null,"Textured .032\" 20# 120 ft Shooting Line With Loop -  Floating - Gray/ Optic Yellow  ",null,840309113700,1,"EACH",59.95,32.979999999999997,29.98,26.98,null,null,null,null,null,null,null,null,null,null,null,null,null,null,null,null,null,{"$f":"IF(OR(ISBLANK($L101),$AW$3=0),\" - \",OFFSET(O101,0,$AW$3,1,1))","v":32.979999999999997},null,null,null,null,"","",null,0,0,0,0,0,""]
[3,98,null,2,"O Ylw/Dk Gray WF- 7-F/S","SHOOTING LINES AND SHOOTING TAPERS","  FRESHWATER SHOOTING LINES","FRESHWATER SHOOTING LINES",null,null,null,null,null,null,null,null,null,null,null,null,null,null,null,null,null,null,null,null,null,null,null,null,null,null,null,null,null,null,null,null,"","",null,"","","","",0,""]
[3,98,1,3,"O Ylw/Dk Gray WF- 8-F/S","SHOOTING LINES AND SHOOTING TAPERS","  FRESHWATER SHOOTING LINES",113786,"",".030\" 25# 120 ft Monocore™ - Floating - Yellow      ",null,840309113786,"1","EACH",34.950000000000003,19.22,17.48,15.73,null,null,null,null,null,null,null,null,null,null,null,null,null,null,null,null,null,{"$f":"IF(OR(ISBLANK($L103),$AW$3=0),\" - \",OFFSET(O103,0,$AW$3,1,1))","v":19.22},null,null,null,null,"","",null,0,0,0,0,0,""]
[3,98,2,3,"O Ylw/Dk Gray WF- 9-F/S","SHOOTING LINES AND SHOOTING TAPERS","  FRESHWATER SHOOTING LINES",113724,"",".031\" 20# 100 ft - Floating With Loop - Orange      ",null,840309113724,"1","EACH",34.950000000000003,19.22,17.48,15.73,null,null,null,null,null,null,null,null,null,null,null,null,null,null,null,null,null,19.22,null,null,null,null,"","",null,{"$f":"IF(LEN($AJ104)>0,$AJ104*AK104,\"\")","v":0},0,0,0,0,""]
[3,98,3,3,"O Ylw/Dk Gray WF-10-F/S","SHOOTING LINES AND SHOOTING TAPERS","  FRESHWATER SHOOTING LINES",113793,"",".032\" 29# 150 ft Braided PE Mono Shooting Line - Floating - Orange      ",null,840309113793,"1","EACH",34.950000000000003,19.22,17.48,15.73,null,null,null,null,null,null,null,null,null,null,null,null,null,null,null,null,null,19.22,null,null,null,null,"","",null,0,0,0,0,0,""]
[3,98,4,3,"\u0001","SHOOTING LINES AND SHOOTING TAPERS","  FRESHWATER SHOOTING LINES",113731,"",".038\" 30# 100 ft Floating With Loop - Mist Green      ",null,840309113731,"1","EACH",34.950000000000003,19.22,17.48,15.73,null,null,null,null,null,null,null,null,null,null,null,null,null,null,null,null,null,19.22,null,null,null,null,"","",null,0,0,0,0,0,""]
[3,99,null,2,"Blue/Dark Gray 400 Grain/ 9-12 wt","SHOOTING LINES AND SHOOTING TAPERS","  SALTWATER SHOOTING LINES - SAND","SALTWATER SHOOTING LINES - SAND",null,null,null,null,null,null,null,null,null,null,null,null,null,null,null,null,null,null,null,null,null,null,null,null,null,null,null,null,null,null,null,null,"",""]
[3,99,1,3,"\u0001","SHOOTING LINES AND SHOOTING TAPERS","  SALTWATER SHOOTING LINES - SAND",113755,"",".035\" 30# 100 ft - Floating With Loop      ",null,840309113755,"1","EACH",34.950000000000003,19.22,17.48,15.73,null,null,null,null,null,null,null,null,null,null,null,null,null,null,null,null,null,{"$f":"IF(OR(ISBLANK($L108),$AW$3=0),\" - \",OFFSET(O108,0,$AW$3,1,1))","v":19.22},null,null,null,null,"","",null,{"$f":"IF(LEN($AJ108)>0,$AJ108*AK108,\"\")","v":0},0,0,0,{"$f":"COUNT(AK108:AN108)","v":0},{"$f":"IF($AV108<>0,ROW($AV$11),\"\")","v":""}]
[3,99,2,3,"Surf/Dark Gray Cut to length","SHOOTING LINES AND SHOOTING TAPERS","  SALTWATER SHOOTING LINES - SAND",113762,"",".042\" 40# 100 ft - Floating With Loop      ",null,840309113762,"1","EACH",34.950000000000003,19.22,17.48,15.73,null,null,null,null,null,null,null,null,null,null,null,null,null,null,null,null,null,{"$f":"IF(OR(ISBLANK($L109),$AW$3=0),\" - \",OFFSET(O109,0,$AW$3,1,1))","v":19.22},null,null,null,null,"","",null,0,0,0,0,{"$f":"COUNT(AK109:AN109)","v":0},{"$f":"IF($AV109<>0,ROW($AV$11),\"\")","v":""}]
[3,100,null,2,"\u0001","SHOOTING LINES AND SHOOTING TAPERS","  FRESHWATER/SALTWATER SHOOTING LINES - SURF","FRESHWATER/SALTWATER SHOOTING LINES - SURF",null,null,null,null,null,null,null,null,null,null,null,null,null,null,null,null,null,null,null,null,null,null,null,null,null,null,null,null,null,null,null,null,"",""]
[3,100,1,3,"Light Green WF- 4-S","SHOOTING LINES AND SHOOTING TAPERS","  FRESHWATER/SALTWATER SHOOTING LINES - SURF",113748,"",".030\" 25# 100 ft - Intermediate Sinking With Loop      ",null,840309113748,"1","EACH",34.950000000000003,19.22,17.48,15.73,null,null,null,null,null,null,null,null,null,null,null,null,null,null,null,null,null,{"$f":"IF(OR(ISBLANK($L111),$AW$3=0),\" - \",OFFSET(O111,0,$AW$3,1,1))","v":19.22},null,null,null,null,"","",null,{"$f":"IF(LEN($AJ111)>0,$AJ111*AK111,\"\")","v":0},0,0,0,{"$f":"COUNT(AK111:AN111)","v":0},{"$f":"IF($AV111<>0,ROW($AV$11),\"\")","v":""}]
[3,100,2,3,"Light Green WF- 5-S","SHOOTING LINES AND SHOOTING TAPERS","  FRESHWATER/SALTWATER SHOOTING LINES - SURF",104562,null,".035\" 40# 100 ft - Intermediate Sinking With Loop      ",null,840309104562,"1","EACH",34.950000000000003,19.22,17.48,15.73,null,null,null,null,null,null,null,null,null,null,null,null,null,null,null,null,null,{"$f":"IF(OR(ISBLANK($L112),$AW$3=0),\" - \",OFFSET(O112,0,$AW$3,1,1))","v":19.22},null,null,null,null,"","",null,0,0,0,0,0,""]
[3,101,null,2,"Green WF-5-S","SHOOTING LINES AND SHOOTING TAPERS","  SINKING SHOOTING TAPERS WITH LOOP - INTERMEDIATE/I - LIGHT GREEN","SINKING SHOOTING TAPERS WITH LOOP - INTERMEDIATE/I - LIGHT GREEN",null,null,null,null,null,null,null,null,null,null,null,null,null,null,null,null,null,null,null,null,null,null,null,null,null,null,null,null,null,null,null,null,"",""]
[3,101,1,3,"Green WF-6-S","SHOOTING LINES AND SHOOTING TAPERS","  SINKING SHOOTING TAPERS WITH LOOP - INTERMEDIATE/I - LIGHT GREEN",113403,"","ST- 6-S      ",null,840309113403,"1","EACH",34.950000000000003,19.22,17.48,15.73,null,null,null,null,null,null,null,null,null,null,null,null,null,null,null,null,null,{"$f":"IF(OR(ISBLANK($L114),$AW$3=0),\" - \",OFFSET(O114,0,$AW$3,1,1))","v":19.22},null,null,null,null,"","",null,0,0,0,0,0,""]
[3,101,2,3,"Green WF-7-S","SHOOTING LINES AND SHOOTING TAPERS","  SINKING SHOOTING TAPERS WITH LOOP - INTERMEDIATE/I - LIGHT GREEN",113410,"","ST- 7-S      ",null,840309113410,"1","EACH",34.950000000000003,19.22,17.48,15.73,null,null,null,null,null,null,null,null,null,null,null,null,null,null,null,null,null,{"$f":"IF(OR(ISBLANK($L115),$AW$3=0),\" - \",OFFSET(O115,0,$AW$3,1,1))","v":19.22},null,null,null,null,"","",null,0,0,0,0,0,""]
[3,101,3,3,"Green WF-8-S","SHOOTING LINES AND SHOOTING TAPERS","  SINKING SHOOTING TAPERS WITH LOOP - INTERMEDIATE/I - LIGHT GREEN",113427,"","ST- 8-S      ",null,840309113427,"1","EACH",34.950000000000003,19.22,17.48,15.73,null,null,null,null,null,null,null,null,null,null,null,null,null,null,null,null,null,{"$f":"IF(OR(ISBLANK($L116),$AW$3=0),\" - \",OFFSET(O116,0,$AW$3,1,1))","v":19.22},null,null,null,null,"","",null,0,0,0,0,0,""]
[3,101,4,3,"Green WF-9-S","SHOOTING LINES AND SHOOTING TAPERS","  SINKING SHOOTING TAPERS WITH LOOP - INTERMEDIATE/I - LIGHT GREEN",113434,"","ST- 9-S      ",null,840309113434,"1","EACH",34.950000000000003,19.22,17.48,15.73,null,null,null,null,null,null,null,null,null,null,null,null,null,null,null,null,null,{"$f":"IF(OR(ISBLANK($L117),$AW$3=0),\" - \",OFFSET(O117,0,$AW$3,1,1))","v":19.22},null,null,null,null,"","",null,0,0,0,0,0,""]
[3,101,5,3,"\u0001","SHOOTING LINES AND SHOOTING TAPERS","  SINKING SHOOTING TAPERS WITH LOOP - INTERMEDIATE/I - LIGHT GREEN",113441,"","ST-10-S      ",null,840309113441,"1","EACH",34.950000000000003,19.22,17.48,15.73,null,null,null,null,null,null,null,null,null,null,null,null,null,null,null,null,null,{"$f":"IF(OR(ISBLANK($L118),$AW$3=0),\" - \",OFFSET(O118,0,$AW$3,1,1))","v":19.22},null,null,null,null,"","",null,0,0,0,0,0,""]
[3,102,null,2,"Dark Green WF- 5-S","SHOOTING LINES AND SHOOTING TAPERS","  SINKING SHOOTING TAPERS WITH LOOP - TYPE II - GREEN","SINKING SHOOTING TAPERS WITH LOOP - TYPE II - GREEN",null,null,null,null,null,null,null,null,null,null,null,null,null,null,null,null,null,null,null,null,null,null,null,null,null,null,null,null,null,null,null,null,"",""]
[3,102,1,3,"Dark Green WF- 6-S","SHOOTING LINES AND SHOOTING TAPERS","  SINKING SHOOTING TAPERS WITH LOOP - TYPE II - GREEN",113458,"","ST- 6-S      ",null,840309113458,"1","EACH",34.950000000000003,19.22,17.48,15.73,null,null,null,null,null,null,null,null,null,null,null,null,null,null,null,null,null,{"$f":"IF(OR(ISBLANK($L120),$AW$3=0),\" - \",OFFSET(O120,0,$AW$3,1,1))","v":19.22},null,null,null,null,"","",null,{"$f":"IF(LEN($AJ120)>0,$AJ120*AK120,\"\")","v":0},0,0,0,{"$f":"COUNT(AK120:AN120)","v":0},{"$f":"IF($AV120<>0,ROW($AV$11),\"\")","v":""}]
[3,102,2,3,"Dark Green WF- 7-S","SHOOTING LINES AND SHOOTING TAPERS","  SINKING SHOOTING TAPERS WITH LOOP - TYPE II - GREEN",113465,"","ST- 7-S      ",null,840309113465,"1","EACH",34.950000000000003,19.22,17.48,15.73,null,null,null,null,null,null,null,null,null,null,null,null,null,null,null,null,null,{"$f":"IF(OR(ISBLANK($L121),$AW$3=0),\" - \",OFFSET(O121,0,$AW$3,1,1))","v":19.22},null,null,null,null,"","",null,0,0,0,0,0,""]
[3,102,3,3,"Dark Green WF- 8-S","SHOOTING LINES AND SHOOTING TAPERS","  SINKING SHOOTING TAPERS WITH LOOP - TYPE II - GREEN",113472,"","ST- 8-S      ",null,840309113472,"1","EACH",34.950000000000003,19.22,17.48,15.73,null,null,null,null,null,null,null,null,null,null,null,null,null,null,null,null,null,{"$f":"IF(OR(ISBLANK($L122),$AW$3=0),\" - \",OFFSET(O122,0,$AW$3,1,1))","v":19.22},null,null,null,null,"","",null,0,0,0,0,0,""]
[3,102,4,3,"Dark Green WF- 9-S","SHOOTING LINES AND SHOOTING TAPERS","  SINKING SHOOTING TAPERS WITH LOOP - TYPE II - GREEN",113489,"","ST- 9-S      ",null,840309113489,"1","EACH",34.950000000000003,19.22,17.48,15.73,null,null,null,null,null,null,null,null,null,null,null,null,null,null,null,null,null,{"$f":"IF(OR(ISBLANK($L123),$AW$3=0),\" - \",OFFSET(O123,0,$AW$3,1,1))","v":19.22},null,null,null,null,"","",null,0,0,0,0,0,""]
[3,102,5,3,"Dark Green WF-10-S","SHOOTING LINES AND SHOOTING TAPERS","  SINKING SHOOTING TAPERS WITH LOOP - TYPE II - GREEN",113496,"","ST-10-S      ",null,840309113496,"1","EACH",34.950000000000003,19.22,17.48,15.73,null,null,null,null,null,null,null,null,null,null,null,null,null,null,null,null,null,{"$f":"IF(OR(ISBLANK($L124),$AW$3=0),\" - \",OFFSET(O124,0,$AW$3,1,1))","v":19.22},null,null,null,null,"","",null,0,0,0,0,0,""]
[3,103,null,2,"\u0001","SHOOTING LINES AND SHOOTING TAPERS","  SINKING SHOOTING TAPERS WITH LOOP - TYPE III - DARK GREEN","SINKING SHOOTING TAPERS WITH LOOP - TYPE III - DARK GREEN",null,null,null,null,null,null,null,null,null,null,null,null,null,null,null,null,null,null,null,null,null,null,null,null,null,null,null,null,null,null,null,null,"",""]
[3,103,1,3,"Gray WF- 5-S","SHOOTING LINES AND SHOOTING TAPERS","  SINKING SHOOTING TAPERS WITH LOOP - TYPE III - DARK GREEN",113502,"","ST- 6-S      ",null,840309113502,"1","EACH",34.950000000000003,19.22,17.48,15.73,null,null,null,null,null,null,null,null,null,null,null,null,null,null,null,null,null,{"$f":"IF(OR(ISBLANK($L126),$AW$3=0),\" - \",OFFSET(O126,0,$AW$3,1,1))","v":19.22},null,null,null,null,"","",null,{"$f":"IF(LEN($AJ126)>0,$AJ126*AK126,\"\")","v":0},0,0,0,{"$f":"COUNT(AK126:AN126)","v":0},{"$f":"IF($AV126<>0,ROW($AV$11),\"\")","v":""}]
[3,103,2,3,"Gray WF- 6-S","SHOOTING LINES AND SHOOTING TAPERS","  SINKING SHOOTING TAPERS WITH LOOP - TYPE III - DARK GREEN",113519,"","ST- 7-S      ",null,840309113519,"1","EACH",34.950000000000003,19.22,17.48,15.73,null,null,null,null,null,null,null,null,null,null,null,null,null,null,null,null,null,{"$f":"IF(OR(ISBLANK($L127),$AW$3=0),\" - \",OFFSET(O127,0,$AW$3,1,1))","v":19.22},null,null,null,null,"","",null,0,0,0,0,0,""]
[3,103,3,3,"Gray WF- 7-S","SHOOTING LINES AND SHOOTING TAPERS","  SINKING SHOOTING TAPERS WITH LOOP - TYPE III - DARK GREEN",113526,"","ST- 8-S      ",null,840309113526,"1","EACH",34.950000000000003,19.22,17.48,15.73,null,null,null,null,null,null,null,null,null,null,null,null,null,null,null,null,null,{"$f":"IF(OR(ISBLANK($L128),$AW$3=0),\" - \",OFFSET(O128,0,$AW$3,1,1))","v":19.22},null,null,null,null,"","",null,0,0,0,0,0,""]
[3,103,4,3,"Gray WF- 8-S","SHOOTING LINES AND SHOOTING TAPERS","  SINKING SHOOTING TAPERS WITH LOOP - TYPE III - DARK GREEN",113533,"","ST- 9-S      ",null,840309113533,"1","EACH",34.950000000000003,19.22,17.48,15.73,null,null,null,null,null,null,null,null,null,null,null,null,null,null,null,null,null,{"$f":"IF(OR(ISBLANK($L129),$AW$3=0),\" - \",OFFSET(O129,0,$AW$3,1,1))","v":19.22},null,null,null,null,"","",null,0,0,0,0,0,""]
[3,103,5,3,"Gray WF- 9-S","SHOOTING LINES AND SHOOTING TAPERS","  SINKING SHOOTING TAPERS WITH LOOP - TYPE III - DARK GREEN",113540,"","ST-10-S      ",null,840309113540,"1","EACH",34.950000000000003,19.22,17.48,15.73,null,null,null,null,null,null,null,null,null,null,null,null,null,null,null,null,null,{"$f":"IF(OR(ISBLANK($L130),$AW$3=0),\" - \",OFFSET(O130,0,$AW$3,1,1))","v":19.22},null,null,null,null,"","",null,0,0,0,0,0,""]
[3,104,null,2,"Gray WF-10-S","SHOOTING LINES AND SHOOTING TAPERS","  SINKING SHOOTING TAPERS WITH LOOP - TYPE IV - GRAY","SINKING SHOOTING TAPERS WITH LOOP - TYPE IV - GRAY",null,null,null,null,null,null,null,null,null,null,null,null,null,null,null,null,null,null,null,null,null,null,null,null,null,null,null,null,null,null,null,null,"",""]
[3,104,1,3,"\u0001","SHOOTING LINES AND SHOOTING TAPERS","  SINKING SHOOTING TAPERS WITH LOOP - TYPE IV - GRAY",113557,"","ST- 6-S      ",null,840309113557,"1","EACH",34.950000000000003,19.22,17.48,15.73,null,null,null,null,null,null,null,null,null,null,null,null,null,null,null,null,null,{"$f":"IF(OR(ISBLANK($L132),$AW$3=0),\" - \",OFFSET(O132,0,$AW$3,1,1))","v":19.22},null,null,null,null,"","",null,0,0,0,0,{"$f":"COUNT(AK132:AN132)","v":0},{"$f":"IF($AV132<>0,ROW($AV$11),\"\")","v":""}]
[3,104,2,3,"Dark Gray WF- 5-S","SHOOTING LINES AND SHOOTING TAPERS","  SINKING SHOOTING TAPERS WITH LOOP - TYPE IV - GRAY",113564,"","ST- 7-S      ",null,840309113564,"1","EACH",34.950000000000003,19.22,17.48,15.73,null,null,null,null,null,null,null,null,null,null,null,null,null,null,null,null,null,19.22,null,null,null,null,"","",null,0,0,0,0,0,""]
[3,104,3,3,"Dark Gray WF- 6-S","SHOOTING LINES AND SHOOTING TAPERS","  SINKING SHOOTING TAPERS WITH LOOP - TYPE IV - GRAY",113571,"","ST- 8-S      ",null,840309113571,"1","EACH",34.950000000000003,19.22,17.48,15.73,null,null,null,null,null,null,null,null,null,null,null,null,null,null,null,null,null,19.22,null,null,null,null,"","",null,0,0,0,0,0,""]
[3,104,4,3,"Dark Gray WF- 7-F","SHOOTING LINES AND SHOOTING TAPERS","  SINKING SHOOTING TAPERS WITH LOOP - TYPE IV - GRAY",113588,"","ST- 9-S      ",null,840309113588,"1","EACH",34.950000000000003,19.22,17.48,15.73,null,null,null,null,null,null,null,null,null,null,null,null,null,null,null,null,null,19.22,null,null,null,null,"","",null,0,0,0,0,0,""]
[3,104,5,3,"Dark Gray WF- 8-S","SHOOTING LINES AND SHOOTING TAPERS","  SINKING SHOOTING TAPERS WITH LOOP - TYPE IV - GRAY",113595,"","ST-10-S      ",null,840309113595,"1","EACH",34.950000000000003,19.22,17.48,15.73,null,null,null,null,null,null,null,null,null,null,null,null,null,null,null,null,null,19.22,null,null,null,null,"","",null,0,0,0,0,0,""]
[3,104,6,3,"Dark Gray WF- 9-S","SHOOTING LINES AND SHOOTING TAPERS","  SINKING SHOOTING TAPERS WITH LOOP - TYPE IV - GRAY",113601,"","ST-11-S      ",null,840309113601,"1","EACH",34.950000000000003,19.22,17.48,15.73,null,null,null,null,null,null,null,null,null,null,null,null,null,null,null,null,null,19.22,null,null,null,null,"","",null,0,0,0,0,0,""]
[3,105,null,2,"\u0001","SHOOTING LINES AND SHOOTING TAPERS","  SINKING SHOOTING TAPERS WITH LOOP - TYPE VI - DARK GRAY","SINKING SHOOTING TAPERS WITH LOOP - TYPE VI - DARK GRAY",null,null,null,null,null,null,null,null,null,null,null,null,null,null,null,null,null,null,null,null,null,null,null,null,null,null,null,null,null,null,null,null,{"$f":"IF($AV138=0,\"\",SUM(AK138:AN138))","v":""},{"$f":"IF($AV138>0,SUM(AR138:AU138),\"\")","v":""}]
[3,105,1,3,"Green WF- 5-S","SHOOTING LINES AND SHOOTING TAPERS","  SINKING SHOOTING TAPERS WITH LOOP - TYPE VI - DARK GRAY",113618,"","ST- 7-S      ",null,840309113618,"1","EACH",34.950000000000003,19.22,17.48,15.73,null,null,null,null,null,null,null,null,null,null,null,null,null,null,null,null,null,{"$f":"IF(OR(ISBLANK($L139),$AW$3=0),\" - \",OFFSET(O139,0,$AW$3,1,1))","v":19.22},null,null,null,null,"","",null,{"$f":"IF(LEN($AJ139)>0,$AJ139*AK139,\"\")","v":0},0,0,0,{"$f":"COUNT(AK139:AN139)","v":0},{"$f":"IF($AV139<>0,ROW($AV$11),\"\")","v":""}]
[3,105,2,3,"Green WF- 6-S","SHOOTING LINES AND SHOOTING TAPERS","  SINKING SHOOTING TAPERS WITH LOOP - TYPE VI - DARK GRAY",113625,"","ST- 8-S      ",null,840309113625,"1","EACH",34.950000000000003,19.22,17.48,15.73,null,null,null,null,null,null,null,null,null,null,null,null,null,null,null,null,null,{"$f":"IF(OR(ISBLANK($L140),$AW$3=0),\" - \",OFFSET(O140,0,$AW$3,1,1))","v":19.22},null,null,null,null,"","",null,0,0,0,0,{"$f":"COUNT(AK140:AN140)","v":0},{"$f":"IF($AV140<>0,ROW($AV$11),\"\")","v":""}]
[3,105,3,3,"Green WF- 7-S","SHOOTING LINES AND SHOOTING TAPERS","  SINKING SHOOTING TAPERS WITH LOOP - TYPE VI - DARK GRAY",113632,"","ST- 9-S      ",null,840309113632,"1","EACH",34.950000000000003,19.22,17.48,15.73,null,null,null,null,null,null,null,null,null,null,null,null,null,null,null,null,null,{"$f":"IF(OR(ISBLANK($L141),$AW$3=0),\" - \",OFFSET(O141,0,$AW$3,1,1))","v":19.22},null,null,null,null,"","",null,0,0,0,0,{"$f":"COUNT(AK141:AN141)","v":0},{"$f":"IF($AV141<>0,ROW($AV$11),\"\")","v":""}]
[3,105,4,3,"Green WF- 8-S","SHOOTING LINES AND SHOOTING TAPERS","  SINKING SHOOTING TAPERS WITH LOOP - TYPE VI - DARK GRAY",113649,"","ST-10-S      ",null,840309113649,"1","EACH",34.950000000000003,19.22,17.48,15.73,null,null,null,null,null,null,null,null,null,null,null,null,null,null,null,null,null,{"$f":"IF(OR(ISBLANK($L142),$AW$3=0),\" - \",OFFSET(O142,0,$AW$3,1,1))","v":19.22},null,null,null,null,"","",null,0,0,0,0,{"$f":"COUNT(AK142:AN142)","v":0},{"$f":"IF($AV142<>0,ROW($AV$11),\"\")","v":""}]
[3,105,5,3,"\u0001","SHOOTING LINES AND SHOOTING TAPERS","  SINKING SHOOTING TAPERS WITH LOOP - TYPE VI - DARK GRAY",113656,"","ST-11-S      ",null,840309113656,"1","EACH",34.950000000000003,19.22,17.48,15.73,null,null,null,null,null,null,null,null,null,null,null,null,null,null,null,null,null,{"$f":"IF(OR(ISBLANK($L143),$AW$3=0),\" - \",OFFSET(O143,0,$AW$3,1,1))","v":19.22},null,null,null,null,"","",null,0,0,0,0,{"$f":"COUNT(AK143:AN143)","v":0},{"$f":"IF($AV143<>0,ROW($AV$11),\"\")","v":""}]
[3,106,null,2,"\u0001","SHOOTING LINES AND SHOOTING TAPERS","  SINKING SHOOTING TAPERS - DEEP WATER EXPRESS","SINKING SHOOTING TAPERS - DEEP WATER EXPRESS(TM)",null,null,null,null,null,null,null,null,null,null,null,null,null,null,null,null,null,null,null,null,null,null,null,null,null,null,null,null,null,null,null,null,"",""]
[3,106,1,3,"Orange 36 lb","SHOOTING LINES AND SHOOTING TAPERS","  SINKING SHOOTING TAPERS - DEEP WATER EXPRESS",124249,null,"ST-400/9-12 wt - Gray      ",null,840309124249,"1","EACH",54.95,30.222500000000004,27.475000000000001,24.727500000000003,null,null,null,null,null,null,null,null,null,null,null,null,null,null,null,null,null,{"$f":"IF(OR(ISBLANK($L145),$AW$3=0),\" - \",OFFSET(O145,0,$AW$3,1,1))","v":30.222500000000004},null,null,null,null,"","",null,{"$f":"IF(LEN($AJ145)>0,$AJ145*AK145,\"\")","v":0},0,0,0,{"$f":"COUNT(AK145:AN145)","v":0},{"$f":"IF($AV145<>0,ROW($AV$11),\"\")","v":""}]
[3,106,2,3,"Yellow 0.030","SHOOTING LINES AND SHOOTING TAPERS","  SINKING SHOOTING TAPERS - DEEP WATER EXPRESS",124256,null,"ST-550/12-14 wt - Gray      ",null,840309124256,"1","EACH",54.95,30.222500000000004,27.475000000000001,24.727500000000003,null,null,null,null,null,null,null,null,null,null,null,null,null,null,null,null,null,{"$f":"IF(OR(ISBLANK($L146),$AW$3=0),\" - \",OFFSET(O146,0,$AW$3,1,1))","v":30.222500000000004},null,null,null,null,"","",null,0,0,0,0,0,""]
[3,106,3,3,"Orange ","SHOOTING LINES AND SHOOTING TAPERS","  SINKING SHOOTING TAPERS - DEEP WATER EXPRESS",124263,null,"ST-700/14-15 wt - Brown      ",null,840309124263,"1","EACH",54.95,30.222500000000004,27.475000000000001,24.727500000000003,null,null,null,null,null,null,null,null,null,null,null,null,null,null,null,null,null,{"$f":"IF(OR(ISBLANK($L147),$AW$3=0),\" - \",OFFSET(O147,0,$AW$3,1,1))","v":30.222500000000004},null,null,null,null,"","",null,0,0,0,0,0,""]
[3,106,4,3,"Orange .032 in 29# 150 Ft","SHOOTING LINES AND SHOOTING TAPERS","  SINKING SHOOTING TAPERS - DEEP WATER EXPRESS",124270,null,"ST-850/14+ wt - Black      ",null,840309124270,"1","EACH",54.95,30.222500000000004,27.475000000000001,24.727500000000003,null,null,null,null,null,null,null,null,null,null,null,null,null,null,null,null,null,{"$f":"IF(OR(ISBLANK($L148),$AW$3=0),\" - \",OFFSET(O148,0,$AW$3,1,1))","v":30.222500000000004},null,null,null,null,"","",null,0,0,0,0,0,""]
[4,0,null,1,null,"LEADERS, TIPPETS AND BACKING",null,"LEADERS, TIPPETS AND BACKING - Workbook Pages 54-57",null,null,null,null,null,null,null,null,null,null,null,null,null,null,null,null,null,null,null,null,null,null,null,null,null,null,null,null,null,null,null,null,"",""]
[4,300,null,2,"\u0001","LEADERS, TIPPETS AND BACKING","SCIENTIFIC ANGLERS(TM) PREMIUM NYLON LEADERS - 7 1/2'  2 PACK","SCIENTIFIC ANGLERS(TM) PREMIUM NYLON LEADERS - 7 1/2'  2 PACK   *NEW*",null,null,null,null,null,null,null,null,null,null,null,null,null,null,null,null,null,null,null,null,null,null,null,null,null,null,null,null,null,null,null,null,"",""]
[4,300,1,3,"Surf ","LEADERS, TIPPETS AND BACKING","SCIENTIFIC ANGLERS(TM) PREMIUM NYLON LEADERS - 7 1/2'  2 PACK",115834,null,"7 1/2 ft - 0X - Clear   MOQ=6    ",null,840309115834,"6","EACH",7.99,4,3.6,3.2,null,null,null,null,null,null,null,null,null,null,null,null,null,null,null,null,null,{"$f":"IF(OR(ISBLANK($L151),$AW$3=0),\" - \",OFFSET(O151,0,$AW$3,1,1))","v":4},null,null,null,null,"","",null,{"$f":"IF(LEN($AJ151)>0,$AJ151*AK151,\"\")","v":0},{"$f":"IF(LEN($AJ151)>0,$AJ151*AL151,\"\")","v":0},{"$f":"IF(LEN($AJ151)>0,$AJ151*AM151,\"\")","v":0},{"$f":"IF(LEN($AJ151)>0,$AJ151*AN151,\"\")","v":0},{"$f":"COUNT(AK151:AN151)","v":0},{"$f":"IF($AV151<>0,ROW($AV$11),\"\")","v":""}]
[4,300,2,3,"Surf ","LEADERS, TIPPETS AND BACKING","SCIENTIFIC ANGLERS(TM) PREMIUM NYLON LEADERS - 7 1/2'  2 PACK",115841,null,"7 1/2 ft - 1X - Clear   MOQ=6    ",null,840309115841,"6","EACH",7.99,4,3.6,3.2,null,null,null,null,null,null,null,null,null,null,null,null,null,null,null,null,null,4,null,null,null,null,{"$f":"IF($AV152=0,\"\",SUM(AK152:AN152))","v":""},{"$f":"IF($AV152>0,SUM(AR152:AU152),\"\")","v":""},null,{"$f":"IF(LEN($AJ152)>0,$AJ152*AK152,\"\")","v":0},{"$f":"IF(LEN($AJ152)>0,$AJ152*AL152,\"\")","v":0},{"$f":"IF(LEN($AJ152)>0,$AJ152*AM152,\"\")","v":0},{"$f":"IF(LEN($AJ152)>0,$AJ152*AN152,\"\")","v":0},0,""]
[4,300,3,3,"Surf ","LEADERS, TIPPETS AND BACKING","SCIENTIFIC ANGLERS(TM) PREMIUM NYLON LEADERS - 7 1/2'  2 PACK",115858,"","7 1/2 ft - 2X - Clear   MOQ=6    ",null,840309115858,"6","EACH",7.99,4,3.6,3.2,null,null,null,null,null,null,null,null,null,null,null,null,null,null,null,null,null,4,null,null,null,null,"","",null,{"$f":"IF(LEN($AJ153)>0,$AJ153*AK153,\"\")","v":0},0,0,0,0,""]
[4,300,4,3,"Surf ","LEADERS, TIPPETS AND BACKING","SCIENTIFIC ANGLERS(TM) PREMIUM NYLON LEADERS - 7 1/2'  2 PACK",115865,"","7 1/2 ft - 3X - Clear   MOQ=6     ",null,840309115865,"6","EACH",7.99,4,3.6,3.2,null,null,null,null,null,null,null,null,null,null,null,null,null,null,null,null,null,4,null,null,null,null,"","",null,0,0,0,0,0,""]
[4,300,5,3,"\u0001","LEADERS, TIPPETS AND BACKING","SCIENTIFIC ANGLERS(TM) PREMIUM NYLON LEADERS - 7 1/2'  2 PACK",115872,"","7 1/2 ft - 4X - Clear   MOQ=6    ",null,840309115872,"6","EACH",7.99,4,3.6,3.2,null,null,null,null,null,null,null,null,null,null,null,null,null,null,null,null,null,4,null,null,null,null,"","",null,0,0,0,0,0,""]
[4,300,6,3,"Buckskin ST- 6-F","LEADERS, TIPPETS AND BACKING","SCIENTIFIC ANGLERS(TM) PREMIUM NYLON LEADERS - 7 1/2'  2 PACK",115889,"","7 1/2 ft - 5X - Clear   MOQ=6     ",null,840309115889,"6","EACH",7.99,4,3.6,3.2,null,null,null,null,null,null,null,null,null,null,null,null,null,null,null,null,null,4,null,null,null,null,{"$f":"IF($AV156=0,\"\",SUM(AK156:AN156))","v":""},{"$f":"IF($AV156>0,SUM(AR156:AU156),\"\")","v":""},null,{"$f":"IF(LEN($AJ156)>0,$AJ156*AK156,\"\")","v":0},{"$f":"IF(LEN($AJ156)>0,$AJ156*AL156,\"\")","v":0},{"$f":"IF(LEN($AJ156)>0,$AJ156*AM156,\"\")","v":0},{"$f":"IF(LEN($AJ156)>0,$AJ156*AN156,\"\")","v":0},0,""]
[4,300,7,3,"Buckskin ST- 6-F","LEADERS, TIPPETS AND BACKING","SCIENTIFIC ANGLERS(TM) PREMIUM NYLON LEADERS - 7 1/2'  2 PACK",115896,null,"7 1/2 ft - 6X - Clear   MOQ=6     ",null,840309115896,"6","EACH",7.99,4,3.6,3.2,null,null,null,null,null,null,null,null,null,null,null,null,null,null,null,null,null,4,null,null,null,null,"","",null,0,0,0,0,0,""]
[4,301,null,2,"Buckskin ST- 7-F","LEADERS, TIPPETS AND BACKING","SCIENTIFIC ANGLERS(TM) PREMIUM NYLON LEADERS - 9' 2 PACK","SCIENTIFIC ANGLERS(TM) PREMIUM NYLON LEADERS - 9' 2 PACK   *NEW*",null,null,null,null,null,null,null,null,null,null,null,null,null,null,null,null,null,null,null,null,null,null,null,null,null,null,null,null,null,null,null,null,"",""]
[4,301,1,3,"Buckskin ST- 8-F","LEADERS, TIPPETS AND BACKING","SCIENTIFIC ANGLERS(TM) PREMIUM NYLON LEADERS - 9' 2 PACK",113243,null,"9 ft - 20# - Clear   MOQ=6     ",null,840309113243,"6","EACH",7.99,4,3.6,3.2,null,null,null,null,null,null,null,null,null,null,null,null,null,null,null,null,null,{"$f":"IF(OR(ISBLANK($L159),$AW$3=0),\" - \",OFFSET(O159,0,$AW$3,1,1))","v":4},null,null,null,null,{"$f":"IF($AV159=0,\"\",SUM(AK159:AN159))","v":""},{"$f":"IF($AV159>0,SUM(AR159:AU159),\"\")","v":""},null,{"$f":"IF(LEN($AJ159)>0,$AJ159*AK159,\"\")","v":0},{"$f":"IF(LEN($AJ159)>0,$AJ159*AL159,\"\")","v":0},{"$f":"IF(LEN($AJ159)>0,$AJ159*AM159,\"\")","v":0},{"$f":"IF(LEN($AJ159)>0,$AJ159*AN159,\"\")","v":0},{"$f":"COUNT(AK159:AN159)","v":0},{"$f":"IF($AV159<>0,ROW($AV$11),\"\")","v":""}]
[4,301,2,3,"Buckskin ST- 8-F","LEADERS, TIPPETS AND BACKING","SCIENTIFIC ANGLERS(TM) PREMIUM NYLON LEADERS - 9' 2 PACK",113250,null,"9 ft - 18# - Clear   MOQ=6     ",null,840309113250,"6","EACH",7.99,4,3.6,3.2,null,null,null,null,null,null,null,null,null,null,null,null,null,null,null,null,null,{"$f":"IF(OR(ISBLANK($L160),$AW$3=0),\" - \",OFFSET(O160,0,$AW$3,1,1))","v":4},null,null,null,null,"","",null,{"$f":"IF(LEN($AJ160)>0,$AJ160*AK160,\"\")","v":0},{"$f":"IF(LEN($AJ160)>0,$AJ160*AL160,\"\")","v":0},{"$f":"IF(LEN($AJ160)>0,$AJ160*AM160,\"\")","v":0},{"$f":"IF(LEN($AJ160)>0,$AJ160*AN160,\"\")","v":0},{"$f":"COUNT(AK160:AN160)","v":0},{"$f":"IF($AV160<>0,ROW($AV$11),\"\")","v":""}]
[4,301,3,3,"Buckskin ST- 8-F","LEADERS, TIPPETS AND BACKING","SCIENTIFIC ANGLERS(TM) PREMIUM NYLON LEADERS - 9' 2 PACK",113267,null,"9 ft - 16# - Clear   MOQ=6     ",null,840309113267,"6","EACH",7.99,4,3.6,3.2,null,null,null,null,null,null,null,null,null,null,null,null,null,null,null,null,null,{"$f":"IF(OR(ISBLANK($L161),$AW$3=0),\" - \",OFFSET(O161,0,$AW$3,1,1))","v":4},null,null,null,null,{"$f":"IF($AV161=0,\"\",SUM(AK161:AN161))","v":""},{"$f":"IF($AV161>0,SUM(AR161:AU161),\"\")","v":""},null,{"$f":"IF(LEN($AJ161)>0,$AJ161*AK161,\"\")","v":0},{"$f":"IF(LEN($AJ161)>0,$AJ161*AL161,\"\")","v":0},{"$f":"IF(LEN($AJ161)>0,$AJ161*AM161,\"\")","v":0},{"$f":"IF(LEN($AJ161)>0,$AJ161*AN161,\"\")","v":0},{"$f":"COUNT(AK161:AN161)","v":0},{"$f":"IF($AV161<>0,ROW($AV$11),\"\")","v":""}]
[4,301,4,3,"Buckskin ST- 8-F","LEADERS, TIPPETS AND BACKING","SCIENTIFIC ANGLERS(TM) PREMIUM NYLON LEADERS - 9' 2 PACK",115902,"","9 ft - 0X - Clear   MOQ=6     ",null,840309115902,"6","EACH",7.99,4,3.6,3.2,null,null,null,null,null,null,null,null,null,null,null,null,null,null,null,null,null,{"$f":"IF(OR(ISBLANK($L162),$AW$3=0),\" - \",OFFSET(O162,0,$AW$3,1,1))","v":4},null,null,null,null,"","",null,0,0,0,0,{"$f":"COUNT(AK162:AN162)","v":0},{"$f":"IF($AV162<>0,ROW($AV$11),\"\")","v":""}]
[4,301,5,3,"Buckskin ST- 9-F","LEADERS, TIPPETS AND BACKING","SCIENTIFIC ANGLERS(TM) PREMIUM NYLON LEADERS - 9' 2 PACK",115919,"","9 ft - 1X - Clear   MOQ=6     ",null,840309115919,"6","EACH",7.99,4,3.6,3.2,null,null,null,null,null,null,null,null,null,null,null,null,null,null,null,null,null,4,null,null,null,null,"","",null,0,0,0,0,{"$f":"COUNT(AK163:AN163)","v":0},{"$f":"IF($AV163<>0,ROW($AV$11),\"\")","v":""}]
[4,301,6,3,"Buckskin ST-10-F","LEADERS, TIPPETS AND BACKING","SCIENTIFIC ANGLERS(TM) PREMIUM NYLON LEADERS - 9' 2 PACK",115926,"","9 ft - 2X - Clear   MOQ=6     ",null,840309115926,"6","EACH",7.99,4,3.6,3.2,null,null,null,null,null,null,null,null,null,null,null,null,null,null,null,null,null,4,null,null,null,null,"","",null,0,0,0,0,{"$f":"COUNT(AK164:AN164)","v":0},{"$f":"IF($AV164<>0,ROW($AV$11),\"\")","v":""}]
[4,301,7,3,"\u0001","LEADERS, TIPPETS AND BACKING","SCIENTIFIC ANGLERS(TM) PREMIUM NYLON LEADERS - 9' 2 PACK",115933,"","9 ft - 3X - Clear   MOQ=6    ",null,840309115933,"6","EACH",7.99,4,3.6,3.2,null,null,null,null,null,null,null,null,null,null,null,null,null,null,null,null,null,4,null,null,null,null,"","",null,0,0,0,0,0,""]
[4,301,8,3,"Lt. Green ST- 6-S","LEADERS, TIPPETS AND BACKING","SCIENTIFIC ANGLERS(TM) PREMIUM NYLON LEADERS - 9' 2 PACK",115940,"","9 ft - 4X - Clear   MOQ=6    ",null,840309115940,"6","EACH",7.99,4,3.6,3.2,null,null,null,null,null,null,null,null,null,null,null,null,null,null,null,null,null,4,null,null,null,null,"","",null,0,0,0,0,{"$f":"COUNT(AK166:AN166)","v":0},{"$f":"IF($AV166<>0,ROW($AV$11),\"\")","v":""}]
[4,301,9,3,"Lt. Green ST- 7-S","LEADERS, TIPPETS AND BACKING","SCIENTIFIC ANGLERS(TM) PREMIUM NYLON LEADERS - 9' 2 PACK",115957,"","9 ft - 5X - Clear   MOQ=6    ",null,840309115957,"6","EACH",7.99,4,3.6,3.2,null,null,null,null,null,null,null,null,null,null,null,null,null,null,null,null,null,4,null,null,null,null,"","",null,0,0,0,0,{"$f":"COUNT(AK167:AN167)","v":0},{"$f":"IF($AV167<>0,ROW($AV$11),\"\")","v":""}]
[4,301,10,3,"Lt. Green ST- 8-S","LEADERS, TIPPETS AND BACKING","SCIENTIFIC ANGLERS(TM) PREMIUM NYLON LEADERS - 9' 2 PACK",115964,"","9 ft - 6X - Clear   MOQ=6    ",null,840309115964,"6","EACH",7.99,4,3.6,3.2,null,null,null,null,null,null,null,null,null,null,null,null,null,null,null,null,null,4,null,null,null,null,"","",null,0,0,0,0,{"$f":"COUNT(AK168:AN168)","v":0},{"$f":"IF($AV168<>0,ROW($AV$11),\"\")","v":""}]
[4,301,11,3,"Lt. Green ST- 9-S","LEADERS, TIPPETS AND BACKING","SCIENTIFIC ANGLERS(TM) PREMIUM NYLON LEADERS - 9' 2 PACK",115971,"","9 ft - 7X - Clear   MOQ=6     ",null,840309115971,"6","EACH",7.99,4,3.6,3.2,null,null,null,null,null,null,null,null,null,null,null,null,null,null,null,null,null,4,null,null,null,null,"","",null,0,0,0,0,{"$f":"COUNT(AK169:AN169)","v":0},{"$f":"IF($AV169<>0,ROW($AV$11),\"\")","v":""}]
[4,302,null,2,"Lt. Green ST-10-S","LEADERS, TIPPETS AND BACKING","SCIENTIFIC ANGLERS(TM) PREMIUM NYLON LEADERS - 12' 2 PACK ","SCIENTIFIC ANGLERS(TM) PREMIUM NYLON LEADERS - 12' 2 PACK   *NEW*",null,null,null,null,null,null,null,null,null,null,null,null,null,null,null,null,null,null,null,null,null,null,null,null,null,null,null,null,null,null,null,null,"",""]
[4,302,1,3,"\u0001","LEADERS, TIPPETS AND BACKING","SCIENTIFIC ANGLERS(TM) PREMIUM NYLON LEADERS - 12' 2 PACK ",113335,null,"12 ft - 20# - Clear   MOQ=6     ",null,840309113335,"6","EACH",7.99,4,3.6,3.2,null,null,null,null,null,null,null,null,null,null,null,null,null,null,null,null,null,{"$f":"IF(OR(ISBLANK($L171),$AW$3=0),\" - \",OFFSET(O171,0,$AW$3,1,1))","v":4},null,null,null,null,"","",null,{"$f":"IF(LEN($AJ171)>0,$AJ171*AK171,\"\")","v":0},{"$f":"IF(LEN($AJ171)>0,$AJ171*AL171,\"\")","v":0},{"$f":"IF(LEN($AJ171)>0,$AJ171*AM171,\"\")","v":0},{"$f":"IF(LEN($AJ171)>0,$AJ171*AN171,\"\")","v":0},{"$f":"COUNT(AK171:AN171)","v":0},{"$f":"IF($AV171<>0,ROW($AV$11),\"\")","v":""}]
[4,302,2,3,"\u0001","LEADERS, TIPPETS AND BACKING","SCIENTIFIC ANGLERS(TM) PREMIUM NYLON LEADERS - 12' 2 PACK ",113342,null,"12 ft - 18# - Clear   MOQ=6     ",null,840309113342,"6","EACH",7.99,4,3.6,3.2,null,null,null,null,null,null,null,null,null,null,null,null,null,null,null,null,null,4,null,null,null,null,{"$f":"IF($AV172=0,\"\",SUM(AK172:AN172))","v":""},{"$f":"IF($AV172>0,SUM(AR172:AU172),\"\")","v":""},null,{"$f":"IF(LEN($AJ172)>0,$AJ172*AK172,\"\")","v":0},{"$f":"IF(LEN($AJ172)>0,$AJ172*AL172,\"\")","v":0},{"$f":"IF(LEN($AJ172)>0,$AJ172*AM172,\"\")","v":0},{"$f":"IF(LEN($AJ172)>0,$AJ172*AN172,\"\")","v":0},0,""]
[4,302,3,3,"\u0001","LEADERS, TIPPETS AND BACKING","SCIENTIFIC ANGLERS(TM) PREMIUM NYLON LEADERS - 12' 2 PACK ",113359,null,"12 ft - 16# - Clear   MOQ=6     ",null,840309113359,"6","EACH",7.99,4,3.6,3.2,null,null,null,null,null,null,null,null,null,null,null,null,null,null,null,null,null,4,null,null,null,null,"","",null,{"$f":"IF(LEN($AJ173)>0,$AJ173*AK173,\"\")","v":0},{"$f":"IF(LEN($AJ173)>0,$AJ173*AL173,\"\")","v":0},{"$f":"IF(LEN($AJ173)>0,$AJ173*AM173,\"\")","v":0},{"$f":"IF(LEN($AJ173)>0,$AJ173*AN173,\"\")","v":0},0,""]
[4,302,4,3,"\u0001","LEADERS, TIPPETS AND BACKING","SCIENTIFIC ANGLERS(TM) PREMIUM NYLON LEADERS - 12' 2 PACK ",118637,null,"12 ft - 0X - Clear   MOQ=6     ",null,840309118637,"6","EACH",7.99,4,3.6,3.2,null,null,null,null,null,null,null,null,null,null,null,null,null,null,null,null,null,4,null,null,null,null,{"$f":"IF($AV174=0,\"\",SUM(AK174:AN174))","v":""},{"$f":"IF($AV174>0,SUM(AR174:AU174),\"\")","v":""},null,{"$f":"IF(LEN($AJ174)>0,$AJ174*AK174,\"\")","v":0},{"$f":"IF(LEN($AJ174)>0,$AJ174*AL174,\"\")","v":0},{"$f":"IF(LEN($AJ174)>0,$AJ174*AM174,\"\")","v":0},{"$f":"IF(LEN($AJ174)>0,$AJ174*AN174,\"\")","v":0},0,""]
[4,302,5,3,"\u0001","LEADERS, TIPPETS AND BACKING","SCIENTIFIC ANGLERS(TM) PREMIUM NYLON LEADERS - 12' 2 PACK ",118644,null,"12 ft - 1X - Clear   MOQ=6     ",null,840309118644,"6","EACH",7.99,4,3.6,3.2,null,null,null,null,null,null,null,null,null,null,null,null,null,null,null,null,null,4,null,null,null,null,"","",null,{"$f":"IF(LEN($AJ175)>0,$AJ175*AK175,\"\")","v":0},{"$f":"IF(LEN($AJ175)>0,$AJ175*AL175,\"\")","v":0},{"$f":"IF(LEN($AJ175)>0,$AJ175*AM175,\"\")","v":0},{"$f":"IF(LEN($AJ175)>0,$AJ175*AN175,\"\")","v":0},0,""]
[4,302,6,3,"\u0001","LEADERS, TIPPETS AND BACKING","SCIENTIFIC ANGLERS(TM) PREMIUM NYLON LEADERS - 12' 2 PACK ",118651,null,"12 ft - 2X - Clear   MOQ=6     ",null,840309118651,"6","EACH",7.99,4,3.6,3.2,null,null,null,null,null,null,null,null,null,null,null,null,null,null,null,null,null,4,null,null,null,null,{"$f":"IF($AV176=0,\"\",SUM(AK176:AN176))","v":""},{"$f":"IF($AV176>0,SUM(AR176:AU176),\"\")","v":""},null,{"$f":"IF(LEN($AJ176)>0,$AJ176*AK176,\"\")","v":0},{"$f":"IF(LEN($AJ176)>0,$AJ176*AL176,\"\")","v":0},{"$f":"IF(LEN($AJ176)>0,$AJ176*AM176,\"\")","v":0},{"$f":"IF(LEN($AJ176)>0,$AJ176*AN176,\"\")","v":0},0,""]
[4,302,7,3,"\u0001","LEADERS, TIPPETS AND BACKING","SCIENTIFIC ANGLERS(TM) PREMIUM NYLON LEADERS - 12' 2 PACK ",118668,"","12 ft - 3X - Clear   MOQ=6     ",null,840309118668,"6","EACH",7.99,4,3.6,3.2,null,null,null,null,null,null,null,null,null,null,null,null,null,null,null,null,null,4,null,null,null,null,"","",null,0,0,0,0,0,""]
[4,302,8,3,"Green ST- 6-S","LEADERS, TIPPETS AND BACKING","SCIENTIFIC ANGLERS(TM) PREMIUM NYLON LEADERS - 12' 2 PACK ",118675,"","12 ft - 4X - Clear   MOQ=6     ",null,840309118675,"6","EACH",7.99,4,3.6,3.2,null,null,null,null,null,null,null,null,null,null,null,null,null,null,null,null,null,4,null,null,null,null,"","",null,0,0,0,0,0,""]
[4,302,9,3,"Green ST- 7-S","LEADERS, TIPPETS AND BACKING","SCIENTIFIC ANGLERS(TM) PREMIUM NYLON LEADERS - 12' 2 PACK ",118682,"","12 ft - 5X - Clear   MOQ=6     ",null,840309118682,"6","EACH",7.99,4,3.6,3.2,null,null,null,null,null,null,null,null,null,null,null,null,null,null,null,null,null,4,null,null,null,null,"","",null,{"$f":"IF(LEN($AJ179)>0,$AJ179*AK179,\"\")","v":0},0,0,0,0,""]
[4,302,10,3,"Green ST- 8-S","LEADERS, TIPPETS AND BACKING","SCIENTIFIC ANGLERS(TM) PREMIUM NYLON LEADERS - 12' 2 PACK ",118699,"","12 ft - 6X - Clear   MOQ=6      ",null,840309118699,"6","EACH",7.99,4,3.6,3.2,null,null,null,null,null,null,null,null,null,null,null,null,null,null,null,null,null,4,null,null,null,null,"","",null,0,0,0,0,0,""]
[4,303,null,2,"Lt. Green ST-10-S","LEADERS, TIPPETS AND BACKING","SCIENTIFIC ANGLERS(TM) PREMIUM NYLON LEADERS - 15' 2 PACK","SCIENTIFIC ANGLERS(TM) PREMIUM NYLON LEADERS - 15' 2 PACK   *NEW*",null,null,null,null,null,null,null,null,null,null,null,null,null,null,null,null,null,null,null,null,null,null,null,null,null,null,null,null,null,null,null,null,{"$f":"IF($AV181=0,\"\",SUM(AK181:AN181))","v":""},{"$f":"IF($AV181>0,SUM(AR181:AU181),\"\")","v":""}]
[4,303,1,3,"\u0001","LEADERS, TIPPETS AND BACKING","SCIENTIFIC ANGLERS(TM) PREMIUM NYLON LEADERS - 15' 2 PACK",118705,null,"15 ft - 0X - Clear   MOQ=6     ",null,840309118705,"6","EACH",7.99,4,3.6,3.2,null,null,null,null,null,null,null,null,null,null,null,null,null,null,null,null,null,{"$f":"IF(OR(ISBLANK($L182),$AW$3=0),\" - \",OFFSET(O182,0,$AW$3,1,1))","v":4},null,null,null,null,"","",null,{"$f":"IF(LEN($AJ182)>0,$AJ182*AK182,\"\")","v":0},{"$f":"IF(LEN($AJ182)>0,$AJ182*AL182,\"\")","v":0},{"$f":"IF(LEN($AJ182)>0,$AJ182*AM182,\"\")","v":0},{"$f":"IF(LEN($AJ182)>0,$AJ182*AN182,\"\")","v":0},{"$f":"COUNT(AK182:AN182)","v":0},{"$f":"IF($AV182<>0,ROW($AV$11),\"\")","v":""}]
[4,303,2,3,"\u0001","LEADERS, TIPPETS AND BACKING","SCIENTIFIC ANGLERS(TM) PREMIUM NYLON LEADERS - 15' 2 PACK",118712,null,"15 ft - 1X - Clear   MOQ=6     ",null,840309118712,"6","EACH",7.99,4,3.6,3.2,null,null,null,null,null,null,null,null,null,null,null,null,null,null,null,null,null,{"$f":"IF(OR(ISBLANK($L183),$AW$3=0),\" - \",OFFSET(O183,0,$AW$3,1,1))","v":4},null,null,null,null,"","",null,0,0,0,0,{"$f":"COUNT(AK183:AN183)","v":0},{"$f":"IF($AV183<>0,ROW($AV$11),\"\")","v":""}]
[4,303,3,3,"\u0001","LEADERS, TIPPETS AND BACKING","SCIENTIFIC ANGLERS(TM) PREMIUM NYLON LEADERS - 15' 2 PACK",118729,null,"15 ft - 2X - Clear   MOQ=6     ",null,840309118729,"6","EACH",7.99,4,3.6,3.2,null,null,null,null,null,null,null,null,null,null,null,null,null,null,null,null,null,{"$f":"IF(OR(ISBLANK($L184),$AW$3=0),\" - \",OFFSET(O184,0,$AW$3,1,1))","v":4},null,null,null,null,"","",null,0,0,0,0,{"$f":"COUNT(AK184:AN184)","v":0},{"$f":"IF($AV184<>0,ROW($AV$11),\"\")","v":""}]
[4,304,null,2,"Green ST- 9-S","LEADERS, TIPPETS AND BACKING","SCIENTIFIC ANGLERS(TM) PREMIUM FRESHWATER LEADERS - 9' BASS  2 PACK","SCIENTIFIC ANGLERS(TM) PREMIUM FRESHWATER LEADERS - 9' BASS  2 PACK   *NEW*",null,null,null,null,null,null,null,null,null,null,null,null,null,null,null,null,null,null,null,null,null,null,null,null,null,null,null,null,null,null,null,null,"",""]
[4,304,1,3,"Green ST-10-S","LEADERS, TIPPETS AND BACKING","SCIENTIFIC ANGLERS(TM) PREMIUM FRESHWATER LEADERS - 9' BASS  2 PACK",112161,null,"9 ft - 8# - Clear   MOQ=6      ",null,840309112161,"6","EACH",7.99,4,3.6,3.2,null,null,null,null,null,null,null,null,null,null,null,null,null,null,null,null,null,{"$f":"IF(OR(ISBLANK($L186),$AW$3=0),\" - \",OFFSET(O186,0,$AW$3,1,1))","v":4},null,null,null,null,"","",null,0,0,0,0,{"$f":"COUNT(AK186:AN186)","v":0},{"$f":"IF($AV186<>0,ROW($AV$11),\"\")","v":""}]
[4,304,2,3,"\u0001","LEADERS, TIPPETS AND BACKING","SCIENTIFIC ANGLERS(TM) PREMIUM FRESHWATER LEADERS - 9' BASS  2 PACK",112178,null,"9 ft - 10# - Clear   MOQ=6      ",null,840309112178,"6","EACH",7.99,4,3.6,3.2,null,null,null,null,null,null,null,null,null,null,null,null,null,null,null,null,null,4,null,null,null,null,"","",null,0,0,0,0,0,""]
[4,304,3,3,"Dark Green ST- 6-S","LEADERS, TIPPETS AND BACKING","SCIENTIFIC ANGLERS(TM) PREMIUM FRESHWATER LEADERS - 9' BASS  2 PACK",112185,null,"9 ft - 12# - Clear   MOQ=6      ",null,840309112185,"6","EACH",7.99,4,3.6,3.2,null,null,null,null,null,null,null,null,null,null,null,null,null,null,null,null,null,4,null,null,null,null,"","",null,0,0,0,0,0,""]
[4,304,4,3,"Dark Green ST- 7-S","LEADERS, TIPPETS AND BACKING","SCIENTIFIC ANGLERS(TM) PREMIUM FRESHWATER LEADERS - 9' BASS  2 PACK",113175,"","9 ft - 14# - Clear   MOQ=6      ",null,840309113175,"6","EACH",7.99,4,3.6,3.2,null,null,null,null,null,null,null,null,null,null,null,null,null,null,null,null,null,4,null,null,null,null,{"$f":"IF($AV189=0,\"\",SUM(AK189:AN189))","v":""},{"$f":"IF($AV189>0,SUM(AR189:AU189),\"\")","v":""},null,{"$f":"IF(LEN($AJ189)>0,$AJ189*AK189,\"\")","v":0},{"$f":"IF(LEN($AJ189)>0,$AJ189*AL189,\"\")","v":0},{"$f":"IF(LEN($AJ189)>0,$AJ189*AM189,\"\")","v":0},{"$f":"IF(LEN($AJ189)>0,$AJ189*AN189,\"\")","v":0},0,""]
[4,304,5,3,"Dark Green ST- 7-S","LEADERS, TIPPETS AND BACKING","SCIENTIFIC ANGLERS(TM) PREMIUM FRESHWATER LEADERS - 9' BASS  2 PACK",113168,"","9 ft - 16# - Clear   MOQ=6      ",null,840309113168,"6","EACH",7.99,4,3.6,3.2,null,null,null,null,null,null,null,null,null,null,null,null,null,null,null,null,null,4,null,null,null,null,"","",null,0,0,0,0,0,""]
[4,304,6,3,"Dark Green ST- 7-S","LEADERS, TIPPETS AND BACKING","SCIENTIFIC ANGLERS(TM) PREMIUM FRESHWATER LEADERS - 9' BASS  2 PACK",113151,"","9 ft - 18# - Clear   MOQ=6    ",null,840309113151,"6","EACH",7.99,4,3.6,3.2,null,null,null,null,null,null,null,null,null,null,null,null,null,null,null,null,null,4,null,null,null,null,"","",null,0,0,0,0,0,""]
[4,305,null,2,"Dark Green ST- 8-S","LEADERS, TIPPETS AND BACKING","SCIENTIFIC ANGLERS(TM) PREMIUM FRESHWATER LEADERS - 9' ANADROMOUS  2 PACK","SCIENTIFIC ANGLERS(TM) PREMIUM FRESHWATER LEADERS - 9' ANADROMOUS  2 PACK   *NEW*",null,null,null,null,null,null,null,null,null,null,null,null,null,null,null,null,null,null,null,null,null,null,null,null,null,null,null,null,null,null,null,null,"",""]
[4,305,1,3,"Dark Green ST- 9-S","LEADERS, TIPPETS AND BACKING","SCIENTIFIC ANGLERS(TM) PREMIUM FRESHWATER LEADERS - 9' ANADROMOUS  2 PACK",113205,"","9 ft - 14# - Clear   MOQ=6      ",null,840309113205,"6","EACH",7.99,4,3.6,3.2,null,null,null,null,null,null,null,null,null,null,null,null,null,null,null,null,null,{"$f":"IF(OR(ISBLANK($L193),$AW$3=0),\" - \",OFFSET(O193,0,$AW$3,1,1))","v":4},null,null,null,null,"","",null,0,0,0,0,{"$f":"COUNT(AK193:AN193)","v":0},{"$f":"IF($AV193<>0,ROW($AV$11),\"\")","v":""}]
[4,305,2,3,"Dark Green ST-10-S","LEADERS, TIPPETS AND BACKING","SCIENTIFIC ANGLERS(TM) PREMIUM FRESHWATER LEADERS - 9' ANADROMOUS  2 PACK",113199,"","9 ft - 16# - Clear   MOQ=6     ",null,840309113199,"6","EACH",7.99,4,3.6,3.2,null,null,null,null,null,null,null,null,null,null,null,null,null,null,null,null,null,{"$f":"IF(OR(ISBLANK($L194),$AW$3=0),\" - \",OFFSET(O194,0,$AW$3,1,1))","v":4},null,null,null,null,"","",null,0,0,0,0,{"$f":"COUNT(AK194:AN194)","v":0},{"$f":"IF($AV194<>0,ROW($AV$11),\"\")","v":""}]
[4,305,3,3,"\u0001","LEADERS, TIPPETS AND BACKING","SCIENTIFIC ANGLERS(TM) PREMIUM FRESHWATER LEADERS - 9' ANADROMOUS  2 PACK",113182,"","9 ft - 18# - Clear   MOQ=6     ",null,840309113182,"6","EACH",7.99,4,3.6,3.2,null,null,null,null,null,null,null,null,null,null,null,null,null,null,null,null,null,{"$f":"IF(OR(ISBLANK($L195),$AW$3=0),\" - \",OFFSET(O195,0,$AW$3,1,1))","v":4},null,null,null,null,"","",null,0,0,0,0,{"$f":"COUNT(AK195:AN195)","v":0},{"$f":"IF($AV195<>0,ROW($AV$11),\"\")","v":""}]
[4,306,null,2,"\u0001","LEADERS, TIPPETS AND BACKING","SCIENTIFIC ANGLERS(TM) PREMIUM FRESHWATER LEADERS - 12' ANADROMOUS  2 PACK","SCIENTIFIC ANGLERS(TM) PREMIUM FRESHWATER LEADERS - 12' ANADROMOUS  2 PACK   *NEW*",null,null,null,null,null,null,null,null,null,null,null,null,null,null,null,null,null,null,null,null,null,null,null,null,null,null,null,null,null,null,null,null,"",""]
[4,306,1,3,"Dark Gray ST- 7-S","LEADERS, TIPPETS AND BACKING","SCIENTIFIC ANGLERS(TM) PREMIUM FRESHWATER LEADERS - 12' ANADROMOUS  2 PACK",113298,"","12 ft - 14# - Clear   MOQ=6      ",null,840309113298,"6","EACH",7.99,4,3.6,3.2,null,null,null,null,null,null,null,null,null,null,null,null,null,null,null,null,null,{"$f":"IF(OR(ISBLANK($L197),$AW$3=0),\" - \",OFFSET(O197,0,$AW$3,1,1))","v":4},null,null,null,null,"","",null,{"$f":"IF(LEN($AJ197)>0,$AJ197*AK197,\"\")","v":0},0,0,0,{"$f":"COUNT(AK197:AN197)","v":0},{"$f":"IF($AV197<>0,ROW($AV$11),\"\")","v":""}]
[4,306,2,3,"Dark Gray ST- 8-S","LEADERS, TIPPETS AND BACKING","SCIENTIFIC ANGLERS(TM) PREMIUM FRESHWATER LEADERS - 12' ANADROMOUS  2 PACK",113281,"","12 ft - 16# - Clear   MOQ=6   ",null,840309113281,"6","EACH",7.99,4,3.6,3.2,null,null,null,null,null,null,null,null,null,null,null,null,null,null,null,null,null,{"$f":"IF(OR(ISBLANK($L198),$AW$3=0),\" - \",OFFSET(O198,0,$AW$3,1,1))","v":4},null,null,null,null,"","",null,0,0,0,0,{"$f":"COUNT(AK198:AN198)","v":0},{"$f":"IF($AV198<>0,ROW($AV$11),\"\")","v":""}]
[4,306,3,3,"Dark Gray ST- 9-S","LEADERS, TIPPETS AND BACKING","SCIENTIFIC ANGLERS(TM) PREMIUM FRESHWATER LEADERS - 12' ANADROMOUS  2 PACK",113274,"","12 ft - 18# - Clear   MOQ=6      ",null,840309113274,"6","EACH",7.99,4,3.6,3.2,null,null,null,null,null,null,null,null,null,null,null,null,null,null,null,null,null,{"$f":"IF(OR(ISBLANK($L199),$AW$3=0),\" - \",OFFSET(O199,0,$AW$3,1,1))","v":4},null,null,null,null,"","",null,0,0,0,0,{"$f":"COUNT(AK199:AN199)","v":0},{"$f":"IF($AV199<>0,ROW($AV$11),\"\")","v":""}]
[4,307,null,2,"\u0001","LEADERS, TIPPETS AND BACKING","SCIENTIFIC ANGLERS(TM) PREMIUM SALTWATER LEADERS - 9'   2 PACK","SCIENTIFIC ANGLERS(TM) PREMIUM SALTWATER LEADERS - 9'   2 PACK   *NEW*",null,null,null,null,null,null,null,null,null,null,null,null,null,null,null,null,null,null,null,null,null,null,null,null,null,null,null,null,null,null,null,null,{"$f":"IF($AV200=0,\"\",SUM(AK200:AN200))","v":""},{"$f":"IF($AV200>0,SUM(AR200:AU200),\"\")","v":""}]
[4,307,1,3," 7 1/2 ft 2X","LEADERS, TIPPETS AND BACKING","SCIENTIFIC ANGLERS(TM) PREMIUM SALTWATER LEADERS - 9'   2 PACK",112765,null,"9 ft - 8# - Clear   MOQ=6      ",null,840309112765,"6","EACH",7.99,4,3.6,3.2,null,null,null,null,null,null,null,null,null,null,null,null,null,null,null,null,null,{"$f":"IF(OR(ISBLANK($L201),$AW$3=0),\" - \",OFFSET(O201,0,$AW$3,1,1))","v":4},null,null,null,null,{"$f":"IF($AV201=0,\"\",SUM(AK201:AN201))","v":""},{"$f":"IF($AV201>0,SUM(AR201:AU201),\"\")","v":""},null,{"$f":"IF(LEN($AJ201)>0,$AJ201*AK201,\"\")","v":0},{"$f":"IF(LEN($AJ201)>0,$AJ201*AL201,\"\")","v":0},{"$f":"IF(LEN($AJ201)>0,$AJ201*AM201,\"\")","v":0},{"$f":"IF(LEN($AJ201)>0,$AJ201*AN201,\"\")","v":0},{"$f":"COUNT(AK201:AN201)","v":0},{"$f":"IF($AV201<>0,ROW($AV$11),\"\")","v":""}]
[4,307,2,3," 7 1/2 ft 2X","LEADERS, TIPPETS AND BACKING","SCIENTIFIC ANGLERS(TM) PREMIUM SALTWATER LEADERS - 9'   2 PACK",112772,null,"9 ft - 10# - Clear   MOQ=6      ",null,840309112772,"6","EACH",7.99,4,3.6,3.2,null,null,null,null,null,null,null,null,null,null,null,null,null,null,null,null,null,4,null,null,null,null,"","",null,{"$f":"IF(LEN($AJ202)>0,$AJ202*AK202,\"\")","v":0},0,0,0,0,""]
[4,307,3,3," 7 1/2 ft 3X","LEADERS, TIPPETS AND BACKING","SCIENTIFIC ANGLERS(TM) PREMIUM SALTWATER LEADERS - 9'   2 PACK",112789,null,"9 ft - 12# - Clear   MOQ=6      ",null,840309112789,"6","EACH",7.99,4,3.6,3.2,null,null,null,null,null,null,null,null,null,null,null,null,null,null,null,null,null,4,null,null,null,null,"","",null,0,0,0,0,0,""]
[4,307,4,3,"Clear 7 1/2 ft 4X","LEADERS, TIPPETS AND BACKING","SCIENTIFIC ANGLERS(TM) PREMIUM SALTWATER LEADERS - 9'   2 PACK",113236,"","9 ft - 14# - Clear   MOQ=6    ",null,840309113236,"6","EACH",7.99,4,3.6,3.2,null,null,null,null,null,null,null,null,null,null,null,null,null,null,null,null,null,4,null,null,null,null,"","",null,0,0,0,0,0,""]
[4,307,5,3,"Clear 7 1/2 ft 5X","LEADERS, TIPPETS AND BACKING","SCIENTIFIC ANGLERS(TM) PREMIUM SALTWATER LEADERS - 9'   2 PACK",113229,"","9 ft - 16# - Clear   MOQ=6    ",null,840309113229,"6","EACH",7.99,4,3.6,3.2,null,null,null,null,null,null,null,null,null,null,null,null,null,null,null,null,null,4,null,null,null,null,{"$f":"IF($AV205=0,\"\",SUM(AK205:AN205))","v":""},{"$f":"IF($AV205>0,SUM(AR205:AU205),\"\")","v":""},null,{"$f":"IF(LEN($AJ205)>0,$AJ205*AK205,\"\")","v":0},{"$f":"IF(LEN($AJ205)>0,$AJ205*AL205,\"\")","v":0},{"$f":"IF(LEN($AJ205)>0,$AJ205*AM205,\"\")","v":0},{"$f":"IF(LEN($AJ205)>0,$AJ205*AN205,\"\")","v":0},0,""]
[4,307,6,3,"Clear 7 1/2 ft 5X","LEADERS, TIPPETS AND BACKING","SCIENTIFIC ANGLERS(TM) PREMIUM SALTWATER LEADERS - 9'   2 PACK",113212,"","9 ft - 18# - Clear   MOQ=6     ",null,840309113212,"6","EACH",7.99,4,3.6,3.2,null,null,null,null,null,null,null,null,null,null,null,null,null,null,null,null,null,4,null,null,null,null,"","",null,0,0,0,0,0,""]
[4,308,null,2,"\u0001","LEADERS, TIPPETS AND BACKING","SCIENTIFIC ANGLERS(TM) PREMIUM SALTWATER LEADERS - 12'   2 PACK","SCIENTIFIC ANGLERS(TM) PREMIUM SALTWATER LEADERS - 12'   2 PACK   *NEW",null,null,null,null,null,null,null,null,null,null,null,null,null,null,null,null,null,null,null,null,null,null,null,null,null,null,null,null,null,null,null,null,{"$f":"IF($AV207=0,\"\",SUM(AK207:AN207))","v":""},{"$f":"IF($AV207>0,SUM(AR207:AU207),\"\")","v":""}]
[4,308,1,3," 7 1/2 ft 2X","LEADERS, TIPPETS AND BACKING","SCIENTIFIC ANGLERS(TM) PREMIUM SALTWATER LEADERS - 12'   2 PACK",113328,"","12 ft - 14# - Clear   MOQ=6    ",null,840309113328,"6","EACH",7.99,4,3.6,3.2,null,null,null,null,null,null,null,null,null,null,null,null,null,null,null,null,null,{"$f":"IF(OR(ISBLANK($L208),$AW$3=0),\" - \",OFFSET(O208,0,$AW$3,1,1))","v":4},null,null,null,null,"","",null,{"$f":"IF(LEN($AJ208)>0,$AJ208*AK208,\"\")","v":0},{"$f":"IF(LEN($AJ208)>0,$AJ208*AL208,\"\")","v":0},{"$f":"IF(LEN($AJ208)>0,$AJ208*AM208,\"\")","v":0},{"$f":"IF(LEN($AJ208)>0,$AJ208*AN208,\"\")","v":0},{"$f":"COUNT(AK208:AN208)","v":0},{"$f":"IF($AV208<>0,ROW($AV$11),\"\")","v":""}]
[4,308,2,3," 7 1/2 ft 2X","LEADERS, TIPPETS AND BACKING","SCIENTIFIC ANGLERS(TM) PREMIUM SALTWATER LEADERS - 12'   2 PACK",113311,"","12 ft - 16# - Clear   MOQ=6    ",null,840309113311,"6","EACH",7.99,4,3.6,3.2,null,null,null,null,null,null,null,null,null,null,null,null,null,null,null,null,null,{"$f":"IF(OR(ISBLANK($L209),$AW$3=0),\" - \",OFFSET(O209,0,$AW$3,1,1))","v":4},null,null,null,null,"","",null,0,0,0,0,{"$f":"COUNT(AK209:AN209)","v":0},{"$f":"IF($AV209<>0,ROW($AV$11),\"\")","v":""}]
[4,308,3,3," 7 1/2 ft 3X","LEADERS, TIPPETS AND BACKING","SCIENTIFIC ANGLERS(TM) PREMIUM SALTWATER LEADERS - 12'   2 PACK",113304,"","12 ft - 18# - Clear   MOQ=6     ",null,840309113304,"6","EACH",7.99,4,3.6,3.2,null,null,null,null,null,null,null,null,null,null,null,null,null,null,null,null,null,{"$f":"IF(OR(ISBLANK($L210),$AW$3=0),\" - \",OFFSET(O210,0,$AW$3,1,1))","v":4},null,null,null,null,"","",null,0,0,0,0,{"$f":"COUNT(AK210:AN210)","v":0},{"$f":"IF($AV210<>0,ROW($AV$11),\"\")","v":""}]
[4,309,null,2,"\u0001","LEADERS, TIPPETS AND BACKING","SCIENTIFIC ANGLERS(TM) PREMIUM SALTWATER LEADERS - 15'   2 PACK","SCIENTIFIC ANGLERS(TM) PREMIUM SALTWATER LEADERS - 15'   2 PACK   *NEW*",null,null,null,null,null,null,null,null,null,null,null,null,null,null,null,null,null,null,null,null,null,null,null,null,null,null,null,null,null,null,null,null,{"$f":"IF($AV211=0,\"\",SUM(AK211:AN211))","v":""},{"$f":"IF($AV211>0,SUM(AR211:AU211),\"\")","v":""}]
[4,309,1,3," 7 1/2 ft 2X","LEADERS, TIPPETS AND BACKING","SCIENTIFIC ANGLERS(TM) PREMIUM SALTWATER LEADERS - 15'   2 PACK",113380,"","15 ft - 14# - Clear   MOQ=6    ",null,840309113380,"6","EACH",7.99,4,3.6,3.2,null,null,null,null,null,null,null,null,null,null,null,null,null,null,null,null,null,{"$f":"IF(OR(ISBLANK($L212),$AW$3=0),\" - \",OFFSET(O212,0,$AW$3,1,1))","v":4},null,null,null,null,"","",null,{"$f":"IF(LEN($AJ212)>0,$AJ212*AK212,\"\")","v":0},{"$f":"IF(LEN($AJ212)>0,$AJ212*AL212,\"\")","v":0},{"$f":"IF(LEN($AJ212)>0,$AJ212*AM212,\"\")","v":0},{"$f":"IF(LEN($AJ212)>0,$AJ212*AN212,\"\")","v":0},{"$f":"COUNT(AK212:AN212)","v":0},{"$f":"IF($AV212<>0,ROW($AV$11),\"\")","v":""}]
[4,309,2,3," 7 1/2 ft 2X","LEADERS, TIPPETS AND BACKING","SCIENTIFIC ANGLERS(TM) PREMIUM SALTWATER LEADERS - 15'   2 PACK",113373,"","15 ft - 16# - Clear   MOQ=6    ",null,840309113373,"6","EACH",7.99,4,3.6,3.2,null,null,null,null,null,null,null,null,null,null,null,null,null,null,null,null,null,{"$f":"IF(OR(ISBLANK($L213),$AW$3=0),\" - \",OFFSET(O213,0,$AW$3,1,1))","v":4},null,null,null,null,"","",null,0,0,0,0,{"$f":"COUNT(AK213:AN213)","v":0},{"$f":"IF($AV213<>0,ROW($AV$11),\"\")","v":""}]
[4,309,3,3," 7 1/2 ft 3X","LEADERS, TIPPETS AND BACKING","SCIENTIFIC ANGLERS(TM) PREMIUM SALTWATER LEADERS - 15'   2 PACK",113366,"","15 ft - 18# - Clear   MOQ=6     ",null,840309113366,"6","EACH",7.99,4,3.6,3.2,null,null,null,null,null,null,null,null,null,null,null,null,null,null,null,null,null,{"$f":"IF(OR(ISBLANK($L214),$AW$3=0),\" - \",OFFSET(O214,0,$AW$3,1,1))","v":4},null,null,null,null,"","",null,0,0,0,0,{"$f":"COUNT(AK214:AN214)","v":0},{"$f":"IF($AV214<>0,ROW($AV$11),\"\")","v":""}]
[4,310,null,2,"\u0001","LEADERS, TIPPETS AND BACKING","SCIENTIFIC ANGLERS(TM) PREMIUM FLUOROCARBON LEADERS 9' FRESHWATER/SALTWATER 2 PACK","SCIENTIFIC ANGLERS(TM) PREMIUM FLUOROCARBON LEADERS 9' FRESHWATER/SALTWATER 2 PACK   *NEW*",null,null,null,null,null,null,null,null,null,null,null,null,null,null,null,null,null,null,null,null,null,null,null,null,null,null,null,null,null,null,null,null,"",""]
[4,310,1,3,"Clear 9 ft 3X","LEADERS, TIPPETS AND BACKING","SCIENTIFIC ANGLERS(TM) PREMIUM FLUOROCARBON LEADERS 9' FRESHWATER/SALTWATER 2 PACK",118736,"","9 ft Fluorocaron - 0X - Clear   MOQ=6",null,840309118736,"6","EACH",23.95,11.98,10.78,9.58,null,null,null,null,null,null,null,null,null,null,null,null,null,null,null,null,null,{"$f":"IF(OR(ISBLANK($L216),$AW$3=0),\" - \",OFFSET(O216,0,$AW$3,1,1))","v":11.98},null,null,null,null,"","",null,{"$f":"IF(LEN($AJ216)>0,$AJ216*AK216,\"\")","v":0},0,0,0,{"$f":"COUNT(AK216:AN216)","v":0},{"$f":"IF($AV216<>0,ROW($AV$11),\"\")","v":""}]
[4,310,2,3,"Clear 9 ft 4X","LEADERS, TIPPETS AND BACKING","SCIENTIFIC ANGLERS(TM) PREMIUM FLUOROCARBON LEADERS 9' FRESHWATER/SALTWATER 2 PACK",118743,"","9 ft Fluorocaron - 1X - Clear   MOQ=6",null,840309118743,"6","EACH",23.95,11.98,10.78,9.58,null,null,null,null,null,null,null,null,null,null,null,null,null,null,null,null,null,11.98,null,null,null,null,"","",null,0,0,0,0,0,""]
[4,310,3,3,"Clear 9 ft 5X","LEADERS, TIPPETS AND BACKING","SCIENTIFIC ANGLERS(TM) PREMIUM FLUOROCARBON LEADERS 9' FRESHWATER/SALTWATER 2 PACK",118750,"","9 ft Fluorocaron - 2X - Clear   MOQ=6",null,840309118750,"6","EACH",23.95,11.98,10.78,9.58,null,null,null,null,null,null,null,null,null,null,null,null,null,null,null,null,null,11.98,null,null,null,null,"","",null,0,0,0,0,0,""]
[4,310,4,3,"Clear 9 ft 6X","LEADERS, TIPPETS AND BACKING","SCIENTIFIC ANGLERS(TM) PREMIUM FLUOROCARBON LEADERS 9' FRESHWATER/SALTWATER 2 PACK",118767,"","9 ft Fluorocaron - 3X - Clear   MOQ=6",null,840309118767,"6","EACH",23.95,11.98,10.78,9.58,null,null,null,null,null,null,null,null,null,null,null,null,null,null,null,null,null,11.98,null,null,null,null,"","",null,0,0,0,0,0,""]
[4,310,5,3,"Clear 9 ft 7X","LEADERS, TIPPETS AND BACKING","SCIENTIFIC ANGLERS(TM) PREMIUM FLUOROCARBON LEADERS 9' FRESHWATER/SALTWATER 2 PACK",118774,"","9 ft Fluorocaron - 4X - Clear   MOQ=6",null,840309118774,"6","EACH",23.95,11.98,10.78,9.58,null,null,null,null,null,null,null,null,null,null,null,null,null,null,null,null,null,11.98,null,null,null,null,"","",null,0,0,0,0,0,""]
[4,310,6,3,"\u0001","LEADERS, TIPPETS AND BACKING","SCIENTIFIC ANGLERS(TM) PREMIUM FLUOROCARBON LEADERS 9' FRESHWATER/SALTWATER 2 PACK",118781,"","9 ft Fluorocaron - 5X - Clear   MOQ=6",null,840309118781,"6","EACH",23.95,11.98,10.78,9.58,null,null,null,null,null,null,null,null,null,null,null,null,null,null,null,null,null,11.98,null,null,null,null,"","",null,0,0,0,0,0,""]
[4,310,7,3,"Clear 12 ft 3X","LEADERS, TIPPETS AND BACKING","SCIENTIFIC ANGLERS(TM) PREMIUM FLUOROCARBON LEADERS 9' FRESHWATER/SALTWATER 2 PACK",118798,"","9 ft Fluorocaron - 6X - Clear   MOQ=6",null,840309118798,"6","EACH",23.95,11.98,10.78,9.58,null,null,null,null,null,null,null,null,null,null,null,null,null,null,null,null,null,{"$f":"IF(OR(ISBLANK($L222),$AW$3=0),\" - \",OFFSET(O222,0,$AW$3,1,1))","v":11.98},null,null,null,null,{"$f":"IF($AV222=0,\"\",SUM(AK222:AN222))","v":""},{"$f":"IF($AV222>0,SUM(AR222:AU222),\"\")","v":""},null,{"$f":"IF(LEN($AJ222)>0,$AJ222*AK222,\"\")","v":0},{"$f":"IF(LEN($AJ222)>0,$AJ222*AL222,\"\")","v":0},{"$f":"IF(LEN($AJ222)>0,$AJ222*AM222,\"\")","v":0},{"$f":"IF(LEN($AJ222)>0,$AJ222*AN222,\"\")","v":0},{"$f":"COUNT(AK222:AN222)","v":0},{"$f":"IF($AV222<>0,ROW($AV$11),\"\")","v":""}]
[4,310,8,3,"Clear 12 ft 3X","LEADERS, TIPPETS AND BACKING","SCIENTIFIC ANGLERS(TM) PREMIUM FLUOROCARBON LEADERS 9' FRESHWATER/SALTWATER 2 PACK",118804,null,"9 ft Fluorocaron - 7X - Clear   MOQ=6",null,840309118804,"6","EACH",23.95,11.98,10.78,9.58,null,null,null,null,null,null,null,null,null,null,null,null,null,null,null,null,null,11.98,null,null,null,null,"","",null,0,0,0,0,{"$f":"COUNT(AK223:AN223)","v":0},{"$f":"IF($AV223<>0,ROW($AV$11),\"\")","v":""}]
[4,311,null,2,"Clear 12 ft 4X","LEADERS, TIPPETS AND BACKING","SCIENTIFIC ANGLERS(TM) NYLON TIPPET 8X - 0X 30 METER INTERLOCKING SPOOL WITH CUTTER","SCIENTIFIC ANGLERS(TM) NYLON TIPPET 8X - 0X 30 METER INTERLOCKING SPOOL WITH CUTTER   *NEW*",null,null,null,null,null,null,null,null,null,null,null,null,null,null,null,null,null,null,null,null,null,null,null,null,null,null,null,null,null,null,null,null,"",""]
[4,311,1,3,"Clear 12 ft 5X","LEADERS, TIPPETS AND BACKING","SCIENTIFIC ANGLERS(TM) NYLON TIPPET 8X - 0X 30 METER INTERLOCKING SPOOL WITH CUTTER",115278,"","0X - Clear 30 meters      ",null,840309115278,"1","EACH",4.99,2.5,2.25,2,null,null,null,null,null,null,null,null,null,null,null,null,null,null,null,null,null,{"$f":"IF(OR(ISBLANK($L225),$AW$3=0),\" - \",OFFSET(O225,0,$AW$3,1,1))","v":2.5},null,null,null,null,"","",null,0,0,0,0,{"$f":"COUNT(AK225:AN225)","v":0},{"$f":"IF($AV225<>0,ROW($AV$11),\"\")","v":""}]
[4,311,2,3,"Clear 12 ft 6X","LEADERS, TIPPETS AND BACKING","SCIENTIFIC ANGLERS(TM) NYLON TIPPET 8X - 0X 30 METER INTERLOCKING SPOOL WITH CUTTER",115285,"","1X - Clear 30 meters      ",null,840309115285,"1","EACH",4.99,2.5,2.25,2,null,null,null,null,null,null,null,null,null,null,null,null,null,null,null,null,null,2.5,null,null,null,null,"","",null,0,0,0,0,0,""]
[4,311,3,3,"\u0001","LEADERS, TIPPETS AND BACKING","SCIENTIFIC ANGLERS(TM) NYLON TIPPET 8X - 0X 30 METER INTERLOCKING SPOOL WITH CUTTER",115292,"","2X - Clear 30 meters      ",null,840309115292,"1","EACH",4.99,2.5,2.25,2,null,null,null,null,null,null,null,null,null,null,null,null,null,null,null,null,null,2.5,null,null,null,null,"","",null,0,0,0,0,0,""]
[4,311,4,3,"Clear 8# 9 ft","LEADERS, TIPPETS AND BACKING","SCIENTIFIC ANGLERS(TM) NYLON TIPPET 8X - 0X 30 METER INTERLOCKING SPOOL WITH CUTTER",115308,"","3X - Clear 30 meters      ",null,840309115308,"1","EACH",4.99,2.5,2.25,2,null,null,null,null,null,null,null,null,null,null,null,null,null,null,null,null,null,2.5,null,null,null,null,"","",null,0,0,0,0,0,""]
[4,311,5,3,"Clear 10# 9 ft","LEADERS, TIPPETS AND BACKING","SCIENTIFIC ANGLERS(TM) NYLON TIPPET 8X - 0X 30 METER INTERLOCKING SPOOL WITH CUTTER",115315,"","4X - Clear 30 meters      ",null,840309115315,"1","EACH",4.99,2.5,2.25,2,null,null,null,null,null,null,null,null,null,null,null,null,null,null,null,null,null,2.5,null,null,null,null,"","",null,0,0,0,0,0,""]
[4,311,6,3,"Clear 12# 9 ft","LEADERS, TIPPETS AND BACKING","SCIENTIFIC ANGLERS(TM) NYLON TIPPET 8X - 0X 30 METER INTERLOCKING SPOOL WITH CUTTER",115322,"","5X - Clear 30 meters      ",null,840309115322,"1","EACH",4.99,2.5,2.25,2,null,null,null,null,null,null,null,null,null,null,null,null,null,null,null,null,null,2.5,null,null,null,null,"","",null,{"$f":"IF(LEN($AJ230)>0,$AJ230*AK230,\"\")","v":0},0,0,0,0,""]
[4,311,7,3,"Clear 15# 9 ft","LEADERS, TIPPETS AND BACKING","SCIENTIFIC ANGLERS(TM) NYLON TIPPET 8X - 0X 30 METER INTERLOCKING SPOOL WITH CUTTER",115339,"","6X - Clear 30 meters      ",null,840309115339,"1","EACH",4.99,2.5,2.25,2,null,null,null,null,null,null,null,null,null,null,null,null,null,null,null,null,null,2.5,null,null,null,null,"","",null,0,0,0,0,0,""]
[4,311,8,3,"\u0001","LEADERS, TIPPETS AND BACKING","SCIENTIFIC ANGLERS(TM) NYLON TIPPET 8X - 0X 30 METER INTERLOCKING SPOOL WITH CUTTER",115346,"","7X - Clear 30 meters      ",null,840309115346,"1","EACH",4.99,2.5,2.25,2,null,null,null,null,null,null,null,null,null,null,null,null,null,null,null,null,null,2.5,null,null,null,null,"","",null,0,0,0,0,0,""]
[4,311,9,3,"Clear 16# 6 ft","LEADERS, TIPPETS AND BACKING","SCIENTIFIC ANGLERS(TM) NYLON TIPPET 8X - 0X 30 METER INTERLOCKING SPOOL WITH CUTTER",115353,"","8X - Clear 30 meters      ",null,840309115353,"1","EACH",4.99,2.5,2.25,2,null,null,null,null,null,null,null,null,null,null,null,null,null,null,null,null,null,2.5,null,null,null,null,"","",null,0,0,0,0,0,""]
[4,312,null,2,"Clear 12 ft 4X","LEADERS, TIPPETS AND BACKING","SCIENTIFIC ANGLERS(TM)  NYLON TIPPET INTERLOCKING 100 METER GUIDE SPOOL WITH CUTTER ","SCIENTIFIC ANGLERS(TM)  NYLON TIPPET INTERLOCKING 100 METER GUIDE SPOOL WITH CUTTER   *NEW",null,null,null,null,null,null,null,null,null,null,null,null,null,null,null,null,null,null,null,null,null,null,null,null,null,null,null,null,null,null,null,null,{"$f":"IF($AV234=0,\"\",SUM(AK234:AN234))","v":""},{"$f":"IF($AV234>0,SUM(AR234:AU234),\"\")","v":""}]
[4,312,1,3,"Clear 12 ft 5X","LEADERS, TIPPETS AND BACKING","SCIENTIFIC ANGLERS(TM)  NYLON TIPPET INTERLOCKING 100 METER GUIDE SPOOL WITH CUTTER ",115438,null,"Freshwater 0X 100m Guide Spool",null,840309115438,"1","EACH",11.99,5.9950000000000001,5.3955000000000002,4.7960000000000003,null,null,null,null,null,null,null,null,null,null,null,null,null,null,null,null,null,{"$f":"IF(OR(ISBLANK($L235),$AW$3=0),\" - \",OFFSET(O235,0,$AW$3,1,1))","v":5.9950000000000001},null,null,null,null,"","",null,{"$f":"IF(LEN($AJ235)>0,$AJ235*AK235,\"\")","v":0},{"$f":"IF(LEN($AJ235)>0,$AJ235*AL235,\"\")","v":0},{"$f":"IF(LEN($AJ235)>0,$AJ235*AM235,\"\")","v":0},{"$f":"IF(LEN($AJ235)>0,$AJ235*AN235,\"\")","v":0},{"$f":"COUNT(AK235:AN235)","v":0},""]
[4,312,2,3,"Clear 12 ft 6X","LEADERS, TIPPETS AND BACKING","SCIENTIFIC ANGLERS(TM)  NYLON TIPPET INTERLOCKING 100 METER GUIDE SPOOL WITH CUTTER ",115445,null,"Freshwater 1X 100m Guide Spool",null,840309115445,"1","EACH",11.99,5.9950000000000001,5.3955000000000002,4.7960000000000003,null,null,null,null,null,null,null,null,null,null,null,null,null,null,null,null,null,5.9950000000000001,null,null,null,null,"","",null,0,0,0,0,0,""]
[4,312,3,3,"\u0001","LEADERS, TIPPETS AND BACKING","SCIENTIFIC ANGLERS(TM)  NYLON TIPPET INTERLOCKING 100 METER GUIDE SPOOL WITH CUTTER ",115452,null,"Freshwater 2X 100m Guide Spool",null,840309115452,"1","EACH",11.99,5.9950000000000001,5.3955000000000002,4.7960000000000003,null,null,null,null,null,null,null,null,null,null,null,null,null,null,null,null,null,5.9950000000000001,null,null,null,null,"","",null,0,0,0,0,0,""]
[4,312,4,3,"Clear 8# 9 ft","LEADERS, TIPPETS AND BACKING","SCIENTIFIC ANGLERS(TM)  NYLON TIPPET INTERLOCKING 100 METER GUIDE SPOOL WITH CUTTER ",115469,"","Freshwater 3X 100m Guide Spool",null,840309115469,"1","EACH",11.99,5.9950000000000001,5.3955000000000002,4.7960000000000003,null,null,null,null,null,null,null,null,null,null,null,null,null,null,null,null,null,5.9950000000000001,null,null,null,null,"","",null,0,0,0,0,0,""]
[4,312,5,3,"Clear 10# 9 ft","LEADERS, TIPPETS AND BACKING","SCIENTIFIC ANGLERS(TM)  NYLON TIPPET INTERLOCKING 100 METER GUIDE SPOOL WITH CUTTER ",115476,"","Freshwater 4X 100m Guide Spool",null,840309115476,"1","EACH",11.99,5.9950000000000001,5.3955000000000002,4.7960000000000003,null,null,null,null,null,null,null,null,null,null,null,null,null,null,null,null,null,5.9950000000000001,null,null,null,null,"","",null,0,0,0,0,0,""]
[4,312,6,3,"Clear 12# 9 ft","LEADERS, TIPPETS AND BACKING","SCIENTIFIC ANGLERS(TM)  NYLON TIPPET INTERLOCKING 100 METER GUIDE SPOOL WITH CUTTER ",115483,"","Freshwater 5X 100m Guide Spool",null,840309115483,"1","EACH",11.99,5.9950000000000001,5.3955000000000002,4.7960000000000003,null,null,null,null,null,null,null,null,null,null,null,null,null,null,null,null,null,5.9950000000000001,null,null,null,null,"","",null,0,0,0,0,0,""]
[4,312,7,3,"Clear 15# 9 ft","LEADERS, TIPPETS AND BACKING","SCIENTIFIC ANGLERS(TM)  NYLON TIPPET INTERLOCKING 100 METER GUIDE SPOOL WITH CUTTER ",115490,"","Freshwater 6X 100m Guide Spool",null,840309115490,"1","EACH",11.99,5.9950000000000001,5.3955000000000002,4.7960000000000003,null,null,null,null,null,null,null,null,null,null,null,null,null,null,null,null,null,5.9950000000000001,null,null,null,null,"","",null,0,0,0,0,0,""]
[4,312,8,3,"\u0001","LEADERS, TIPPETS AND BACKING","SCIENTIFIC ANGLERS(TM)  NYLON TIPPET INTERLOCKING 100 METER GUIDE SPOOL WITH CUTTER ",115506,null,"Freshwater 7X 100m Guide Spool",null,840309115506,"1","EACH",11.99,5.9950000000000001,5.3955000000000002,4.7960000000000003,null,null,null,null,null,null,null,null,null,null,null,null,null,null,null,null,null,5.9950000000000001,null,null,null,null,"","",null,0,0,0,0,0,""]
[4,313,null,2,"Clear 10# 12 ft","LEADERS, TIPPETS AND BACKING","SCIENTIFIC ANGLERS(TM) PREMIUM NYLON TIPPET","SCIENTIFIC ANGLERS(TM) PREMIUM NYLON TIPPET   *NEW*",null,null,null,null,null,null,null,null,null,null,null,null,null,null,null,null,null,null,null,null,null,null,null,null,null,null,null,null,null,null,null,null,"",""]
[4,313,1,3,"Clear 12# 12 ft","LEADERS, TIPPETS AND BACKING","SCIENTIFIC ANGLERS(TM) PREMIUM NYLON TIPPET",115360,"","20# - Clear 30 meters Cutter Spool      ",null,840309115360,"1","EACH",4.99,2.5,2.25,2,null,null,null,null,null,null,null,null,null,null,null,null,null,null,null,null,null,{"$f":"IF(OR(ISBLANK($L244),$AW$3=0),\" - \",OFFSET(O244,0,$AW$3,1,1))","v":2.5},null,null,null,null,"","",null,{"$f":"IF(LEN($AJ244)>0,$AJ244*AK244,\"\")","v":0},0,0,0,{"$f":"COUNT(AK244:AN244)","v":0},{"$f":"IF($AV244<>0,ROW($AV$11),\"\")","v":""}]
[4,313,2,3,"Clear 16# 12 ft","LEADERS, TIPPETS AND BACKING","SCIENTIFIC ANGLERS(TM) PREMIUM NYLON TIPPET",115377,"","25# - Clear 30 meters Cutter Spool      ",null,840309115377,"1","EACH",4.99,2.5,2.25,2,null,null,null,null,null,null,null,null,null,null,null,null,null,null,null,null,null,2.5,null,null,null,null,"","",null,0,0,0,0,0,""]
[4,313,3,3,"Clear 20# 12 ft","LEADERS, TIPPETS AND BACKING","SCIENTIFIC ANGLERS(TM) PREMIUM NYLON TIPPET",115384,"","35# - Clear 30 meters      ",null,840309115384,"1","EACH",4.99,2.5,2.25,2,null,null,null,null,null,null,null,null,null,null,null,null,null,null,null,null,null,2.5,null,null,null,null,"","",null,0,0,0,0,0,""]
[4,313,4,3,"Clear 22# 12 ft","LEADERS, TIPPETS AND BACKING","SCIENTIFIC ANGLERS(TM) PREMIUM NYLON TIPPET",115391,"","40# - Clear 30 meters      ",null,840309115391,"1","EACH",4.99,2.5,2.25,2,null,null,null,null,null,null,null,null,null,null,null,null,null,null,null,null,null,2.5,null,null,null,null,"","",null,0,0,0,0,0,""]
[4,313,5,3,"\u0001","LEADERS, TIPPETS AND BACKING","SCIENTIFIC ANGLERS(TM) PREMIUM NYLON TIPPET",115407,null,"50# - Clear 30 meters      ",null,840309115407,"1","EACH",4.99,2.5,2.25,2,null,null,null,null,null,null,null,null,null,null,null,null,null,null,null,null,null,2.5,null,null,null,null,"","",null,0,0,0,0,0,""]
[4,313,6,3,"Clear 10# 15 ft","LEADERS, TIPPETS AND BACKING","SCIENTIFIC ANGLERS(TM) PREMIUM NYLON TIPPET",115414,null,"60# - Clear 30 meters      ",null,840309115414,"1","EACH",4.99,2.5,2.25,2,null,null,null,null,null,null,null,null,null,null,null,null,null,null,null,null,null,2.5,null,null,null,null,"","",null,0,0,0,0,0,""]
[4,313,7,3,"Clear 12# 15 ft","LEADERS, TIPPETS AND BACKING","SCIENTIFIC ANGLERS(TM) PREMIUM NYLON TIPPET",115421,null,"65# - Clear 30 meters      ",null,840309115421,"1","EACH",4.99,2.5,2.25,2,null,null,null,null,null,null,null,null,null,null,null,null,null,null,null,null,null,2.5,null,null,null,null,"","",null,0,0,0,0,0,""]
[4,314,null,2,"Clear 20# 15 ft","LEADERS, TIPPETS AND BACKING","SCIENTIFIC ANGLERS(TM) PREMIUM HARD MONO AR TIPPET WITH INTERLOCKING SPOOL WITH CUTTER","SCIENTIFIC ANGLERS(TM) PREMIUM HARD MONO AR TIPPET WITH INTERLOCKING SPOOL WITH CUTTER   *NEW*",null,null,null,null,null,null,null,null,null,null,null,null,null,null,null,null,null,null,null,null,null,null,null,null,null,null,null,null,null,null,null,null,"",""]
[4,314,1,3,"Clear 22# 15 ft","LEADERS, TIPPETS AND BACKING","SCIENTIFIC ANGLERS(TM) PREMIUM HARD MONO AR TIPPET WITH INTERLOCKING SPOOL WITH CUTTER",115780,"","6# - Clear 30 meters Cutter Spool      ",null,840309115780,"1","EACH",4.99,2.5,2.25,2,null,null,null,null,null,null,null,null,null,null,null,null,null,null,null,null,null,{"$f":"IF(OR(ISBLANK($L252),$AW$3=0),\" - \",OFFSET(O252,0,$AW$3,1,1))","v":2.5},null,null,null,null,"","",null,0,0,0,0,0,""]
[4,314,2,3,"\u0001","LEADERS, TIPPETS AND BACKING","SCIENTIFIC ANGLERS(TM) PREMIUM HARD MONO AR TIPPET WITH INTERLOCKING SPOOL WITH CUTTER",115797,"","8# - Clear 30 meters Cutter Spool      ",null,840309115797,"1","EACH",4.99,2.5,2.25,2,null,null,null,null,null,null,null,null,null,null,null,null,null,null,null,null,null,2.5,null,null,null,null,"","",null,0,0,0,0,0,""]
[4,314,3,3,"Clear 10# 8 ft","LEADERS, TIPPETS AND BACKING","SCIENTIFIC ANGLERS(TM) PREMIUM HARD MONO AR TIPPET WITH INTERLOCKING SPOOL WITH CUTTER",115803,"","12# - Clear 30 meters Cutter Spool      ",null,840309115803,"1","EACH",4.99,2.5,2.25,2,null,null,null,null,null,null,null,null,null,null,null,null,null,null,null,null,null,2.5,null,null,null,null,"","",null,0,0,0,0,{"$f":"COUNT(AK254:AN254)","v":0},{"$f":"IF($AV254<>0,ROW($AV$11),\"\")","v":""}]
[4,314,4,3,"Clear 12# 8 ft","LEADERS, TIPPETS AND BACKING","SCIENTIFIC ANGLERS(TM) PREMIUM HARD MONO AR TIPPET WITH INTERLOCKING SPOOL WITH CUTTER",115810,"","16# - Clear 30 meters  Cutter Spool     ",null,840309115810,"1","EACH",4.99,2.5,2.25,2,null,null,null,null,null,null,null,null,null,null,null,null,null,null,null,null,null,2.5,null,null,null,null,"","",null,0,0,0,0,{"$f":"COUNT(AK255:AN255)","v":0},{"$f":"IF($AV255<>0,ROW($AV$11),\"\")","v":""}]
[4,314,5,3,"Clear 16# 8 ft","LEADERS, TIPPETS AND BACKING","SCIENTIFIC ANGLERS(TM) PREMIUM HARD MONO AR TIPPET WITH INTERLOCKING SPOOL WITH CUTTER",115827,"","20# - Clear 30 meters Cutter Spool         ",null,840309115827,"1","EACH",4.99,2.5,2.25,2,null,null,null,null,null,null,null,null,null,null,null,null,null,null,null,null,null,2.5,null,null,null,null,"","",null,0,0,0,0,{"$f":"COUNT(AK256:AN256)","v":0},{"$f":"IF($AV256<>0,ROW($AV$11),\"\")","v":""}]
[4,315,null,2,"\u0001","LEADERS, TIPPETS AND BACKING","SCIENTIFIC ANGLERS(TM) PREMIUM FLUOROCARBON TIPPET  WITH INTERLOCKING SPOOL WITH CUTTER","SCIENTIFIC ANGLERS(TM) PREMIUM FLUOROCARBON TIPPET  WITH INTERLOCKING SPOOL WITH CUTTER   *NEW*",null,null,null,null,null,null,null,null,null,null,null,null,null,null,null,null,null,null,null,null,null,null,null,null,null,null,null,null,null,null,null,null,"",""]
[4,315,1,3,"Clear 10# 9 ft","LEADERS, TIPPETS AND BACKING","SCIENTIFIC ANGLERS(TM) PREMIUM FLUOROCARBON TIPPET  WITH INTERLOCKING SPOOL WITH CUTTER",115513,"","0X - Clear 30 meters      ",null,840309115513,"1","EACH",14.95,7.4749999999999996,6.7275,5.98,null,null,null,null,null,null,null,null,null,null,null,null,null,null,null,null,null,{"$f":"IF(OR(ISBLANK($L258),$AW$3=0),\" - \",OFFSET(O258,0,$AW$3,1,1))","v":7.4749999999999996},null,null,null,null,"","",null,{"$f":"IF(LEN($AJ258)>0,$AJ258*AK258,\"\")","v":0},0,0,0,{"$f":"COUNT(AK258:AN258)","v":0},{"$f":"IF($AV258<>0,ROW($AV$11),\"\")","v":""}]
[4,315,2,3,"Clear 12# 9 ft","LEADERS, TIPPETS AND BACKING","SCIENTIFIC ANGLERS(TM) PREMIUM FLUOROCARBON TIPPET  WITH INTERLOCKING SPOOL WITH CUTTER",115520,"","1X - Clear 30 meters      ",null,840309115520,"1","EACH",14.95,7.4749999999999996,6.7275,5.98,null,null,null,null,null,null,null,null,null,null,null,null,null,null,null,null,null,7.4749999999999996,null,null,null,null,"","",null,0,0,0,0,{"$f":"COUNT(AK259:AN259)","v":0},{"$f":"IF($AV259<>0,ROW($AV$11),\"\")","v":""}]
[4,315,3,3,"Clear 16# 9 ft","LEADERS, TIPPETS AND BACKING","SCIENTIFIC ANGLERS(TM) PREMIUM FLUOROCARBON TIPPET  WITH INTERLOCKING SPOOL WITH CUTTER",115537,"","2X - Clear 30 meters      ",null,840309115537,"1","EACH",14.95,7.4749999999999996,6.7275,5.98,null,null,null,null,null,null,null,null,null,null,null,null,null,null,null,null,null,7.4749999999999996,null,null,null,null,"","",null,0,0,0,0,{"$f":"COUNT(AK260:AN260)","v":0},{"$f":"IF($AV260<>0,ROW($AV$11),\"\")","v":""}]
[4,315,4,3,"Clear 20# 9 ft","LEADERS, TIPPETS AND BACKING","SCIENTIFIC ANGLERS(TM) PREMIUM FLUOROCARBON TIPPET  WITH INTERLOCKING SPOOL WITH CUTTER",115544,"","3X - Clear 30 meters      ",null,840309115544,"1","EACH",14.95,7.4749999999999996,6.7275,5.98,null,null,null,null,null,null,null,null,null,null,null,null,null,null,null,null,null,7.4749999999999996,null,null,null,null,"","",null,0,0,0,0,{"$f":"COUNT(AK261:AN261)","v":0},{"$f":"IF($AV261<>0,ROW($AV$11),\"\")","v":""}]
[4,315,5,3,"\u0001","LEADERS, TIPPETS AND BACKING","SCIENTIFIC ANGLERS(TM) PREMIUM FLUOROCARBON TIPPET  WITH INTERLOCKING SPOOL WITH CUTTER",115551,"","4X - Clear 30 meters      ",null,840309115551,"1","EACH",14.95,7.4749999999999996,6.7275,5.98,null,null,null,null,null,null,null,null,null,null,null,null,null,null,null,null,null,7.4749999999999996,null,null,null,null,"","",null,0,0,0,0,{"$f":"COUNT(AK262:AN262)","v":0},{"$f":"IF($AV262<>0,ROW($AV$11),\"\")","v":""}]
[4,315,6,3,"  12# 9 ft","LEADERS, TIPPETS AND BACKING","SCIENTIFIC ANGLERS(TM) PREMIUM FLUOROCARBON TIPPET  WITH INTERLOCKING SPOOL WITH CUTTER",115568,"","5X - Clear 30 meters      ",null,840309115568,"1","EACH",14.95,7.4749999999999996,6.7275,5.98,null,null,null,null,null,null,null,null,null,null,null,null,null,null,null,null,null,7.4749999999999996,null,null,null,null,"","",null,0,0,0,0,{"$f":"COUNT(AK263:AN263)","v":0},{"$f":"IF($AV263<>0,ROW($AV$11),\"\")","v":""}]
[4,315,7,3," 15# 9 ft","LEADERS, TIPPETS AND BACKING","SCIENTIFIC ANGLERS(TM) PREMIUM FLUOROCARBON TIPPET  WITH INTERLOCKING SPOOL WITH CUTTER",115575,"","6X - Clear 30 meters      ",null,840309115575,"1","EACH",14.95,7.4749999999999996,6.7275,5.98,null,null,null,null,null,null,null,null,null,null,null,null,null,null,null,null,null,7.4749999999999996,null,null,null,null,"","",null,0,0,0,0,0,""]
[4,315,8,3," 20# 9 ft","LEADERS, TIPPETS AND BACKING","SCIENTIFIC ANGLERS(TM) PREMIUM FLUOROCARBON TIPPET  WITH INTERLOCKING SPOOL WITH CUTTER",115582,"","7X - Clear 30 meters      ",null,840309115582,"1","EACH",14.95,7.4749999999999996,6.7275,5.98,null,null,null,null,null,null,null,null,null,null,null,null,null,null,null,null,null,7.4749999999999996,null,null,null,null,"","",null,0,0,0,0,0,""]
[4,316,null,2,"\u0001","LEADERS, TIPPETS AND BACKING","SCIENTIFIC ANGLERS(TM) PREMIUM FLUOROCARBON TIPPET INTERLOCKING 100 METER GUIDE SPOOL","SCIENTIFIC ANGLERS(TM) PREMIUM FLUOROCARBON TIPPET INTERLOCKING 100 METER GUIDE SPOOL   *NEW*",null,null,null,null,null,null,null,null,null,null,null,null,null,null,null,null,null,null,null,null,null,null,null,null,null,null,null,null,null,null,null,null,{"$f":"IF($AV266=0,\"\",SUM(AK266:AN266))","v":""},{"$f":"IF($AV266>0,SUM(AR266:AU266),\"\")","v":""}]
[4,316,1,3,"Clear 10# 9 ft","LEADERS, TIPPETS AND BACKING","SCIENTIFIC ANGLERS(TM) PREMIUM FLUOROCARBON TIPPET INTERLOCKING 100 METER GUIDE SPOOL",115704,null,"Fluorocarbon 0X 100m Guide Spool",null,840309115704,"1","EACH",39.950000000000003,19.975000000000001,17.977500000000003,15.980000000000002,null,null,null,null,null,null,null,null,null,null,null,null,null,null,null,null,null,{"$f":"IF(OR(ISBLANK($L267),$AW$3=0),\" - \",OFFSET(O267,0,$AW$3,1,1))","v":19.975000000000001},null,null,null,null,"","",null,{"$f":"IF(LEN($AJ267)>0,$AJ267*AK267,\"\")","v":0},{"$f":"IF(LEN($AJ267)>0,$AJ267*AL267,\"\")","v":0},{"$f":"IF(LEN($AJ267)>0,$AJ267*AM267,\"\")","v":0},{"$f":"IF(LEN($AJ267)>0,$AJ267*AN267,\"\")","v":0},{"$f":"COUNT(AK267:AN267)","v":0},{"$f":"IF($AV267<>0,ROW($AV$11),\"\")","v":""}]
[4,316,2,3,"Clear 12# 9 ft","LEADERS, TIPPETS AND BACKING","SCIENTIFIC ANGLERS(TM) PREMIUM FLUOROCARBON TIPPET INTERLOCKING 100 METER GUIDE SPOOL",115711,null,"Fluorocarbon 1X 100m Guide Spool",null,840309115711,"1","EACH",39.950000000000003,19.975000000000001,17.977500000000003,15.980000000000002,null,null,null,null,null,null,null,null,null,null,null,null,null,null,null,null,null,19.975000000000001,null,null,null,null,"","",null,0,0,0,0,{"$f":"COUNT(AK268:AN268)","v":0},{"$f":"IF($AV268<>0,ROW($AV$11),\"\")","v":""}]
[4,316,3,3,"Clear 16# 9 ft","LEADERS, TIPPETS AND BACKING","SCIENTIFIC ANGLERS(TM) PREMIUM FLUOROCARBON TIPPET INTERLOCKING 100 METER GUIDE SPOOL",115728,null,"Fluorocarbon 2X 100m Guide Spool",null,840309115728,"1","EACH",39.950000000000003,19.975000000000001,17.977500000000003,15.980000000000002,null,null,null,null,null,null,null,null,null,null,null,null,null,null,null,null,null,19.975000000000001,null,null,null,null,"","",null,0,0,0,0,{"$f":"COUNT(AK269:AN269)","v":0},{"$f":"IF($AV269<>0,ROW($AV$11),\"\")","v":""}]
[4,316,4,3,"Clear 20# 9 ft","LEADERS, TIPPETS AND BACKING","SCIENTIFIC ANGLERS(TM) PREMIUM FLUOROCARBON TIPPET INTERLOCKING 100 METER GUIDE SPOOL",115735,"","Fluorocarbon 3X 100m Guide Spool",null,840309115735,"1","EACH",39.950000000000003,19.975000000000001,17.977500000000003,15.980000000000002,null,null,null,null,null,null,null,null,null,null,null,null,null,null,null,null,null,19.975000000000001,null,null,null,null,"","",null,0,0,0,0,{"$f":"COUNT(AK270:AN270)","v":0},{"$f":"IF($AV270<>0,ROW($AV$11),\"\")","v":""}]
[4,316,5,3,"\u0001","LEADERS, TIPPETS AND BACKING","SCIENTIFIC ANGLERS(TM) PREMIUM FLUOROCARBON TIPPET INTERLOCKING 100 METER GUIDE SPOOL",115742,"","Fluorocarbon 4X 100m Guide Spool",null,840309115742,"1","EACH",39.950000000000003,19.975000000000001,17.977500000000003,15.980000000000002,null,null,null,null,null,null,null,null,null,null,null,null,null,null,null,null,null,19.975000000000001,null,null,null,null,"","",null,0,0,0,0,{"$f":"COUNT(AK271:AN271)","v":0},{"$f":"IF($AV271<>0,ROW($AV$11),\"\")","v":""}]
[4,316,6,3,"  12# 9 ft","LEADERS, TIPPETS AND BACKING","SCIENTIFIC ANGLERS(TM) PREMIUM FLUOROCARBON TIPPET INTERLOCKING 100 METER GUIDE SPOOL",115759,"","Fluorocarbon 5X 100m Guide Spool",null,840309115759,"1","EACH",39.950000000000003,19.975000000000001,17.977500000000003,15.980000000000002,null,null,null,null,null,null,null,null,null,null,null,null,null,null,null,null,null,19.975000000000001,null,null,null,null,"","",null,0,0,0,0,{"$f":"COUNT(AK272:AN272)","v":0},""]
[4,316,7,3," 15# 9 ft","LEADERS, TIPPETS AND BACKING","SCIENTIFIC ANGLERS(TM) PREMIUM FLUOROCARBON TIPPET INTERLOCKING 100 METER GUIDE SPOOL",115766,"","Fluorocarbon 6X 100m Guide Spool",null,840309115766,"1","EACH",39.950000000000003,19.975000000000001,17.977500000000003,15.980000000000002,null,null,null,null,null,null,null,null,null,null,null,null,null,null,null,null,null,19.975000000000001,null,null,null,null,"","",null,0,0,0,0,0,""]
[4,316,8,3," 20# 9 ft","LEADERS, TIPPETS AND BACKING","SCIENTIFIC ANGLERS(TM) PREMIUM FLUOROCARBON TIPPET INTERLOCKING 100 METER GUIDE SPOOL",115773,null,"Fluorocarbon 7X 100m Guide Spool",null,840309115773,"1","EACH",39.950000000000003,19.975000000000001,17.977500000000003,15.980000000000002,null,null,null,null,null,null,null,null,null,null,null,null,null,null,null,null,null,19.975000000000001,null,null,null,null,"","",null,0,0,0,0,0,""]
[4,317,null,2," 0X 9 ft","LEADERS, TIPPETS AND BACKING","  SCIENTIFIC ANGLERS(TM) PREMIUM FLUOROCARBON BIG GAME TIPPET ","SCIENTIFIC ANGLERS(TM) PREMIUM FLUOROCARBON BIG GAME TIPPET    *NEW*",null,null,null,null,null,null,null,null,null,null,null,null,null,null,null,null,null,null,null,null,null,null,null,null,null,null,null,null,null,null,null,null,{"$f":"IF($AV275=0,\"\",SUM(AK275:AN275))","v":""},{"$f":"IF($AV275>0,SUM(AR275:AU275),\"\")","v":""}]
[4,317,1,3," 1X 9 ft","LEADERS, TIPPETS AND BACKING","  SCIENTIFIC ANGLERS(TM) PREMIUM FLUOROCARBON BIG GAME TIPPET ",104548,null,"Big Game 4lb 2kg 30 meters Cutter Spool",null,840309104548,"1","EACH",14.95,7.4749999999999996,6.7275,5.98,null,null,null,null,null,null,null,null,null,null,null,null,null,null,null,null,null,{"$f":"IF(OR(ISBLANK($L276),$AW$3=0),\" - \",OFFSET(O276,0,$AW$3,1,1))","v":7.4749999999999996},null,null,null,null,"","",null,0,0,0,0,0,""]
[4,317,2,3," 2X 9 ft","LEADERS, TIPPETS AND BACKING","  SCIENTIFIC ANGLERS(TM) PREMIUM FLUOROCARBON BIG GAME TIPPET ",115599,null,"Big Game 6lb 3kg 30 meters Cutter Spool",null,840309115599,"1","EACH",14.95,7.4749999999999996,6.7275,5.98,null,null,null,null,null,null,null,null,null,null,null,null,null,null,null,null,null,7.4749999999999996,null,null,null,null,{"$f":"IF($AV277=0,\"\",SUM(AK277:AN277))","v":""},{"$f":"IF($AV277>0,SUM(AR277:AU277),\"\")","v":""},null,{"$f":"IF(LEN($AJ277)>0,$AJ277*AK277,\"\")","v":0},{"$f":"IF(LEN($AJ277)>0,$AJ277*AL277,\"\")","v":0},{"$f":"IF(LEN($AJ277)>0,$AJ277*AM277,\"\")","v":0},{"$f":"IF(LEN($AJ277)>0,$AJ277*AN277,\"\")","v":0},{"$f":"COUNT(AK277:AN277)","v":0},""]
[4,317,3,3," 3X 9 ft","LEADERS, TIPPETS AND BACKING","  SCIENTIFIC ANGLERS(TM) PREMIUM FLUOROCARBON BIG GAME TIPPET ",115605,null,"Big Game 8lb 4kg 30 meters Cutter Spool",null,840309115605,"1","EACH",14.95,7.4749999999999996,6.7275,5.98,null,null,null,null,null,null,null,null,null,null,null,null,null,null,null,null,null,7.4749999999999996,null,null,null,null,"","",null,0,0,0,0,0,""]
[4,317,4,3," 4X 9 ft","LEADERS, TIPPETS AND BACKING","  SCIENTIFIC ANGLERS(TM) PREMIUM FLUOROCARBON BIG GAME TIPPET ",115612,null,"Big Game 12lb 6kg 30 meters Cutter Spool",null,840309115612,"1","EACH",14.95,7.4749999999999996,6.7275,5.98,null,null,null,null,null,null,null,null,null,null,null,null,null,null,null,null,null,7.4749999999999996,null,null,null,null,"","",null,0,0,0,0,0,""]
[4,317,5,3," 5X 9 ft","LEADERS, TIPPETS AND BACKING","  SCIENTIFIC ANGLERS(TM) PREMIUM FLUOROCARBON BIG GAME TIPPET ",115629,null,"Big Game 16lb 8kg 30 meters Cutter Spool",null,840309115629,"1","EACH",14.95,7.4749999999999996,6.7275,5.98,null,null,null,null,null,null,null,null,null,null,null,null,null,null,null,null,null,7.4749999999999996,null,null,null,null,"","",null,0,0,0,0,0,""]
[4,317,6,3," 6X 9 ft","LEADERS, TIPPETS AND BACKING","  SCIENTIFIC ANGLERS(TM) PREMIUM FLUOROCARBON BIG GAME TIPPET ",115636,null,"Big Game 20lb 10kg 30 meters Cutter Spool",null,840309115636,"1","EACH",14.95,7.4749999999999996,6.7275,5.98,null,null,null,null,null,null,null,null,null,null,null,null,null,null,null,null,null,7.4749999999999996,null,null,null,null,"","",null,0,0,0,0,0,""]
[4,318,null,2," 0X 9 ft","LEADERS, TIPPETS AND BACKING"," SCIENTIFIC ANGLERS(TM) PREMIUM FLUOROCARBON TIPPET","SCIENTIFIC ANGLERS(TM) PREMIUM FLUOROCARBON TIPPET   *NEW*",null,null,null,null,null,null,null,null,null,null,null,null,null,null,null,null,null,null,null,null,null,null,null,null,null,null,null,null,null,null,null,null,{"$f":"IF($AV282=0,\"\",SUM(AK282:AN282))","v":""},""]
[4,318,1,3," 1X 9 ft","LEADERS, TIPPETS AND BACKING"," SCIENTIFIC ANGLERS(TM) PREMIUM FLUOROCARBON TIPPET",115643,"","25# - Clear 30 meters Cutter Spool      ",null,840309115643,"1","EACH",24.95,12.475,11.227499999999999,9.98,null,null,null,null,null,null,null,null,null,null,null,null,null,null,null,null,null,{"$f":"IF(OR(ISBLANK($L283),$AW$3=0),\" - \",OFFSET(O283,0,$AW$3,1,1))","v":12.475},null,null,null,null,"","",null,{"$f":"IF(LEN($AJ283)>0,$AJ283*AK283,\"\")","v":0},{"$f":"IF(LEN($AJ283)>0,$AJ283*AL283,\"\")","v":0},{"$f":"IF(LEN($AJ283)>0,$AJ283*AM283,\"\")","v":0},{"$f":"IF(LEN($AJ283)>0,$AJ283*AN283,\"\")","v":0},{"$f":"COUNT(AK283:AN283)","v":0},""]
[4,318,2,3," 2X 9 ft","LEADERS, TIPPETS AND BACKING"," SCIENTIFIC ANGLERS(TM) PREMIUM FLUOROCARBON TIPPET",115650,"","30# - Clear 30 meters      ",null,840309115650,"1","EACH",24.95,12.475,11.227499999999999,9.98,null,null,null,null,null,null,null,null,null,null,null,null,null,null,null,null,null,12.475,null,null,null,null,{"$f":"IF($AV284=0,\"\",SUM(AK284:AN284))","v":""},{"$f":"IF($AV284>0,SUM(AR284:AU284),\"\")","v":""},null,0,0,0,0,0,""]
[4,318,3,3," 3X 9 ft","LEADERS, TIPPETS AND BACKING"," SCIENTIFIC ANGLERS(TM) PREMIUM FLUOROCARBON TIPPET",115667,"","35# - Clear 30 meters      ",null,840309115667,"1","EACH",24.95,12.475,11.227499999999999,9.98,null,null,null,null,null,null,null,null,null,null,null,null,null,null,null,null,null,12.475,null,null,null,null,"","",null,0,0,0,0,0,""]
[4,318,4,3," 4X 9 ft","LEADERS, TIPPETS AND BACKING"," SCIENTIFIC ANGLERS(TM) PREMIUM FLUOROCARBON TIPPET",115674,"","40# - Clear 30 meters      ",null,840309115674,"1","EACH",24.95,12.475,11.227499999999999,9.98,null,null,null,null,null,null,null,null,null,null,null,null,null,null,null,null,null,12.475,null,null,null,null,"","",null,0,0,0,0,0,""]
[4,318,5,3," 5X 9 ft","LEADERS, TIPPETS AND BACKING"," SCIENTIFIC ANGLERS(TM) PREMIUM FLUOROCARBON TIPPET",115681,null,"50# - Clear 30 meters      ",null,840309115681,"1","EACH",24.95,12.475,11.227499999999999,9.98,null,null,null,null,null,null,null,null,null,null,null,null,null,null,null,null,null,12.475,null,null,null,null,"","",null,0,0,0,0,0,""]
[4,318,6,3," 6X 9 ft","LEADERS, TIPPETS AND BACKING"," SCIENTIFIC ANGLERS(TM) PREMIUM FLUOROCARBON TIPPET",115698,null,"60# - Clear 30 meters      ",null,840309115698,"1","EACH",24.95,12.475,11.227499999999999,9.98,null,null,null,null,null,null,null,null,null,null,null,null,null,null,null,null,null,{"$f":"IF(OR(ISBLANK($L288),$AW$3=0),\" - \",OFFSET(O288,0,$AW$3,1,1))","v":12.475},null,null,null,null,{"$f":"IF($AV288=0,\"\",SUM(AK288:AN288))","v":""},{"$f":"IF($AV288>0,SUM(AR288:AU288),\"\")","v":""},null,{"$f":"IF(LEN($AJ288)>0,$AJ288*AK288,\"\")","v":0},{"$f":"IF(LEN($AJ288)>0,$AJ288*AL288,\"\")","v":0},{"$f":"IF(LEN($AJ288)>0,$AJ288*AM288,\"\")","v":0},{"$f":"IF(LEN($AJ288)>0,$AJ288*AN288,\"\")","v":0},{"$f":"COUNT(AK288:AN288)","v":0},""]
[4,318,7,3," 6X 9 ft","LEADERS, TIPPETS AND BACKING"," SCIENTIFIC ANGLERS(TM) PREMIUM FLUOROCARBON TIPPET",104555,null,"80# - Clear 30 meters      ",null,840309104555,"1","EACH",24.95,12.475,11.227499999999999,9.98,null,null,null,null,null,null,null,null,null,null,null,null,null,null,null,null,null,12.475,null,null,null,null,"","",null,0,0,0,0,0,""]
[4,319,null,2,"Clear 4X","LEADERS, TIPPETS AND BACKING","  FLY LINE BACKING - XTS GEL SPUN POLYETHYLENE - YELLOW","FLY LINE BACKING - XTS GEL SPUN POLYETHYLENE - YELLOW",null,null,null,null,null,null,null,null,null,null,null,null,null,null,null,null,null,null,null,null,null,null,null,null,null,null,null,null,null,null,null,null,"","",null,{"$f":"IF(LEN($AJ290)>0,$AJ290*AK290,\"\")","v":""},"","","",0,""]
[4,319,1,3,"Clear 5X","LEADERS, TIPPETS AND BACKING","  FLY LINE BACKING - XTS GEL SPUN POLYETHYLENE - YELLOW","673137","","30# 100 Yd            MOQ=6      ",null,"840309111379","6","EACH",12.95,6.48,5.83,5.2,null,null,null,null,null,null,null,null,null,null,null,null,null,null,null,null,null,{"$f":"IF(OR(ISBLANK($L291),$AW$3=0),\" - \",OFFSET(O291,0,$AW$3,1,1))","v":6.48},null,null,null,null,"","",null,0,0,0,0,0,""]
[4,319,2,3,"Clear 6X","LEADERS, TIPPETS AND BACKING","  FLY LINE BACKING - XTS GEL SPUN POLYETHYLENE - YELLOW","673120","","30# 250 Yd            MOQ=6      ",null,"840309111362","6","EACH",29.95,16.47,14.98,13.48,null,null,null,null,null,null,null,null,null,null,null,null,null,null,null,null,null,16.47,null,null,null,null,"","",null,0,0,0,0,0,""]
[4,319,3,3,"Clear 7X","LEADERS, TIPPETS AND BACKING","  FLY LINE BACKING - XTS GEL SPUN POLYETHYLENE - YELLOW","673113","","30# 500 Yd      ",null,"840309111355","1","EACH",59.95,29.98,26.98,23.98,null,null,null,null,null,null,null,null,null,null,null,null,null,null,null,null,null,29.98,null,null,null,null,"","",null,0,0,0,0,0,""]
[4,319,4,3,"Clear 8X","LEADERS, TIPPETS AND BACKING","  FLY LINE BACKING - XTS GEL SPUN POLYETHYLENE - YELLOW","673106","","30# 1000 Yd      ",null,"840309111348","1","EACH",120.95,60.48,54.43,48.38,null,null,null,null,null,null,null,null,null,null,null,null,null,null,null,null,null,60.48,null,null,null,null,"","",null,0,0,0,0,0,""]
[4,319,5,3,"\u0001","LEADERS, TIPPETS AND BACKING","  FLY LINE BACKING - XTS GEL SPUN POLYETHYLENE - YELLOW","673090","","30# 3000 Yd      ",null,"840309111331","1","EACH",350,175,157.5,140,null,null,null,null,null,null,null,null,null,null,null,null,null,null,null,null,null,175,null,null,null,null,"","",null,0,0,0,0,0,""]
[4,319,6,3," 3X 100 meter","LEADERS, TIPPETS AND BACKING","  FLY LINE BACKING - XTS GEL SPUN POLYETHYLENE - YELLOW","673076","","50# 250 Yd            MOQ=6      ",null,"840309111324","6","EACH",39.950000000000003,19.98,17.98,15.98,null,null,null,null,null,null,null,null,null,null,null,null,null,null,null,null,null,19.98,null,null,null,null,"","",null,0,0,0,0,0,""]
[4,319,7,3," 4X 100 meter","LEADERS, TIPPETS AND BACKING","  FLY LINE BACKING - XTS GEL SPUN POLYETHYLENE - YELLOW","673069","","50# 500 Yd      ",null,"840309111317","1","EACH",89.95,44.98,40.479999999999997,35.979999999999997,null,null,null,null,null,null,null,null,null,null,null,null,null,null,null,null,null,44.98,null,null,null,null,"","",null,0,0,0,0,0,""]
[4,319,8,3," 5X 100 meter","LEADERS, TIPPETS AND BACKING","  FLY LINE BACKING - XTS GEL SPUN POLYETHYLENE - YELLOW","673052","","50# 1000 Yd      ",null,"840309111300","1","EACH",179.95,89.98,80.98,71.98,null,null,null,null,null,null,null,null,null,null,null,null,null,null,null,null,null,89.98,null,null,null,null,"","",null,0,0,0,0,0,""]
[4,319,9,3," 6X 100 meter","LEADERS, TIPPETS AND BACKING","  FLY LINE BACKING - XTS GEL SPUN POLYETHYLENE - YELLOW","673038","","50# 3000 Yd      ",null,"840309111294","1","EACH",499.95,249.98,224.98,199.98,null,null,null,null,null,null,null,null,null,null,null,null,null,null,null,null,null,249.98,null,null,null,null,"","",null,0,0,0,0,0,""]
[4,320,null,2," 3X 100 meter","LEADERS, TIPPETS AND BACKING","  FLY LINE BACKING - DACRON - WHITE","FLY LINE BACKING - DACRON - WHITE",null,null,null,null,null,null,null,null,null,null,null,null,null,null,null,null,null,null,null,null,null,null,null,null,null,null,null,null,null,null,null,null,"",""]
[4,320,1,3," 4X 100 meter","LEADERS, TIPPETS AND BACKING","  FLY LINE BACKING - DACRON - WHITE","545458","","20# 100 yd             MOQ=6      ",null,"840309109437","6","EACH",8.9499999999999993,4.4749999999999996,4.0274999999999999,3.58,null,null,null,null,null,null,null,null,null,null,null,null,null,null,null,null,null,{"$f":"IF(OR(ISBLANK($L301),$AW$3=0),\" - \",OFFSET(O301,0,$AW$3,1,1))","v":4.4749999999999996},null,null,null,null,"","",null,0,0,0,0,0,""]
[4,320,2,3," 5X 100 meter","LEADERS, TIPPETS AND BACKING","  FLY LINE BACKING - DACRON - WHITE","607477","","20# 250 yd             MOQ=6      ",null,"840309109499","6","EACH",20.95,10.475,9.4275000000000002,8.3800000000000008,null,null,null,null,null,null,null,null,null,null,null,null,null,null,null,null,null,10.475,null,null,null,null,"","",null,0,0,0,0,0,""]
[4,320,3,3," 6X 100 meter","LEADERS, TIPPETS AND BACKING","  FLY LINE BACKING - DACRON - WHITE","541184","","20# 1000 yd      ",null,"840309108447","1","EACH",49.95,24.975000000000001,22.477500000000003,19.980000000000004,null,null,null,null,null,null,null,null,null,null,null,null,null,null,null,null,null,24.975000000000001,null,null,null,null,"","",null,0,0,0,0,0,""]
[4,320,4,3,"\u0001","LEADERS, TIPPETS AND BACKING","  FLY LINE BACKING - DACRON - WHITE","541269","","20# 3000 yd      ",null,"840309108461","1","EACH",139.94999999999999,69.974999999999994,62.977499999999999,55.98,null,null,null,null,null,null,null,null,null,null,null,null,null,null,null,null,null,69.974999999999994,null,null,null,null,"","",null,{"$f":"IF(LEN($AJ304)>0,$AJ304*AK304,\"\")","v":0},0,0,0,0,""]
[4,320,5,3,"Clear 14#","LEADERS, TIPPETS AND BACKING","  FLY LINE BACKING - DACRON - WHITE","778450","","20# 5000 yd      ",null,"840309109376","1","EACH",169.95,84.974999999999994,76.477499999999992,67.98,null,null,null,null,null,null,null,null,null,null,null,null,null,null,null,null,null,84.974999999999994,null,null,null,null,"","",null,0,0,0,0,0,""]
[4,320,6,3,"Clear 16#","LEADERS, TIPPETS AND BACKING","  FLY LINE BACKING - DACRON - WHITE","607491","","30# 100 yd             MOQ=6      ",null,"840309109468","6","EACH",9.9499999999999993,4.9749999999999996,4.4775,3.98,null,null,null,null,null,null,null,null,null,null,null,null,null,null,null,null,null,4.9749999999999996,null,null,null,null,"","",null,0,0,0,0,0,""]
[4,320,7,3,"Clear 20#","LEADERS, TIPPETS AND BACKING","  FLY LINE BACKING - DACRON - WHITE","607484","","30# 250 yd             MOQ=6      ",null,"840309109529","6","EACH",22.95,11.475,10.327500000000001,9.18,null,null,null,null,null,null,null,null,null,null,null,null,null,null,null,null,null,11.475,null,null,null,null,"","",null,0,0,0,0,0,""]
[4,320,8,3,"Clear 22#","LEADERS, TIPPETS AND BACKING","  FLY LINE BACKING - DACRON - WHITE","541191","","30# 1000 yd      ",null,"840309108454","1","EACH",59.95,29.975000000000001,26.977500000000003,23.980000000000004,null,null,null,null,null,null,null,null,null,null,null,null,null,null,null,null,null,29.975000000000001,null,null,null,null,"","",null,0,0,0,0,0,""]
[4,320,9,3,"Clear 25#","LEADERS, TIPPETS AND BACKING","  FLY LINE BACKING - DACRON - WHITE","541276","","30# 3000 yd      ",null,"840309108478","1","EACH",159.94999999999999,79.974999999999994,71.977499999999992,63.98,null,null,null,null,null,null,null,null,null,null,null,null,null,null,null,null,null,79.974999999999994,null,null,null,null,"","",null,0,0,0,0,0,""]
[4,320,10,3,"Clear 30#","LEADERS, TIPPETS AND BACKING","  FLY LINE BACKING - DACRON - WHITE","778481","","30# 5000 yd      ",null,"840309109406","1","EACH",179.95,89.974999999999994,80.977499999999992,71.98,null,null,null,null,null,null,null,null,null,null,null,null,null,null,null,null,null,89.974999999999994,null,null,null,null,"","",null,0,0,0,0,0,""]
[4,321,null,2,"Clear 35#","LEADERS, TIPPETS AND BACKING","  FLY LINE BACKING - DACRON - ORANGE","FLY LINE BACKING - DACRON - ORANGE",null,null,null,null,null,null,null,null,null,null,null,null,null,null,null,null,null,null,null,null,null,null,null,null,null,null,null,null,null,null,null,null,"",""]
[4,321,1,3,"Clear 40#","LEADERS, TIPPETS AND BACKING","  FLY LINE BACKING - DACRON - ORANGE","607675","","20# 100 yd               MOQ=6      ",null,"840309109451","6","EACH",8.9499999999999993,4.4749999999999996,4.0274999999999999,3.58,null,null,null,null,null,null,null,null,null,null,null,null,null,null,null,null,null,{"$f":"IF(OR(ISBLANK($L312),$AW$3=0),\" - \",OFFSET(O312,0,$AW$3,1,1))","v":4.4749999999999996},null,null,null,null,"","",null,0,0,0,0,0,""]
[4,321,2,3,"\u0001","LEADERS, TIPPETS AND BACKING","  FLY LINE BACKING - DACRON - ORANGE","607682","","20# 250 yd               MOQ=6      ",null,"840309109512","6","EACH",20.95,10.475,9.4275000000000002,8.3800000000000008,null,null,null,null,null,null,null,null,null,null,null,null,null,null,null,null,null,10.475,null,null,null,null,"","",null,0,0,0,0,0,""]
[4,321,3,3,"Clear 10#","LEADERS, TIPPETS AND BACKING","  FLY LINE BACKING - DACRON - ORANGE","607705","","20# 3000 yd      ",null,"840309108713","1","EACH",139.94999999999999,69.974999999999994,62.977499999999999,55.98,null,null,null,null,null,null,null,null,null,null,null,null,null,null,null,null,null,69.974999999999994,null,null,null,null,"","",null,0,0,0,0,0,""]
[4,321,4,3,"Clear 12#","LEADERS, TIPPETS AND BACKING","  FLY LINE BACKING - DACRON - ORANGE","778474","","20# 5000 yd      ",null,"840309109390","1","EACH",169.95,84.974999999999994,76.477499999999992,67.98,null,null,null,null,null,null,null,null,null,null,null,null,null,null,null,null,null,84.974999999999994,null,null,null,null,"","",null,0,0,0,0,0,""]
[4,321,5,3,"Clear 16 lb","LEADERS, TIPPETS AND BACKING","  FLY LINE BACKING - DACRON - ORANGE","607712","","30# 100 yd               MOQ=6      ",null,"840309109482","6","EACH",9.9499999999999993,4.9749999999999996,4.4775,3.98,null,null,null,null,null,null,null,null,null,null,null,null,null,null,null,null,null,4.9749999999999996,null,null,null,null,"","",null,0,0,0,0,0,""]
[4,321,6,3,"Clear 20#","LEADERS, TIPPETS AND BACKING","  FLY LINE BACKING - DACRON - ORANGE","607729","","30# 250 yd               MOQ=6      ",null,"840309109543","6","EACH",22.95,11.475,10.327500000000001,9.18,null,null,null,null,null,null,null,null,null,null,null,null,null,null,null,null,null,11.475,null,null,null,null,"","",null,0,0,0,0,0,""]
[4,321,7,3,"Clear 25#","LEADERS, TIPPETS AND BACKING","  FLY LINE BACKING - DACRON - ORANGE","607743","","30# 3000 yd      ",null,"840309108720","1","EACH",159.94999999999999,79.974999999999994,71.977499999999992,63.98,null,null,null,null,null,null,null,null,null,null,null,null,null,null,null,null,null,79.974999999999994,null,null,null,null,"","",null,0,0,0,0,0,""]
[4,321,8,3,"Clear 30#","LEADERS, TIPPETS AND BACKING","  FLY LINE BACKING - DACRON - ORANGE","778504","","30# 5000 yd      ",null,"840309109420","1","EACH",179.95,89.974999999999994,80.977499999999992,71.98,null,null,null,null,null,null,null,null,null,null,null,null,null,null,null,null,null,89.974999999999994,null,null,null,null,"","",null,0,0,0,0,0,""]
[4,322,null,2,"\u0001","LEADERS, TIPPETS AND BACKING","  FLY LINE BACKING - DACRON - YELLOW","FLY LINE BACKING - DACRON - YELLOW",null,null,null,null,null,null,null,null,null,null,null,null,null,null,null,null,null,null,null,null,null,null,null,null,null,null,null,null,null,null,null,null,"",""]
[4,322,1,3,"Clear 0X","LEADERS, TIPPETS AND BACKING","  FLY LINE BACKING - DACRON - YELLOW","662766","","20# 100 yd               MOQ=6      ",null,"840309109444","6","EACH",8.9499999999999993,4.4749999999999996,4.0274999999999999,3.58,null,null,null,null,null,null,null,null,null,null,null,null,null,null,null,null,null,{"$f":"IF(OR(ISBLANK($L321),$AW$3=0),\" - \",OFFSET(O321,0,$AW$3,1,1))","v":4.4749999999999996},null,null,null,null,"","",null,{"$f":"IF(LEN($AJ321)>0,$AJ321*AK321,\"\")","v":0},0,0,0,{"$f":"COUNT(AK321:AN321)","v":0},{"$f":"IF($AV321<>0,ROW($AV$11),\"\")","v":""}]
[4,322,2,3,"Clear 1X","LEADERS, TIPPETS AND BACKING","  FLY LINE BACKING - DACRON - YELLOW","704879","","20# 250 yd               MOQ=6      ",null,"840309109505","6","EACH",20.95,10.475,9.4275000000000002,8.3800000000000008,null,null,null,null,null,null,null,null,null,null,null,null,null,null,null,null,null,10.475,null,null,null,null,"","",null,0,0,0,0,0,""]
[4,322,3,3,"Clear 2X","LEADERS, TIPPETS AND BACKING","  FLY LINE BACKING - DACRON - YELLOW","704893","","20# 1000 yd      ",null,"840309108966","1","EACH",54.95,27.475000000000001,24.727500000000003,21.980000000000004,null,null,null,null,null,null,null,null,null,null,null,null,null,null,null,null,null,27.475000000000001,null,null,null,null,"","",null,0,0,0,0,0,""]
[4,322,4,3,"Clear 3X","LEADERS, TIPPETS AND BACKING","  FLY LINE BACKING - DACRON - YELLOW","704916","","20# 3000 yd      ",null,"840309108980","1","EACH",139.94999999999999,69.974999999999994,62.977499999999999,55.98,null,null,null,null,null,null,null,null,null,null,null,null,null,null,null,null,null,69.974999999999994,null,null,null,null,"","",null,0,0,0,0,0,""]
[4,322,5,3,"Clear 4X","LEADERS, TIPPETS AND BACKING","  FLY LINE BACKING - DACRON - YELLOW","778467","","20# 5000 yd      ",null,"840309109383","1","EACH",169.95,84.974999999999994,76.477499999999992,67.98,null,null,null,null,null,null,null,null,null,null,null,null,null,null,null,null,null,84.974999999999994,null,null,null,null,"","",null,0,0,0,0,0,""]
[4,322,6,3,"Clear 5X","LEADERS, TIPPETS AND BACKING","  FLY LINE BACKING - DACRON - YELLOW","662773","","30# 100 yd               MOQ=6      ",null,"840309109475","6","EACH",9.9499999999999993,4.9749999999999996,4.4775,3.98,null,null,null,null,null,null,null,null,null,null,null,null,null,null,null,null,null,4.9749999999999996,null,null,null,null,"","",null,0,0,0,0,0,""]
[4,322,7,3,"Clear 6X","LEADERS, TIPPETS AND BACKING","  FLY LINE BACKING - DACRON - YELLOW","704886","","30# 250 yd               MOQ=6      ",null,"840309109536","6","EACH",22.95,11.475,10.327500000000001,9.18,null,null,null,null,null,null,null,null,null,null,null,null,null,null,null,null,null,11.475,null,null,null,null,"","",null,0,0,0,0,0,""]
[4,322,8,3,"Clear 7X","LEADERS, TIPPETS AND BACKING","  FLY LINE BACKING - DACRON - YELLOW","704909","","30# 1000 yd      ",null,"840309108973","1","EACH",64.95,32.475000000000001,29.227500000000003,25.980000000000004,null,null,null,null,null,null,null,null,null,null,null,null,null,null,null,null,null,32.475000000000001,null,null,null,null,"","",null,0,0,0,0,0,""]
[4,322,9,3,"\u0001","LEADERS, TIPPETS AND BACKING","  FLY LINE BACKING - DACRON - YELLOW","704923","","30# 3000 yd      ",null,"840309108997","1","EACH",159.94999999999999,79.974999999999994,71.977499999999992,63.98,null,null,null,null,null,null,null,null,null,null,null,null,null,null,null,null,null,79.974999999999994,null,null,null,null,"","",null,0,0,0,0,0,""]
[4,322,10,3,"Clear 14# 25 m","LEADERS, TIPPETS AND BACKING","  FLY LINE BACKING - DACRON - YELLOW","778498","","30# 5000 yd      ",null,"840309109413","1","EACH",179.95,89.974999999999994,80.977499999999992,71.98,null,null,null,null,null,null,null,null,null,null,null,null,null,null,null,null,null,89.974999999999994,null,null,null,null,"","",null,0,0,0,0,0,""]
[5,0,null,1,null,"FLY REELS, SPOOLS AND OUTFITS",null,"FLY REELS, SPOOLS AND OUTFITS - Workbook Pages 70-73",null,null,null,null,null,null,null,null,null,null,null,null,null,null,null,null,null,null,null,null,null,null,null,null,null,null,null,null,null,null,null,null,"",""]
[5,400,null,2,"Clear 20# 25 m","FLY REELS, SPOOLS AND OUTFITS","SCIENTIFIC ANGLERS AMPERE VOLTAGE FLY REEL - BLACK NICKEL","SCIENTIFIC ANGLERS AMPERE VOLTAGE FLY REEL - BLACK NICKEL   *NEW*",null,null,null,null,null,null,null,null,null,null,null,null,null,null,null,null,null,null,null,null,null,null,null,null,null,null,null,null,null,null,null,null,"",""]
[5,400,1,3,"Clear 22# 25 m","FLY REELS, SPOOLS AND OUTFITS","SCIENTIFIC ANGLERS AMPERE VOLTAGE FLY REEL - BLACK NICKEL",123969,null,"AMPERE VOLTAGE II -  REEL - BLACK NICKEL",null,840309123969,"1","EACH",205,123,112.75000000000001,102.5,null,null,null,null,null,null,null,null,null,null,null,null,null,null,null,null,null,{"$f":"IF(OR(ISBLANK($L333),$AW$3=0),\" - \",OFFSET(O333,0,$AW$3,1,1))","v":123},null,null,null,null,"","",null,0,0,0,0,0,""]
[5,400,2,3,"Clear 25# 25 m","FLY REELS, SPOOLS AND OUTFITS","SCIENTIFIC ANGLERS AMPERE VOLTAGE FLY REEL - BLACK NICKEL",123938,null,"AMPERE VOLTAGE III - REEL - BLACK NICKEL",null,840309123938,"1","EACH",215,129,118.25000000000001,107.5,null,null,null,null,null,null,null,null,null,null,null,null,null,null,null,null,null,{"$f":"IF(OR(ISBLANK($L334),$AW$3=0),\" - \",OFFSET(O334,0,$AW$3,1,1))","v":129},null,null,null,null,"","",null,0,0,0,0,0,""]
[5,400,3,3,"Clear 30#","FLY REELS, SPOOLS AND OUTFITS","SCIENTIFIC ANGLERS AMPERE VOLTAGE FLY REEL - BLACK NICKEL",123945,null,"AMPERE VOLTAGE IV - REEL - BLACK NICKEL",null,840309123945,"1","EACH",225,135,123.75000000000001,112.5,null,null,null,null,null,null,null,null,null,null,null,null,null,null,null,null,null,{"$f":"IF(OR(ISBLANK($L335),$AW$3=0),\" - \",OFFSET(O335,0,$AW$3,1,1))","v":135},null,null,null,null,{"$f":"IF($AV335=0,\"\",SUM(AK335:AN335))","v":""},{"$f":"IF($AV335>0,SUM(AR335:AU335),\"\")","v":""},null,{"$f":"IF(LEN($AJ335)>0,$AJ335*AK335,\"\")","v":0},{"$f":"IF(LEN($AJ335)>0,$AJ335*AL335,\"\")","v":0},{"$f":"IF(LEN($AJ335)>0,$AJ335*AM335,\"\")","v":0},{"$f":"IF(LEN($AJ335)>0,$AJ335*AN335,\"\")","v":0},{"$f":"COUNT(AK335:AN335)","v":0},""]
[5,400,4,3,"Clear 30#","FLY REELS, SPOOLS AND OUTFITS","SCIENTIFIC ANGLERS AMPERE VOLTAGE FLY REEL - BLACK NICKEL",123952,null,"AMPERE VOLTAGE V -  REEL - BLACK NICKEL",null,840309123952,1,"EACH",235,141,129.25,117.5,null,null,null,null,null,null,null,null,null,null,null,null,null,null,null,null,null,{"$f":"IF(OR(ISBLANK($L336),$AW$3=0),\" - \",OFFSET(O336,0,$AW$3,1,1))","v":141},null,null,null,null,"","",null,0,0,0,0,0,""]
[5,401,null,2,"Clear 35#","FLY REELS, SPOOLS AND OUTFITS","SCIENTIFIC ANGLERS AMPERE VOLTAGE SPARE SPOOL - BLACK NICKEL","SCIENTIFIC ANGLERS AMPERE VOLTAGE SPARE SPOOL - BLACK NICKEL   *NEW*",null,null,null,null,null,null,null,null,null,null,null,null,null,null,null,null,null,null,null,null,null,null,null,null,null,null,null,null,null,null,null,null,"",""]
[5,401,1,3,"Clear 40# 20 m","FLY REELS, SPOOLS AND OUTFITS","SCIENTIFIC ANGLERS AMPERE VOLTAGE SPARE SPOOL - BLACK NICKEL",124058,null,"Ampere VOLTAGE II - SPOOL",null,840309124058,"1","EACH",130,78,71.5,65,null,null,null,null,null,null,null,null,null,null,null,null,null,null,null,null,null,{"$f":"IF(OR(ISBLANK($L338),$AW$3=0),\" - \",OFFSET(O338,0,$AW$3,1,1))","v":78},null,null,null,null,"","",null,{"$f":"IF(LEN($AJ338)>0,$AJ338*AK338,\"\")","v":0},0,0,0,0,""]
[5,401,2,3,"\u0001","FLY REELS, SPOOLS AND OUTFITS","SCIENTIFIC ANGLERS AMPERE VOLTAGE SPARE SPOOL - BLACK NICKEL",124027,null,"Ampere VOLTAGE III - SPOOL",null,840309124027,"1","EACH",140,84,77,70,null,null,null,null,null,null,null,null,null,null,null,null,null,null,null,null,null,{"$f":"IF(OR(ISBLANK($L339),$AW$3=0),\" - \",OFFSET(O339,0,$AW$3,1,1))","v":84},null,null,null,null,"","",null,0,0,0,0,0,""]
[5,401,3,3," 10 ft 60 Grains","FLY REELS, SPOOLS AND OUTFITS","SCIENTIFIC ANGLERS AMPERE VOLTAGE SPARE SPOOL - BLACK NICKEL",124034,null,"Ampere VOLTAGE IV - SPOOL",null,840309124034,"1","EACH",150,90,82.5,75,null,null,null,null,null,null,null,null,null,null,null,null,null,null,null,null,null,{"$f":"IF(OR(ISBLANK($L340),$AW$3=0),\" - \",OFFSET(O340,0,$AW$3,1,1))","v":90},null,null,null,null,{"$f":"IF($AV340=0,\"\",SUM(AK340:AN340))","v":""},{"$f":"IF($AV340>0,SUM(AR340:AU340),\"\")","v":""},null,{"$f":"IF(LEN($AJ340)>0,$AJ340*AK340,\"\")","v":0},{"$f":"IF(LEN($AJ340)>0,$AJ340*AL340,\"\")","v":0},{"$f":"IF(LEN($AJ340)>0,$AJ340*AM340,\"\")","v":0},{"$f":"IF(LEN($AJ340)>0,$AJ340*AN340,\"\")","v":0},{"$f":"COUNT(AK340:AN340)","v":0},{"$f":"IF($AV340<>0,ROW($AV$11),\"\")","v":""}]
[5,401,4,3," 10 ft 60 Grains","FLY REELS, SPOOLS AND OUTFITS","SCIENTIFIC ANGLERS AMPERE VOLTAGE SPARE SPOOL - BLACK NICKEL",124041,null,"Ampere VOLTAGE V - SPOOL",null,840309124041,1,"EACH",160,96,88,80,null,null,null,null,null,null,null,null,null,null,null,null,null,null,null,null,null,{"$f":"IF(OR(ISBLANK($L341),$AW$3=0),\" - \",OFFSET(O341,0,$AW$3,1,1))","v":96},null,null,null,null,"","",null,0,0,0,0,{"$f":"COUNT(AK341:AN341)","v":0},{"$f":"IF($AV341<>0,ROW($AV$11),\"\")","v":""}]
[5,402,null,2,"Clear 35#","FLY REELS, SPOOLS AND OUTFITS","SCIENTIFIC ANGLERS AMPERE ELECTRON FLY REEL - GLOSS BLACK","SCIENTIFIC ANGLERS AMPERE ELECTRON FLY REEL - GLOSS BLACK   *NEW*",null,null,null,null,null,null,null,null,null,null,null,null,null,null,null,null,null,null,null,null,null,null,null,null,null,null,null,null,null,null,null,null,{"$f":"IF($AV342=0,\"\",SUM(AK342:AN342))","v":""},{"$f":"IF($AV342>0,SUM(AR342:AU342),\"\")","v":""}]
[5,402,1,3,"Clear 40# 20 m","FLY REELS, SPOOLS AND OUTFITS","SCIENTIFIC ANGLERS AMPERE ELECTRON FLY REEL - GLOSS BLACK",123891,null,"AMPERE ELECTRON II -REEL - GLOSS BLACK",null,840309123891,"1","EACH",165,99,90.750000000000014,82.5,null,null,null,null,null,null,null,null,null,null,null,null,null,null,null,null,null,{"$f":"IF(OR(ISBLANK($L343),$AW$3=0),\" - \",OFFSET(O343,0,$AW$3,1,1))","v":99},null,null,null,null,"","",null,{"$f":"IF(LEN($AJ343)>0,$AJ343*AK343,\"\")","v":0},{"$f":"IF(LEN($AJ343)>0,$AJ343*AL343,\"\")","v":0},{"$f":"IF(LEN($AJ343)>0,$AJ343*AM343,\"\")","v":0},{"$f":"IF(LEN($AJ343)>0,$AJ343*AN343,\"\")","v":0},{"$f":"COUNT(AK343:AN343)","v":0},{"$f":"IF($AV343<>0,ROW($AV$11),\"\")","v":""}]
[5,402,2,3,"\u0001","FLY REELS, SPOOLS AND OUTFITS","SCIENTIFIC ANGLERS AMPERE ELECTRON FLY REEL - GLOSS BLACK",123907,null,"AMPERE ELECTRON III - REEL - GLOSS BLACK",null,840309123907,"1","EACH",175,105,96.250000000000014,87.5,null,null,null,null,null,null,null,null,null,null,null,null,null,null,null,null,null,{"$f":"IF(OR(ISBLANK($L344),$AW$3=0),\" - \",OFFSET(O344,0,$AW$3,1,1))","v":105},null,null,null,null,"","",null,0,0,0,0,0,""]
[5,402,3,3," 10 ft 60 Grains","FLY REELS, SPOOLS AND OUTFITS","SCIENTIFIC ANGLERS AMPERE ELECTRON FLY REEL - GLOSS BLACK",123914,null,"AMPERE ELECTRON IV -REEL - GLOSS BLACK",null,840309123914,"1","EACH",185,111,101.75000000000001,92.5,null,null,null,null,null,null,null,null,null,null,null,null,null,null,null,null,null,{"$f":"IF(OR(ISBLANK($L345),$AW$3=0),\" - \",OFFSET(O345,0,$AW$3,1,1))","v":111},null,null,null,null,"","",null,0,0,0,0,{"$f":"COUNT(AK345:AN345)","v":0},{"$f":"IF($AV345<>0,ROW($AV$11),\"\")","v":""}]
[5,403,null,2,"Clear 35#","FLY REELS, SPOOLS AND OUTFITS","SCIENTIFIC ANGLERS AMPERE ELECTRON SPARE SPOOL - GLOSS BLACK","SCIENTIFIC ANGLERS AMPERE ELECTRON SPARE SPOOL - GLOSS BLACK   *NEW*",null,null,null,null,null,null,null,null,null,null,null,null,null,null,null,null,null,null,null,null,null,null,null,null,null,null,null,null,null,null,null,null,{"$f":"IF($AV346=0,\"\",SUM(AK346:AN346))","v":""},{"$f":"IF($AV346>0,SUM(AR346:AU346),\"\")","v":""}]
[5,403,1,3,"Clear 40# 20 m","FLY REELS, SPOOLS AND OUTFITS","SCIENTIFIC ANGLERS AMPERE ELECTRON SPARE SPOOL - GLOSS BLACK",123990,null,"AMPERE ELECTRON II -  SPOOL - GLOSS BLACK",null,840309123990,"1","EACH",90,54,49.500000000000007,45,null,null,null,null,null,null,null,null,null,null,null,null,null,null,null,null,null,{"$f":"IF(OR(ISBLANK($L347),$AW$3=0),\" - \",OFFSET(O347,0,$AW$3,1,1))","v":54},null,null,null,null,"","",null,{"$f":"IF(LEN($AJ347)>0,$AJ347*AK347,\"\")","v":0},{"$f":"IF(LEN($AJ347)>0,$AJ347*AL347,\"\")","v":0},{"$f":"IF(LEN($AJ347)>0,$AJ347*AM347,\"\")","v":0},{"$f":"IF(LEN($AJ347)>0,$AJ347*AN347,\"\")","v":0},{"$f":"COUNT(AK347:AN347)","v":0},""]
[5,403,2,3,"\u0001","FLY REELS, SPOOLS AND OUTFITS","SCIENTIFIC ANGLERS AMPERE ELECTRON SPARE SPOOL - GLOSS BLACK",124003,null,"AMPERE ELECTRON III -SPOOL - GLOSS BLACK",null,840309124003,"1","EACH",95,57,52.250000000000007,47.5,null,null,null,null,null,null,null,null,null,null,null,null,null,null,null,null,null,{"$f":"IF(OR(ISBLANK($L348),$AW$3=0),\" - \",OFFSET(O348,0,$AW$3,1,1))","v":57},null,null,null,null,"","",null,0,0,0,0,0,""]
[5,403,3,3," 10 ft 60 Grains","FLY REELS, SPOOLS AND OUTFITS","SCIENTIFIC ANGLERS AMPERE ELECTRON SPARE SPOOL - GLOSS BLACK",124010,null,"AMPERE ELECTRON IV -SPOOL - GLOSS BLACK",null,840309124010,"1","EACH",100,60,55.000000000000007,50,null,null,null,null,null,null,null,null,null,null,null,null,null,null,null,null,null,{"$f":"IF(OR(ISBLANK($L349),$AW$3=0),\" - \",OFFSET(O349,0,$AW$3,1,1))","v":60},null,null,null,null,"","",null,0,0,0,0,{"$f":"COUNT(AK349:AN349)","v":0},{"$f":"IF($AV349<>0,ROW($AV$11),\"\")","v":""}]
[5,404,null,2,"Clear 35#","FLY REELS, SPOOLS AND OUTFITS","SCIENTIFIC ANGLERS AMPRERE FLY REEL - BLACK","SCIENTIFIC ANGLERS AMPRERE FLY REEL - BLACK   *NEW*",null,null,null,null,null,null,null,null,null,null,null,null,null,null,null,null,null,null,null,null,null,null,null,null,null,null,null,null,null,null,null,null,{"$f":"IF($AV350=0,\"\",SUM(AK350:AN350))","v":""},{"$f":"IF($AV350>0,SUM(AR350:AU350),\"\")","v":""}]
[5,404,1,3,"Clear 40# 20 m","FLY REELS, SPOOLS AND OUTFITS","SCIENTIFIC ANGLERS AMPRERE FLY REEL - BLACK",123877,"","AMPERE II - REEL - BLACK",null,840309123877,"1","EACH",89.95,53.97,49.472500000000004,44.975000000000001,null,null,null,null,null,null,null,null,null,null,null,null,null,null,null,null,null,{"$f":"IF(OR(ISBLANK($L351),$AW$3=0),\" - \",OFFSET(O351,0,$AW$3,1,1))","v":53.97},null,null,null,null,"","",null,{"$f":"IF(LEN($AJ351)>0,$AJ351*AK351,\"\")","v":0},{"$f":"IF(LEN($AJ351)>0,$AJ351*AL351,\"\")","v":0},{"$f":"IF(LEN($AJ351)>0,$AJ351*AM351,\"\")","v":0},{"$f":"IF(LEN($AJ351)>0,$AJ351*AN351,\"\")","v":0},{"$f":"COUNT(AK351:AN351)","v":0},{"$f":"IF($AV351<>0,ROW($AV$11),\"\")","v":""}]
[5,404,2,3,"\u0001","FLY REELS, SPOOLS AND OUTFITS","SCIENTIFIC ANGLERS AMPRERE FLY REEL - BLACK",123884,"","AMPERE IV - REEL - BLACK",null,840309123884,"1","EACH",99.95,59.97,54.972500000000004,49.975000000000001,null,null,null,null,null,null,null,null,null,null,null,null,null,null,null,null,null,{"$f":"IF(OR(ISBLANK($L352),$AW$3=0),\" - \",OFFSET(O352,0,$AW$3,1,1))","v":59.97},null,null,null,null,"","",null,0,0,0,0,0,""]
[5,405,null,2," 15 ft 90 Grains","FLY REELS, SPOOLS AND OUTFITS","  CONCEPT REEL","CONCEPT REEL   ",null,null,null,null,null,null,null,null,null,null,null,null,null,null,null,null,null,null,null,null,null,null,null,null,null,null,null,null,null,null,null,null,"",""]
[5,405,1,3,"\u0001","FLY REELS, SPOOLS AND OUTFITS","  CONCEPT REEL","777903","","Concept 2 - Disc Drag 58      ",null,"840309112215","1","EACH",33.950000000000003,20.37,18.670000000000002,16.98,null,null,null,null,null,null,null,null,null,null,null,null,null,null,null,null,null,{"$f":"IF(OR(ISBLANK($L354),$AW$3=0),\" - \",OFFSET(O354,0,$AW$3,1,1))","v":20.37},null,null,null,null,"","",null,0,0,0,0,{"$f":"COUNT(AK354:AN354)","v":0},{"$f":"IF($AV354<>0,ROW($AV$11),\"\")","v":""}]
[5,406,null,2,"Yellow 100 yd","FLY REELS, SPOOLS AND OUTFITS","  FLY FISHING OUTFITS","FLY FISHING OUTFITS   *NEW*",null,null,null,null,null,null,null,null,null,null,null,null,null,null,null,null,null,null,null,null,null,null,null,null,null,null,null,null,null,null,null,null,{"$f":"IF($AV355=0,\"\",SUM(AK355:AN355))","v":""},{"$f":"IF($AV355>0,SUM(AR355:AU355),\"\")","v":""}]
[5,406,2,3,"Yellow 250 yd","FLY REELS, SPOOLS AND OUTFITS","  FLY FISHING OUTFITS",120364,"","Species Specific Kit - Bass 7/8wt 4pc  ",null,840309120364,4,"EACH",119.95,71.97,65.972500000000011,59.975000000000001,null,null,null,null,null,null,null,null,null,null,null,null,null,null,null,null,null,{"$f":"IF(OR(ISBLANK($L356),$AW$3=0),\" - \",OFFSET(O356,0,$AW$3,1,1))","v":71.97},null,null,null,null,{"$f":"IF($AV356=0,\"\",SUM(AK356:AN356))","v":""},{"$f":"IF($AV356>0,SUM(AR356:AU356),\"\")","v":""},null,{"$f":"IF(LEN($AJ356)>0,$AJ356*AK356,\"\")","v":0},{"$f":"IF(LEN($AJ356)>0,$AJ356*AL356,\"\")","v":0},{"$f":"IF(LEN($AJ356)>0,$AJ356*AM356,\"\")","v":0},{"$f":"IF(LEN($AJ356)>0,$AJ356*AN356,\"\")","v":0},{"$f":"COUNT(AK356:AN356)","v":0},{"$f":"IF($AV356<>0,ROW($AV$11),\"\")","v":""}]
[5,406,2,3,"Yellow 250 yd","FLY REELS, SPOOLS AND OUTFITS","  FLY FISHING OUTFITS",104579,"","Species Specific Kit - Trout-Bass 6/7 wt 4pc          ",null,840309104579,4,"EACH",119.95,71.97,65.972500000000011,59.975000000000001,null,null,null,null,null,null,null,null,null,null,null,null,null,null,null,null,null,{"$f":"IF(OR(ISBLANK($L357),$AW$3=0),\" - \",OFFSET(O357,0,$AW$3,1,1))","v":71.97},null,null,null,null,"","",null,{"$f":"IF(LEN($AJ357)>0,$AJ357*AK357,\"\")","v":0},0,0,0,{"$f":"COUNT(AK357:AN357)","v":0},""]
[5,406,3,3,"Yellow 500 yd","FLY REELS, SPOOLS AND OUTFITS","  FLY FISHING OUTFITS",103435,"","Species Specific Kit - Panfish 5/6 wt 4pc     ",null,840309103435,4,"EACH",119.95,71.97,65.972500000000011,59.975000000000001,null,null,null,null,null,null,null,null,null,null,null,null,null,null,null,null,null,{"$f":"IF(OR(ISBLANK($L358),$AW$3=0),\" - \",OFFSET(O358,0,$AW$3,1,1))","v":71.97},null,null,null,null,"","",null,0,0,0,0,0,""]
[5,406,4,3,"Yellow 1000 yd","FLY REELS, SPOOLS AND OUTFITS","  FLY FISHING OUTFITS",120371,"","Species Specific Kit - Saltwater 7/8 wt 4pc     ",null,840309120371,4,"EACH",119.95,71.97,65.972500000000011,59.975000000000001,null,null,null,null,null,null,null,null,null,null,null,null,null,null,null,null,null,{"$f":"IF(OR(ISBLANK($L359),$AW$3=0),\" - \",OFFSET(O359,0,$AW$3,1,1))","v":71.97},null,null,null,null,"","",null,0,0,0,0,0,""]
[5,406,5,3,"Yellow 3000 yd","FLY REELS, SPOOLS AND OUTFITS","  FLY FISHING OUTFITS",120357,"","Species Specific Kit - Trout 5/6 wt 4pc     ",null,840309120357,4,"EACH",119.95,71.97,65.972500000000011,59.975000000000001,null,null,null,null,null,null,null,null,null,null,null,null,null,null,null,null,null,{"$f":"IF(OR(ISBLANK($L360),$AW$3=0),\" - \",OFFSET(O360,0,$AW$3,1,1))","v":71.97},null,null,null,null,"","",null,0,0,0,0,0,""]
[6,0,6,1,null,"FLY BOXES AND FLY FISHING ACCESSORIES",null,"FLY BOXES AND FLY FISHING ACCESSORIES - Workbook pages 74-75",null,null,null,null,null,null,null,null,null,null,null,null,null,null,null,null,null,null,null,null,null,null,null,null,null,null,null,null,null,null,null,null,"",""]
[6,600,null,2,"Yellow 500 yd","FLY REELS, SPOOLS AND OUTFITS","  SCIENTIFIC ANGLERS(TM) WATERPROOF FLY BOXES","SCIENTIFIC ANGLERS(TM) WATERPROOF FLY BOXES",null,null,null,null,null,null,null,null,null,null,null,null,null,null,null,null,null,null,null,null,null,null,null,null,null,null,null,null,null,null,null,null,"",""]
[6,600,1,3,"Yellow 1000 yd","FLY REELS, SPOOLS AND OUTFITS","  SCIENTIFIC ANGLERS(TM) WATERPROOF FLY BOXES","191099","","Compact Nymph 270 Fly Box - Small - Red      ",null,"840309103565","1","EACH",25.95,15.57,14.27,12.98,null,null,null,null,null,null,null,null,null,null,null,null,null,null,null,null,null,{"$f":"IF(OR(ISBLANK($L363),$AW$3=0),\" - \",OFFSET(O363,0,$AW$3,1,1))","v":15.57},null,null,null,null,"","",null,0,0,0,0,0,""]
[6,600,2,3,"Yellow 3000 yd","FLY REELS, SPOOLS AND OUTFITS","  SCIENTIFIC ANGLERS(TM) WATERPROOF FLY BOXES","191037","","Compact 164 Angled Fly Box - Small - Yellow      ",null,"840309103527","1","EACH",24.95,14.97,13.72,12.48,null,null,null,null,null,null,null,null,null,null,null,null,null,null,null,null,null,14.97,null,null,null,null,"","",null,0,0,0,0,0,""]
[6,600,3,3,"\u0001","FLY REELS, SPOOLS AND OUTFITS","  SCIENTIFIC ANGLERS(TM) WATERPROOF FLY BOXES","185098","","Compact 216 Fly Box - Small - Metallic Blue      ",null,"840309113878","1","EACH",24.95,14.97,13.72,12.48,null,null,null,null,null,null,null,null,null,null,null,null,null,null,null,null,null,14.97,null,null,null,null,"","",null,0,0,0,0,0,""]
[6,600,4,3,"White  100 yd 20#","FLY REELS, SPOOLS AND OUTFITS","  SCIENTIFIC ANGLERS(TM) WATERPROOF FLY BOXES","185081","","Max 432 Fly Box - Small - Lime Green      ",null,"840309113861","1","EACH",26.95,16.170000000000002,14.82,13.48,null,null,null,null,null,null,null,null,null,null,null,null,null,null,null,null,null,16.170000000000002,null,null,null,null,"","",null,0,0,0,0,0,""]
[6,600,5,3,"White  250 yd 20#","FLY REELS, SPOOLS AND OUTFITS","  SCIENTIFIC ANGLERS(TM) WATERPROOF FLY BOXES","191051","","Max Nymph/Dry 446 Fly Box - Medium - Red      ",null,"840309103541","1","EACH",28.95,17.37,15.92,14.48,null,null,null,null,null,null,null,null,null,null,null,null,null,null,null,null,null,17.37,null,null,null,null,"","",null,0,0,0,0,0,""]
[6,600,6,3,"White 1000 yd","FLY REELS, SPOOLS AND OUTFITS","  SCIENTIFIC ANGLERS(TM) WATERPROOF FLY BOXES","191044","","Classic 176 Angled Fly Box - Medium - Yellow      ",null,"840309103534","1","EACH",27.95,16.77,15.37,13.98,null,null,null,null,null,null,null,null,null,null,null,null,null,null,null,null,null,16.77,null,null,null,null,"","",null,0,0,0,0,0,""]
[6,600,7,3,"White 3000 yd 20#","FLY REELS, SPOOLS AND OUTFITS","  SCIENTIFIC ANGLERS(TM) WATERPROOF FLY BOXES","191068","","Special Dry 516 Fly Box - Medium - Metallic Green      ",null,"840309103558","1","EACH",29.95,17.97,16.47,14.98,null,null,null,null,null,null,null,null,null,null,null,null,null,null,null,null,null,17.97,null,null,null,null,"","",null,0,0,0,0,0,""]
[6,600,8,3,"White 5000 yd 20#","FLY REELS, SPOOLS AND OUTFITS","  SCIENTIFIC ANGLERS(TM) WATERPROOF FLY BOXES","185722","","Classic 280 Fly Box - Medium - Metallic Blue      ",null,"840309113069","1","EACH",26.95,16.170000000000002,14.82,13.48,null,null,null,null,null,null,null,null,null,null,null,null,null,null,null,null,null,16.170000000000002,null,null,null,null,"","",null,0,0,0,0,0,""]
[6,600,9,3,"White  100 yd 30#","FLY REELS, SPOOLS AND OUTFITS","  SCIENTIFIC ANGLERS(TM) WATERPROOF FLY BOXES","185067","","Max 752 Fly Box - Medium - Lime Green      ",null,"840309113847","1","EACH",32.950000000000003,19.77,18.12,16.48,null,null,null,null,null,null,null,null,null,null,null,null,null,null,null,null,null,19.77,null,null,null,null,"","",null,0,0,0,0,0,""]
[6,600,10,3,"White  250 yd 30#","FLY REELS, SPOOLS AND OUTFITS","  SCIENTIFIC ANGLERS(TM) WATERPROOF FLY BOXES","185715","","Nymph 210 Fly Box - Medium - Orange      ",null,"840309113052","1","EACH",26.95,16.170000000000002,14.82,13.48,null,null,null,null,null,null,null,null,null,null,null,null,null,null,null,null,null,16.170000000000002,null,null,null,null,"","",null,0,0,0,0,0,""]
[6,600,11,3,"White 1000 yd 30#","FLY REELS, SPOOLS AND OUTFITS","  SCIENTIFIC ANGLERS(TM) WATERPROOF FLY BOXES","185074","","Streamer/Saltwater 72 Fly Box - Medium - Light Blue      ",null,"840309113854","1","EACH",26.95,16.170000000000002,14.82,13.48,null,null,null,null,null,null,null,null,null,null,null,null,null,null,null,null,null,16.170000000000002,null,null,null,null,"","",null,{"$f":"IF(LEN($AJ373)>0,$AJ373*AK373,\"\")","v":0},0,0,0,0,""]
[6,600,12,3,"White 3000 yd 30#","FLY REELS, SPOOLS AND OUTFITS","  SCIENTIFIC ANGLERS(TM) WATERPROOF FLY BOXES","185104","","Big Fly 116 Flat Fly Box - Large - Mint Green      ",null,"840309113885","1","EACH",32.950000000000003,19.77,18.12,16.48,null,null,null,null,null,null,null,null,null,null,null,null,null,null,null,null,null,19.77,null,null,null,null,"","",null,0,0,0,0,0,""]
[6,600,13,3,"White 5000 yd 30#","FLY REELS, SPOOLS AND OUTFITS","  SCIENTIFIC ANGLERS(TM) WATERPROOF FLY BOXES","185050","","Big Fly 116 Angled Fly Box - Large - Light Blue      ",null,"840309113830","1","EACH",32.950000000000003,19.77,18.12,16.48,null,null,null,null,null,null,null,null,null,null,null,null,null,null,null,null,null,19.77,null,null,null,null,"","",null,0,0,0,0,0,""]
[6,600,14,3,"\u0001","FLY REELS, SPOOLS AND OUTFITS","  SCIENTIFIC ANGLERS(TM) WATERPROOF FLY BOXES","857063","","System X Waterproof Fly Box - Green     MOQ=6      ",null,"840309110969","6","EACH",22.95,13.77,12.62,11.48,null,null,null,null,null,null,null,null,null,null,null,null,null,null,null,null,null,{"$f":"IF(OR(ISBLANK($L376),$AW$3=0),\" - \",OFFSET(O376,0,$AW$3,1,1))","v":13.77},null,null,null,null,{"$f":"IF($AV376=0,\"\",SUM(AK376:AN376))","v":""},{"$f":"IF($AV376>0,SUM(AR376:AU376),\"\")","v":""},null,{"$f":"IF(LEN($AJ376)>0,$AJ376*AK376,\"\")","v":0},{"$f":"IF(LEN($AJ376)>0,$AJ376*AL376,\"\")","v":0},{"$f":"IF(LEN($AJ376)>0,$AJ376*AM376,\"\")","v":0},{"$f":"IF(LEN($AJ376)>0,$AJ376*AN376,\"\")","v":0},{"$f":"COUNT(AK376:AN376)","v":0},""]
[6,600,15,3,"\u0001","FLY REELS, SPOOLS AND OUTFITS","  SCIENTIFIC ANGLERS(TM) WATERPROOF FLY BOXES",122603,null,"Boat Box    *NEW*",null,840309122603,1,"EACH",49.95,29.97,27.472500000000004,24.975000000000001,null,null,null,null,null,null,null,null,null,null,null,null,null,null,null,null,null,29.97,null,null,null,null,"","",null,0,0,0,0,0,""]
[6,601,null,2,"Orange  100 yd 20#","FLY REELS, SPOOLS AND OUTFITS","  SCIENTIFIC ANGLERS(TM) ACCESSORIES   *NEW*","SCIENTIFIC ANGLERS(TM) ACCESSORIES - Workbook Pages 76-79",null,null,null,null,null,null,null,null,null,null,null,null,null,null,null,null,null,null,null,null,null,null,null,null,null,null,null,null,null,null,null,null,"",""]
[6,601,2,3,"Orange  250 yd 20#","FLY REELS, SPOOLS AND OUTFITS","  SCIENTIFIC ANGLERS(TM) ACCESSORIES   *NEW*",120678,null,"Groove Practice Rod",null,"840309120678","1","EACH",39.950000000000003,23.970000000000002,21.972500000000004,19.975000000000001,null,null,null,null,null,null,null,null,null,null,null,null,null,null,null,null,null,{"$f":"IF(OR(ISBLANK($L379),$AW$3=0),\" - \",OFFSET(O379,0,$AW$3,1,1))","v":23.970000000000002},null,null,null,null,"","",null,{"$f":"IF(LEN($AJ379)>0,$AJ379*AK379,\"\")","v":0},0,0,0,{"$f":"COUNT(AK379:AN379)","v":0},{"$f":"IF($AV379<>0,ROW($AV$11),\"\")","v":""}]
[6,601,3,3,"Orange 3000 yd 20#","FLY REELS, SPOOLS AND OUTFITS","  SCIENTIFIC ANGLERS(TM) ACCESSORIES   *NEW*",120685,null,"Power Jaw Scissor Forcep",null,"840309120685","1","EACH",19.96,11.976000000000001,10.978000000000002,9.98,null,null,null,null,null,null,null,null,null,null,null,null,null,null,null,null,null,11.976000000000001,null,null,null,null,"","",null,0,0,0,0,0,""]
[6,601,4,3,"Orange 5000 yd 20#","FLY REELS, SPOOLS AND OUTFITS","  SCIENTIFIC ANGLERS(TM) ACCESSORIES   *NEW*",120692,null,"Power Jaw Curved Forcep",null,"840309120692","1","EACH",16.95,10.17,9.3224999999999998,8.4749999999999996,null,null,null,null,null,null,null,null,null,null,null,null,null,null,null,null,null,10.17,null,null,null,null,"","",null,0,0,0,0,0,""]
[6,601,5,3,"Orange  100 yd 30#","FLY REELS, SPOOLS AND OUTFITS","  SCIENTIFIC ANGLERS(TM) ACCESSORIES   *NEW*",119870,null,"Zinger - Clip ",null,"840309119870","1","EACH",10.95,6.5699999999999994,6.0225,5.4749999999999996,null,null,null,null,null,null,null,null,null,null,null,null,null,null,null,null,null,6.5699999999999994,null,null,null,null,"","",null,0,0,0,0,0,""]
[6,601,6,3,"Orange  250 yd 30#","FLY REELS, SPOOLS AND OUTFITS","  SCIENTIFIC ANGLERS(TM) ACCESSORIES   *NEW*","775237","","Retractor  Large      ",null,840309109550,1,"EACH",8.9499999999999993,5.3699999999999992,4.9225000000000003,4.4749999999999996,null,null,null,null,null,null,null,null,null,null,null,null,null,null,null,null,null,5.3699999999999992,null,null,null,null,"","",null,0,0,0,0,0,""]
[6,601,7,3,"Orange 3000 yd 30#","FLY REELS, SPOOLS AND OUTFITS","  SCIENTIFIC ANGLERS(TM) ACCESSORIES   *NEW*",120715,null,"Magnetic Net Holder",null,840309120715,1,"EACH",24.95,14.969999999999999,13.7225,12.475,null,null,null,null,null,null,null,null,null,null,null,null,null,null,null,null,null,14.969999999999999,null,null,null,null,"","",null,0,0,0,0,0,""]
[6,601,8,3,"Orange 5000 yd 30#","FLY REELS, SPOOLS AND OUTFITS","  SCIENTIFIC ANGLERS(TM) ACCESSORIES   *NEW*",119887,null,"Lanyard",null,"840309119887",1,"EACH",39.950000000000003,23.970000000000002,21.972500000000004,19.975000000000001,null,null,null,null,null,null,null,null,null,null,null,null,null,null,null,null,null,23.970000000000002,null,null,null,null,"","",null,0,0,0,0,0,""]
[6,601,9,3,"\u0001","FLY REELS, SPOOLS AND OUTFITS","  SCIENTIFIC ANGLERS(TM) ACCESSORIES   *NEW*",124201,null,"Braided Loops - 3 Pack   *NEW*",null,840309124201,1,"EACH",4.95,2.97,2.7225000000000001,2.4750000000000001,null,null,null,null,null,null,null,null,null,null,null,null,null,null,null,null,null,2.97,null,null,null,null,"","",null,0,0,0,0,0,""]
[6,601,10,3,"Yellow  100 yd 20#","FLY REELS, SPOOLS AND OUTFITS","  SCIENTIFIC ANGLERS(TM) ACCESSORIES   *NEW*",103503,null,"Tippet Holder   *NEW*",null,"840309103503 ",1,"EACH",9.9499999999999993,5.97,5.4725000000000001,4.9749999999999996,null,null,null,null,null,null,null,null,null,null,null,null,null,null,null,null,null,5.97,null,null,null,null,"","",null,0,0,0,0,0,""]
[6,601,11,3,"Yellow  250 yd 20#","FLY REELS, SPOOLS AND OUTFITS","  SCIENTIFIC ANGLERS(TM) ACCESSORIES   *NEW*","776772","","Bottoms Up Floatant Holder        MOQ=6      ",null,"840309116244","6","EACH",4.95,2.97,2.7225000000000001,2.4750000000000001,null,null,null,null,null,null,null,null,null,null,null,null,null,null,null,null,null,2.97,null,null,null,null,"","",null,0,0,0,0,0,""]
[6,601,12,3,"Yellow 1000 yd 20#","FLY REELS, SPOOLS AND OUTFITS","  SCIENTIFIC ANGLERS(TM) ACCESSORIES   *NEW*","608207","","Fly Floatant  0.5 oz                    MOQ=12      ",null,"840309108805","12","EACH",5.25,3.15,2.8875000000000002,2.625,null,null,null,null,null,null,null,null,null,null,null,null,null,null,null,null,null,3.15,null,null,null,null,"","",null,0,0,0,0,0,""]
[6,601,13,3,"Yellow 3000 yd 20#","FLY REELS, SPOOLS AND OUTFITS","  SCIENTIFIC ANGLERS(TM) ACCESSORIES   *NEW*",207123,"","Fly Floatant - 25 Pack PDQ      ",null,840309111607,"1","DSPL",119.95,71.97,65.972500000000011,59.975000000000001,null,null,null,null,null,null,null,null,null,null,null,null,null,null,null,null,null,71.97,null,null,null,null,"","",null,0,0,0,0,0,""]
[6,601,14,3,"Yellow 5000 yd 20#","FLY REELS, SPOOLS AND OUTFITS","  SCIENTIFIC ANGLERS(TM) ACCESSORIES   *NEW*","543218","","Fly Line Dressing w/ pad            MOQ=12      ",null,"840309102759","12","EACH",7.25,4.3499999999999996,3.9875000000000003,3.625,null,null,null,null,null,null,null,null,null,null,null,null,null,null,null,null,null,4.3499999999999996,null,null,null,null,"","",null,0,0,0,0,0,""]
[6,601,15,3,"Yellow  100 yd 30#","FLY REELS, SPOOLS AND OUTFITS","  SCIENTIFIC ANGLERS(TM) ACCESSORIES   *NEW*","835306","","Vest Pack Assortment      ",null,"840309102353","6","EACH",17.95,10.77,9.8725000000000005,8.9749999999999996,null,null,null,null,null,null,null,null,null,null,null,null,null,null,null,null,null,10.77,null,null,null,null,"","",null,0,0,0,0,0,""]
[6,602,null,2,"Yellow 1000 yd 30#","FLY REELS, SPOOLS AND OUTFITS","  SIERRA STREAM AND MOUNTAIN™ TOOLS - MADE IN USA","SIERRA STREAM AND MOUNTAIN™ TOOLS - MADE IN USA",null,null,null,null,null,null,null,null,null,null,null,null,null,null,null,null,null,null,null,null,null,null,null,null,null,null,null,null,null,null,null,null,"",""]
[6,602,1,3,"Yellow 3000 yd 30#","FLY REELS, SPOOLS AND OUTFITS","  SIERRA STREAM AND MOUNTAIN™ TOOLS - MADE IN USA","971717","","TIE-FAST Combo Tool - Silver - Made in USA      ",null,"099123971717","1","EACH",18.95,11.37,10.422500000000001,9.4749999999999996,null,null,null,null,null,null,null,null,null,null,null,null,null,null,null,null,null,{"$f":"IF(OR(ISBLANK($L394),$AW$3=0),\" - \",OFFSET(O394,0,$AW$3,1,1))","v":11.37},null,null,null,null,"","",null,{"$f":"IF(LEN($AJ394)>0,$AJ394*AK394,\"\")","v":0},0,0,0,0,""]
[6,602,2,3,"Yellow 5000 yd 30#","FLY REELS, SPOOLS AND OUTFITS","  SIERRA STREAM AND MOUNTAIN™ TOOLS - MADE IN USA","089016","","TIE-FAST Knot Tyer - Silver - Made in USA      ",null,"099123089016","1","EACH",9.9499999999999993,5.97,5.4725000000000001,4.9749999999999996,null,null,null,null,null,null,null,null,null,null,null,null,null,null,null,null,null,{"$f":"IF(OR(ISBLANK($L395),$AW$3=0),\" - \",OFFSET(O395,0,$AW$3,1,1))","v":5.97},null,null,null,null,"","",null,0,0,0,0,0,""]
[6,602,3,3,"\u0001","FLY REELS, SPOOLS AND OUTFITS","  SIERRA STREAM AND MOUNTAIN™ TOOLS - MADE IN USA","941017","","TIE-FAST Line Clipper - Silver - Made in USA      ",null,"099123941017","1","EACH",9.9499999999999993,5.97,5.4725000000000001,4.9749999999999996,null,null,null,null,null,null,null,null,null,null,null,null,null,null,null,null,null,{"$f":"IF(OR(ISBLANK($L396),$AW$3=0),\" - \",OFFSET(O396,0,$AW$3,1,1))","v":5.97},null,null,null,null,"","",null,0,0,0,0,0,""]
[6,603,null,2,"\u0001","FLY REELS, SPOOLS AND OUTFITS","  SCIENTIFIC ANGLERS(TM) DELUXE FLY TYING KIT","  SCIENTIFIC ANGLERS(TM) DELUXE FLY TYING KIT",null,null,null,null,null,null,null,null,null,null,null,null,null,null,null,null,null,null,null,null,null,null,null,null,null,null,null,null,null,null,null,null,"",""]
[6,603,1,3,"Scientific Anglers 34 Reel - Graphite      ","FLY REELS, SPOOLS AND OUTFITS","  SCIENTIFIC ANGLERS(TM) DELUXE FLY TYING KIT","099413","","Deluxe Fly-Tying Kit with DVD      ",null,"840309103596","1","EACH",69.95,44.97,41.222500000000004,37.475000000000001,null,null,null,null,null,null,null,null,null,null,null,null,null,null,null,null,null,{"$f":"IF(OR(ISBLANK($L398),$AW$3=0),\" - \",OFFSET(O398,0,$AW$3,1,1))","v":44.97},null,null,null,null,"","",null,{"$f":"IF(LEN($AJ398)>0,$AJ398*AK398,\"\")","v":0},0,0,0,{"$f":"COUNT(AK398:AN398)","v":0},{"$f":"IF($AV398<>0,ROW($AV$11),\"\")","v":""}]
[6,604,null,2,"Yellow 500 yd","FLY REELS, SPOOLS AND OUTFITS","SCIENTIFIC ANGLERS(TM) CLOTHING","SCIENTIFIC ANGLERS(TM) CLOTHING   *NEW*",null,null,null,null,null,null,null,null,null,null,null,null,null,null,null,null,null,null,null,null,null,null,null,null,null,null,null,null,null,null,null,null,{"$f":"IF($AV399=0,\"\",SUM(AK399:AN399))","v":""},{"$f":"IF($AV399>0,SUM(AR399:AU399),\"\")","v":""}]
[6,604,1,3,"Yellow 1000 yd","FLY REELS, SPOOLS AND OUTFITS","SCIENTIFIC ANGLERS(TM) CLOTHING",124089,null,"Tarpon L/S Casting T - Medium - Columbia Blue",null,840309124089,"1","EACH",49.95,29.97,27.472500000000004,24.975000000000001,null,null,null,null,null,null,null,null,null,null,null,null,null,null,null,null,null,{"$f":"IF(OR(ISBLANK($L400),$AW$3=0),\" - \",OFFSET(O400,0,$AW$3,1,1))","v":29.97},null,null,null,null,"","",null,{"$f":"IF(LEN($AJ400)>0,$AJ400*AK400,\"\")","v":0},{"$f":"IF(LEN($AJ400)>0,$AJ400*AL400,\"\")","v":0},{"$f":"IF(LEN($AJ400)>0,$AJ400*AM400,\"\")","v":0},{"$f":"IF(LEN($AJ400)>0,$AJ400*AN400,\"\")","v":0},{"$f":"COUNT(AK400:AN400)","v":0},{"$f":"IF($AV400<>0,ROW($AV$11),\"\")","v":""}]
[6,604,2,3,"Yellow 3000 yd","FLY REELS, SPOOLS AND OUTFITS","SCIENTIFIC ANGLERS(TM) CLOTHING",124096,null,"Tarpon L/S Casting T - Large - Columbia Blue",null,840309124096,"1","EACH",49.95,29.97,27.472500000000004,24.975000000000001,null,null,null,null,null,null,null,null,null,null,null,null,null,null,null,null,null,29.97,null,null,null,null,"","",null,0,0,0,0,0,""]
[6,604,3,3,"\u0001","FLY REELS, SPOOLS AND OUTFITS","SCIENTIFIC ANGLERS(TM) CLOTHING",124102,null,"Tarpon L/S Casting T - XL - Columbia Blue",null,840309124102,"1","EACH",49.95,29.97,27.472500000000004,24.975000000000001,null,null,null,null,null,null,null,null,null,null,null,null,null,null,null,null,null,29.97,null,null,null,null,"","",null,0,0,0,0,0,""]
[6,604,4,3,"White  100 yd 20#","FLY REELS, SPOOLS AND OUTFITS","SCIENTIFIC ANGLERS(TM) CLOTHING",124119,null,"Tarpon L/S Casting T - XXL - Columbia Blue",null,840309124119,"1","EACH",49.95,29.97,27.472500000000004,24.975000000000001,null,null,null,null,null,null,null,null,null,null,null,null,null,null,null,null,null,29.97,null,null,null,null,"","",null,0,0,0,0,0,""]
[6,604,5,3,"White  250 yd 20#","FLY REELS, SPOOLS AND OUTFITS","SCIENTIFIC ANGLERS(TM) CLOTHING",124126,null,"Smallmouth Bass L/S Casting T - Medium - Athletic Gray",null,840309124126,"1","EACH",49.95,29.97,27.472500000000004,24.975000000000001,null,null,null,null,null,null,null,null,null,null,null,null,null,null,null,null,null,29.97,null,null,null,null,"","",null,0,0,0,0,0,""]
[6,604,6,3,"White 1000 yd","FLY REELS, SPOOLS AND OUTFITS","SCIENTIFIC ANGLERS(TM) CLOTHING",124133,null,"Smallmouth Bass L/S Casting T - Large - Athletic Gray",null,840309124133,"1","EACH",49.95,29.97,27.472500000000004,24.975000000000001,null,null,null,null,null,null,null,null,null,null,null,null,null,null,null,null,null,29.97,null,null,null,null,"","",null,0,0,0,0,0,""]
[6,604,7,3,"White 3000 yd 20#","FLY REELS, SPOOLS AND OUTFITS","SCIENTIFIC ANGLERS(TM) CLOTHING",124140,null,"Smallmouth Bass L/S Casting T - XL - Athletic Gray",null,840309124140,"1","EACH",49.95,29.97,27.472500000000004,24.975000000000001,null,null,null,null,null,null,null,null,null,null,null,null,null,null,null,null,null,29.97,null,null,null,null,"","",null,0,0,0,0,0,""]
[6,604,8,3,"White 5000 yd 20#","FLY REELS, SPOOLS AND OUTFITS","SCIENTIFIC ANGLERS(TM) CLOTHING",124157,null,"Smallmouth Bass L/S Casting T - XXL - Athletic Gray",null,840309124157,"1","EACH",49.95,29.97,27.472500000000004,24.975000000000001,null,null,null,null,null,null,null,null,null,null,null,null,null,null,null,null,null,29.97,null,null,null,null,"","",null,0,0,0,0,0,""]
[6,604,9,3,"White  100 yd 30#","FLY REELS, SPOOLS AND OUTFITS","SCIENTIFIC ANGLERS(TM) CLOTHING",124164,null,"Brook Trout L/S Casting T - Medium - Tan",null,840309124164,"1","EACH",49.95,29.97,27.472500000000004,24.975000000000001,null,null,null,null,null,null,null,null,null,null,null,null,null,null,null,null,null,29.97,null,null,null,null,"","",null,0,0,0,0,0,""]
[6,604,10,3,"White  250 yd 30#","FLY REELS, SPOOLS AND OUTFITS","SCIENTIFIC ANGLERS(TM) CLOTHING",124171,null,"Brook Trout L/S Casting T - Large - Tan",null,840309124171,"1","EACH",49.95,29.97,27.472500000000004,24.975000000000001,null,null,null,null,null,null,null,null,null,null,null,null,null,null,null,null,null,29.97,null,null,null,null,"","",null,0,0,0,0,0,""]
[6,604,11,3,"White 1000 yd 30#","FLY REELS, SPOOLS AND OUTFITS","SCIENTIFIC ANGLERS(TM) CLOTHING",124188,null,"Brook Trout L/S Casting T - XL - Tan",null,840309124188,"1","EACH",49.95,29.97,27.472500000000004,24.975000000000001,null,null,null,null,null,null,null,null,null,null,null,null,null,null,null,null,null,29.97,null,null,null,null,"","",null,0,0,0,0,0,""]
[6,604,12,3,"White 3000 yd 30#","FLY REELS, SPOOLS AND OUTFITS","SCIENTIFIC ANGLERS(TM) CLOTHING",124195,"","Brook Trout L/S Casting T - XXL - Tan",null,840309124195,1,"EACH",49.95,29.97,27.472500000000004,24.975000000000001,null,null,null,null,null,null,null,null,null,null,null,null,null,null,null,null,null,29.97,null,null,null,null,"","",null,0,0,0,0,0,""]

{"sheet":"Search","index":1,"n_rows":7,"n_cols":3,"rows_kept":7,"cut":false,"hidden":false,"merged":[]}
[]
[]
[]
[null,"Product Number",123]
[null,null,{"$f":"\"- OR -\"","v":"- OR -"}]
[null,"Description Keywords"]
[null,null,"Separate multiple keywords with a space between each word."]

{"sheet":"PriceLevels","index":2,"n_rows":4,"n_cols":3,"rows_kept":4,"cut":false,"hidden":true,"merged":[]}
["PriceCol","PriceLevel","RealPriceCol"]
[1,"Level 1",1]
[2,"Level 2",2]
[3,"Level 3",3]